Body Name,Date Paid,Transaction Number,Amount,Supplier Name,Supplier Type,Expense Area,Cost Centre Description,Expense Type
Cambridgeshire County Council,19-Oct-15,18996217-12163321,-209177.78,Cambridgeshire And Peterborough Nhs Foundation Trust,Trust (Other),E&P,Parenting - High Demand Families,Staff Recharges
Cambridgeshire County Council,05-Oct-15,19364694-12099216,-29876.87,Civica Uk Ltd,Trade Supplier,LGSS,3rd Party Contracts,Computer hardware - maintenance
Cambridgeshire County Council,19-Oct-15,19374239-12163584,-12315.5,Cambridgeshire Learning And Community Partnerships,Trade Supplier,S&C,BSF LEP,Capital WIP - land and buildings  -  Construction cost
Cambridgeshire County Council,30-Oct-15,19424346-12219419,-9566.2,Bright Futures Care Ltd,Care Establishment,S&C,Placements - Social Care,Agency Placements - Out County
Cambridgeshire County Council,05-Oct-15,19364693-12099215,-8797.08,Civica Uk Ltd,Trade Supplier,LGSS,3rd Party Contracts,Computer hardware - maintenance
Cambridgeshire County Council,15-Oct-15,19389234-12156343,-6714.06,Askews And Holts Library Services Ltd,Trade Supplier,Corporate Services,Libraries - Young Offenders Unit Littlehey,Library Book Fund
Cambridgeshire County Council,08-Oct-15,19370834-12106300,-2852.58,The Edmund Trust,Care Establishment,2 - Operations - Learning Disability,LDP South Cambs Team,Supported Living
Cambridgeshire County Council,16-Oct-15,19306489-12160352,-2812.54,Guidant Group,Trade Supplier,PH,Public Health,Pay - Agency Staff
Cambridgeshire County Council,12-Oct-15,19370831-12122586,-2700,Skills For Care Ltd,Trade Supplier,LRNG,"Workforce Development Team	",Staff Training & Development
Cambridgeshire County Council,01-Oct-15,19295000-12087134,-2312.36,Orchard Manor (Scope),Care Establishment,2 - Operations - Learning Disability,LDP South Cambs Team,Residential Independent Sector
Cambridgeshire County Council,01-Oct-15,19295001-12087135,-2312.36,Orchard Manor (Scope),Care Establishment,2 - Operations - Learning Disability,LDP South Cambs Team,Residential Independent Sector
Cambridgeshire County Council,01-Oct-15,19295002-12087136,-2312.36,Orchard Manor (Scope),Care Establishment,2 - Operations - Learning Disability,LDP South Cambs Team,Residential Independent Sector
Cambridgeshire County Council,01-Oct-15,19295003-12087137,-2312.36,Orchard Manor (Scope),Care Establishment,2 - Operations - Learning Disability,LDP South Cambs Team,Residential Independent Sector
Cambridgeshire County Council,01-Oct-15,19295004-12087138,-2312.36,Orchard Manor (Scope),Care Establishment,2 - Operations - Learning Disability,LDP South Cambs Team,Residential Independent Sector
Cambridgeshire County Council,01-Oct-15,19295005-12087139,-2312.36,Orchard Manor (Scope),Care Establishment,2 - Operations - Learning Disability,LDP South Cambs Team,Residential Independent Sector
Cambridgeshire County Council,01-Oct-15,19295006-12087140,-2312.36,Orchard Manor (Scope),Care Establishment,2 - Operations - Learning Disability,LDP South Cambs Team,Residential Independent Sector
Cambridgeshire County Council,01-Oct-15,19295007-12087141,-2312.36,Orchard Manor (Scope),Care Establishment,2 - Operations - Learning Disability,LDP South Cambs Team,Residential Independent Sector
Cambridgeshire County Council,01-Oct-15,19295009-12087143,-2312.36,Orchard Manor (Scope),Care Establishment,2 - Operations - Learning Disability,LDP South Cambs Team,Residential Independent Sector
Cambridgeshire County Council,01-Oct-15,19295010-12087144,-2312.36,Orchard Manor (Scope),Care Establishment,2 - Operations - Learning Disability,LDP South Cambs Team,Residential Independent Sector
Cambridgeshire County Council,09-Oct-15,19382886-12113744,-2250,Redacted Personal Data,Individual,3 - Commissioning - Disabilities & Carers,Interim Carers Review Team,Direct Payments - Social Services
Cambridgeshire County Council,12-Oct-15,19387576-12122606,-2242.1,Mencap,Care Establishment,2 - Operations - Learning Disability,LDP South Cambs Team,SDS - Care and support Services
Cambridgeshire County Council,12-Oct-15,19161642-12122441,-2220,South Cambridgeshire District Council,Other Public Bodies,PH,Public Health,Other Hired Contract Services
Cambridgeshire County Council,01-Oct-15,19354393-12085801,-2191.87,Affinity Trust,Care Establishment,2 - Operations - Learning Disability,LDP Hunts special needs,Supported Living
Cambridgeshire County Council,01-Oct-15,19354396-12085804,-2191.87,Affinity Trust,Care Establishment,2 - Operations - Learning Disability,LDP Hunts special needs,Supported Living
Cambridgeshire County Council,01-Oct-15,19354402-12085810,-2191.87,Affinity Trust,Care Establishment,2 - Operations - Learning Disability,LDP Hunts special needs,Supported Living
Cambridgeshire County Council,01-Oct-15,19354403-12085811,-2191.87,Affinity Trust,Care Establishment,2 - Operations - Learning Disability,LDP Hunts special needs,Supported Living
Cambridgeshire County Council,01-Oct-15,19354404-12085812,-2191.87,Affinity Trust,Care Establishment,2 - Operations - Learning Disability,LDP Hunts special needs,Supported Living
Cambridgeshire County Council,01-Oct-15,19354409-12085817,-2191.87,Affinity Trust,Care Establishment,2 - Operations - Learning Disability,LDP Hunts special needs,Supported Living
Cambridgeshire County Council,01-Oct-15,19354410-12085818,-2191.87,Affinity Trust,Care Establishment,2 - Operations - Learning Disability,LDP Hunts special needs,Supported Living
Cambridgeshire County Council,01-Oct-15,19354413-12085821,-2191.87,Affinity Trust,Care Establishment,2 - Operations - Learning Disability,LDP Hunts special needs,Supported Living
Cambridgeshire County Council,01-Oct-15,19354414-12085822,-2191.87,Affinity Trust,Care Establishment,2 - Operations - Learning Disability,LDP Hunts special needs,Supported Living
Cambridgeshire County Council,01-Oct-15,19354415-12085823,-2191.87,Affinity Trust,Care Establishment,2 - Operations - Learning Disability,LDP Hunts special needs,Supported Living
Cambridgeshire County Council,01-Oct-15,19354416-12085824,-2191.87,Affinity Trust,Care Establishment,2 - Operations - Learning Disability,LDP Hunts special needs,Supported Living
Cambridgeshire County Council,01-Oct-15,19354417-12085825,-2191.87,Affinity Trust,Care Establishment,2 - Operations - Learning Disability,LDP Hunts special needs,Supported Living
Cambridgeshire County Council,01-Oct-15,19354418-12085778,-2191.87,Affinity Trust,Care Establishment,2 - Operations - Learning Disability,LDP Hunts special needs,Supported Living
Cambridgeshire County Council,01-Oct-15,19354419-12085779,-2191.87,Affinity Trust,Care Establishment,2 - Operations - Learning Disability,LDP Hunts special needs,Supported Living
Cambridgeshire County Council,01-Oct-15,19354420-12085780,-2191.87,Affinity Trust,Care Establishment,2 - Operations - Learning Disability,LDP Hunts special needs,Supported Living
Cambridgeshire County Council,01-Oct-15,19354423-12085783,-2191.87,Affinity Trust,Care Establishment,2 - Operations - Learning Disability,LDP Hunts special needs,Supported Living
Cambridgeshire County Council,01-Oct-15,19354425-12085785,-2191.87,Affinity Trust,Care Establishment,2 - Operations - Learning Disability,LDP Hunts special needs,Supported Living
Cambridgeshire County Council,01-Oct-15,19354426-12085786,-2191.87,Affinity Trust,Care Establishment,2 - Operations - Learning Disability,LDP Hunts special needs,Supported Living
Cambridgeshire County Council,01-Oct-15,19354427-12085787,-2191.87,Affinity Trust,Care Establishment,2 - Operations - Learning Disability,LDP Hunts special needs,Supported Living
Cambridgeshire County Council,01-Oct-15,19354429-12085789,-2191.87,Affinity Trust,Care Establishment,2 - Operations - Learning Disability,LDP Hunts special needs,Supported Living
Cambridgeshire County Council,01-Oct-15,19354430-12085790,-2191.87,Affinity Trust,Care Establishment,2 - Operations - Learning Disability,LDP Hunts special needs,Supported Living
Cambridgeshire County Council,01-Oct-15,19354432-12085792,-2191.87,Affinity Trust,Care Establishment,2 - Operations - Learning Disability,LDP Hunts special needs,Supported Living
Cambridgeshire County Council,01-Oct-15,19354433-12085793,-2191.87,Affinity Trust,Care Establishment,2 - Operations - Learning Disability,LDP Hunts special needs,Supported Living
Cambridgeshire County Council,01-Oct-15,19354438-12085798,-2191.87,Affinity Trust,Care Establishment,2 - Operations - Learning Disability,LDP Hunts special needs,Supported Living
Cambridgeshire County Council,05-Oct-15,19223878-12099517,-2172.12,Midfield Lodge Care Centre,Care Establishment,4 - Commissioning - Mental Health & Supporting People,OP Winter Pressure,Residential Independent Sector
Cambridgeshire County Council,23-Oct-15,19344805-12191508,-2158.2,Guidant Group,Trade Supplier,2 - Commissioning - Older people Pool,Wisbech Older People Integration Team,Pay - Agency Staff
Cambridgeshire County Council,28-Oct-15,19393102-12206757,-2085.6,Carter Cabin Hire Limited,Company,Corporate Services,Libraries - Sawston,Property & Procurement charges
Cambridgeshire County Council,15-Oct-15,19403853-12155847,-1963.35,Westminster Homecare Limited,Care Establishment,2 - Operations - Learning Disability,LDP E Cambs Special Needs,SDS - Care and support Services
Cambridgeshire County Council,15-Oct-15,19403862-12155854,-1963.35,Westminster Homecare Limited,Care Establishment,2 - Operations - Learning Disability,LDP E Cambs Special Needs,SDS - Care and support Services
Cambridgeshire County Council,15-Oct-15,19403867-12155855,-1963.35,Westminster Homecare Limited,Care Establishment,2 - Operations - Learning Disability,LDP E Cambs Special Needs,SDS - Care and support Services
Cambridgeshire County Council,15-Oct-15,19403868-12155856,-1963.35,Westminster Homecare Limited,Care Establishment,2 - Operations - Learning Disability,LDP E Cambs Special Needs,SDS - Care and support Services
Cambridgeshire County Council,15-Oct-15,19403869-12155857,-1963.35,Westminster Homecare Limited,Care Establishment,2 - Operations - Learning Disability,LDP E Cambs Special Needs,SDS - Care and support Services
Cambridgeshire County Council,15-Oct-15,19403874-12155860,-1963.35,Westminster Homecare Limited,Care Establishment,2 - Operations - Learning Disability,LDP E Cambs Special Needs,SDS - Care and support Services
Cambridgeshire County Council,15-Oct-15,19403889-12155866,-1963.35,Westminster Homecare Limited,Care Establishment,2 - Operations - Learning Disability,LDP E Cambs Special Needs,SDS - Care and support Services
Cambridgeshire County Council,15-Oct-15,19403890-12155867,-1963.35,Westminster Homecare Limited,Care Establishment,2 - Operations - Learning Disability,LDP E Cambs Special Needs,SDS - Care and support Services
Cambridgeshire County Council,15-Oct-15,19403891-12155868,-1963.35,Westminster Homecare Limited,Care Establishment,2 - Operations - Learning Disability,LDP E Cambs Special Needs,SDS - Care and support Services
Cambridgeshire County Council,15-Oct-15,19403895-12155869,-1963.35,Westminster Homecare Limited,Care Establishment,2 - Operations - Learning Disability,LDP E Cambs Special Needs,SDS - Care and support Services
Cambridgeshire County Council,15-Oct-15,19403904-12155873,-1963.35,Westminster Homecare Limited,Care Establishment,2 - Operations - Learning Disability,LDP E Cambs Special Needs,SDS - Care and support Services
Cambridgeshire County Council,15-Oct-15,19403905-12155874,-1963.35,Westminster Homecare Limited,Care Establishment,2 - Operations - Learning Disability,LDP E Cambs Special Needs,SDS - Care and support Services
Cambridgeshire County Council,15-Oct-15,19403906-12155875,-1963.35,Westminster Homecare Limited,Care Establishment,2 - Operations - Learning Disability,LDP E Cambs Special Needs,SDS - Care and support Services
Cambridgeshire County Council,15-Oct-15,19403914-12155876,-1963.35,Westminster Homecare Limited,Care Establishment,2 - Operations - Learning Disability,LDP E Cambs Special Needs,SDS - Care and support Services
Cambridgeshire County Council,15-Oct-15,19403915-12155877,-1963.35,Westminster Homecare Limited,Care Establishment,2 - Operations - Learning Disability,LDP E Cambs Special Needs,SDS - Care and support Services
Cambridgeshire County Council,15-Oct-15,19403916-12155878,-1963.35,Westminster Homecare Limited,Care Establishment,2 - Operations - Learning Disability,LDP E Cambs Special Needs,SDS - Care and support Services
Cambridgeshire County Council,15-Oct-15,19403919-12155879,-1963.35,Westminster Homecare Limited,Care Establishment,2 - Operations - Learning Disability,LDP E Cambs Special Needs,SDS - Care and support Services
Cambridgeshire County Council,15-Oct-15,19411641-12155735,-1963.35,Westminster Homecare Limited,Care Establishment,2 - Operations - Learning Disability,LDP E Cambs Special Needs,SDS - Care and support Services
Cambridgeshire County Council,15-Oct-15,19411647-12155738,-1963.35,Westminster Homecare Limited,Care Establishment,2 - Operations - Learning Disability,LDP E Cambs Special Needs,SDS - Care and support Services
Cambridgeshire County Council,15-Oct-15,19411655-12155742,-1963.35,Westminster Homecare Limited,Care Establishment,2 - Operations - Learning Disability,LDP E Cambs Special Needs,SDS - Care and support Services
Cambridgeshire County Council,15-Oct-15,19411664-12155747,-1963.35,Westminster Homecare Limited,Care Establishment,2 - Operations - Learning Disability,LDP E Cambs Special Needs,SDS - Care and support Services
Cambridgeshire County Council,15-Oct-15,19411668-12155750,-1963.35,Westminster Homecare Limited,Care Establishment,2 - Operations - Learning Disability,LDP E Cambs Special Needs,SDS - Care and support Services
Cambridgeshire County Council,15-Oct-15,19411669-12155751,-1963.35,Westminster Homecare Limited,Care Establishment,2 - Operations - Learning Disability,LDP E Cambs Special Needs,SDS - Care and support Services
Cambridgeshire County Council,05-Oct-15,19351244-12099516,-1716.22,Midfield Lodge Care Centre,Care Establishment,4 - Commissioning - Mental Health & Supporting People,OP Winter Pressure,Residential Independent Sector
Cambridgeshire County Council,05-Oct-15,19223884-12099519,-1706.67,Midfield Lodge Care Centre,Care Establishment,4 - Commissioning - Mental Health & Supporting People,OP Winter Pressure,Residential Independent Sector
Cambridgeshire County Council,05-Oct-15,19223885-12099520,-1706.67,Midfield Lodge Care Centre,Care Establishment,4 - Commissioning - Mental Health & Supporting People,OP Winter Pressure,Residential Independent Sector
Cambridgeshire County Council,15-Oct-15,19411653-12155740,-1681.19,Westminster Homecare Limited,Care Establishment,2 - Operations - Learning Disability,LDP E Cambs Special Needs,SDS - Care and support Services
Cambridgeshire County Council,23-Oct-15,19435286-12191735,-1673.14,Thera East Anglia,Trust (Other),2 - Operations - Learning Disability,LDP City Team,Supported Living
Cambridgeshire County Council,20-Oct-15,19217295-12166666,-1640.87,Fosterplus Ltd,Care Establishment,S&C,Placements - Social Care,Agency Placements - In Cambs
Cambridgeshire County Council,07-Oct-15,19351246-12102388,-1369.71,Hunters Healthcare (Hunters Down),Care Establishment,4 - Commissioning - Mental Health & Supporting People,Dom Blocks,Residential Independent Sector
Cambridgeshire County Council,01-Oct-15,19302322-12087862,-1230.71,Metropolitan Housing Trust Ltd,Trust (Other),2 - Operations - Learning Disability,LDP Huntingdonshire Team,Residential Independent Sector
Cambridgeshire County Council,01-Oct-15,19302324-12087864,-1230.71,Metropolitan Housing Trust Ltd,Trust (Other),2 - Operations - Learning Disability,LDP Huntingdonshire Team,Residential Independent Sector
Cambridgeshire County Council,01-Oct-15,19302325-12087865,-1230.71,Metropolitan Housing Trust Ltd,Trust (Other),2 - Operations - Learning Disability,LDP Huntingdonshire Team,Residential Independent Sector
Cambridgeshire County Council,01-Oct-15,19302329-12087869,-1230.71,Metropolitan Housing Trust Ltd,Trust (Other),2 - Operations - Learning Disability,LDP Huntingdonshire Team,Residential Independent Sector
Cambridgeshire County Council,01-Oct-15,19302330-12087870,-1230.71,Metropolitan Housing Trust Ltd,Trust (Other),2 - Operations - Learning Disability,LDP Huntingdonshire Team,Residential Independent Sector
Cambridgeshire County Council,01-Oct-15,19302331-12087871,-1230.71,Metropolitan Housing Trust Ltd,Trust (Other),2 - Operations - Learning Disability,LDP Huntingdonshire Team,Residential Independent Sector
Cambridgeshire County Council,22-Oct-15,19377300-12186349,-1206,Eden View,Care Establishment,3 - Operations - Countywide Services,Countywide PD Service,Nursing Independent Sector
Cambridgeshire County Council,22-Oct-15,19377303-12186350,-1206,Eden View,Care Establishment,3 - Operations - Countywide Services,Countywide PD Service,Nursing Independent Sector
Cambridgeshire County Council,22-Oct-15,19377308-12186351,-1206,Eden View,Care Establishment,3 - Operations - Countywide Services,Countywide PD Service,Nursing Independent Sector
Cambridgeshire County Council,22-Oct-15,19398900-12185269,-1200,Barchester Healthcare Homes Ltd,Care Establishment,3 - Operations - Countywide Services,Countywide PD Service,Nursing Independent Sector
Cambridgeshire County Council,22-Oct-15,19398916-12185271,-1200,Barchester Healthcare Homes Ltd,Care Establishment,3 - Operations - Countywide Services,Countywide PD Service,Nursing Independent Sector
Cambridgeshire County Council,22-Oct-15,19398923-12185272,-1200,Barchester Healthcare Homes Ltd,Care Establishment,3 - Operations - Countywide Services,Countywide PD Service,Nursing Independent Sector
Cambridgeshire County Council,22-Oct-15,19398926-12185273,-1200,Barchester Healthcare Homes Ltd,Care Establishment,3 - Operations - Countywide Services,Countywide PD Service,Nursing Independent Sector
Cambridgeshire County Council,22-Oct-15,19398927-12185274,-1200,Barchester Healthcare Homes Ltd,Care Establishment,3 - Operations - Countywide Services,Countywide PD Service,Nursing Independent Sector
Cambridgeshire County Council,22-Oct-15,19443364-12183236,-1146.04,Macintyre Care,Charity,2 - Operations - Learning Disability,LDP City Team,Residential Independent Sector
Cambridgeshire County Council,28-Oct-15,19460222-12206618,-1116,Rhodes Farm School,Education,S&C,Procurement - Out-County Hospitals,Education Recoupment
Cambridgeshire County Council,29-Oct-15,19470193-12211883,-1101.07,St Elizabeth'S Care Home,Care Establishment,2 - Commissioning - Older people Pool,Hunts O P  Team,Residential Independent Sector
Cambridgeshire County Council,29-Oct-15,19470207-12211886,-1101.07,St Elizabeth'S Care Home,Care Establishment,2 - Commissioning - Older people Pool,Hunts O P  Team,Residential Independent Sector
Cambridgeshire County Council,29-Oct-15,19470213-12211882,-1101.07,St Elizabeth'S Care Home,Care Establishment,2 - Commissioning - Older people Pool,Hunts O P  Team,Residential Independent Sector
Cambridgeshire County Council,29-Oct-15,19471204-12211877,-1101.07,St Elizabeth'S Care Home,Care Establishment,2 - Commissioning - Older people Pool,Hunts O P  Team,Residential Independent Sector
Cambridgeshire County Council,29-Oct-15,19471205-12211878,-1101.07,St Elizabeth'S Care Home,Care Establishment,2 - Commissioning - Older people Pool,Hunts O P  Team,Residential Independent Sector
Cambridgeshire County Council,29-Oct-15,19471206-12211879,-1101.07,St Elizabeth'S Care Home,Care Establishment,2 - Commissioning - Older people Pool,Hunts O P  Team,Residential Independent Sector
Cambridgeshire County Council,09-Oct-15,19336714-12115937,-1069.84,Redacted Personal Data,Individual,2 - Commissioning - Older people Pool,East Cambs - O P Team,SDS - Care and support Services
Cambridgeshire County Council,09-Oct-15,19336715-12115938,-1069.84,Redacted Personal Data,Individual,2 - Commissioning - Older people Pool,East Cambs - O P Team,SDS - Care and support Services
Cambridgeshire County Council,09-Oct-15,19336716-12115939,-1069.84,Redacted Personal Data,Individual,2 - Commissioning - Older people Pool,East Cambs - O P Team,SDS - Care and support Services
Cambridgeshire County Council,09-Oct-15,19336717-12115940,-1069.84,Redacted Personal Data,Individual,2 - Commissioning - Older people Pool,East Cambs - O P Team,SDS - Care and support Services
Cambridgeshire County Council,09-Oct-15,19336719-12115942,-1069.84,Redacted Personal Data,Individual,2 - Commissioning - Older people Pool,East Cambs - O P Team,SDS - Care and support Services
Cambridgeshire County Council,09-Oct-15,19336722-12115945,-1069.84,Redacted Personal Data,Individual,2 - Commissioning - Older people Pool,East Cambs - O P Team,SDS - Care and support Services
Cambridgeshire County Council,09-Oct-15,19336725-12115948,-1069.84,Redacted Personal Data,Individual,2 - Commissioning - Older people Pool,East Cambs - O P Team,SDS - Care and support Services
Cambridgeshire County Council,09-Oct-15,19336727-12115950,-1069.84,Redacted Personal Data,Individual,2 - Commissioning - Older people Pool,East Cambs - O P Team,SDS - Care and support Services
Cambridgeshire County Council,09-Oct-15,19336729-12115952,-1069.84,Redacted Personal Data,Individual,2 - Commissioning - Older people Pool,East Cambs - O P Team,SDS - Care and support Services
Cambridgeshire County Council,09-Oct-15,19336731-12115954,-1069.84,Redacted Personal Data,Individual,2 - Commissioning - Older people Pool,East Cambs - O P Team,SDS - Care and support Services
Cambridgeshire County Council,09-Oct-15,19336732-12115955,-1069.84,Redacted Personal Data,Individual,2 - Commissioning - Older people Pool,East Cambs - O P Team,SDS - Care and support Services
Cambridgeshire County Council,09-Oct-15,19336733-12115956,-1069.84,Redacted Personal Data,Individual,2 - Commissioning - Older people Pool,East Cambs - O P Team,SDS - Care and support Services
Cambridgeshire County Council,09-Oct-15,19336741-12115964,-1069.84,Redacted Personal Data,Individual,2 - Commissioning - Older people Pool,East Cambs - O P Team,SDS - Care and support Services
Cambridgeshire County Council,22-Oct-15,19377299-12186348,-1033.71,Eden View,Care Establishment,3 - Operations - Countywide Services,Countywide PD Service,Nursing Independent Sector
Cambridgeshire County Council,22-Oct-15,19398915-12185270,-1028.57,Barchester Healthcare Homes Ltd,Care Establishment,3 - Operations - Countywide Services,Countywide PD Service,Nursing Independent Sector
Cambridgeshire County Council,13-Oct-15,19393098-12128321,-1021.44,Papworth Trust#1,Trust (Other),CSC,Community Support Service ECF,Grants to Voluntary Bodies
Cambridgeshire County Council,09-Oct-15,18525051-12118888,-997.43,Granta Housing -4 Kay Hitch Way,Care Establishment,2 - Operations - Learning Disability,JPC,Residential Independent Sector
Cambridgeshire County Council,09-Oct-15,18525052-12118889,-997.43,Granta Housing -4 Kay Hitch Way,Care Establishment,2 - Operations - Learning Disability,JPC,Residential Independent Sector
Cambridgeshire County Council,09-Oct-15,18525053-12118890,-997.43,Granta Housing -4 Kay Hitch Way,Care Establishment,2 - Operations - Learning Disability,JPC,Residential Independent Sector
Cambridgeshire County Council,09-Oct-15,18525054-12118891,-997.43,Granta Housing -4 Kay Hitch Way,Care Establishment,2 - Operations - Learning Disability,JPC,Residential Independent Sector
Cambridgeshire County Council,09-Oct-15,18525055-12118892,-997.43,Granta Housing -4 Kay Hitch Way,Care Establishment,2 - Operations - Learning Disability,JPC,Residential Independent Sector
Cambridgeshire County Council,09-Oct-15,18525059-12118893,-997.43,Granta Housing -4 Kay Hitch Way,Care Establishment,2 - Operations - Learning Disability,JPC,Residential Independent Sector
Cambridgeshire County Council,09-Oct-15,18525060-12118894,-997.43,Granta Housing -4 Kay Hitch Way,Care Establishment,2 - Operations - Learning Disability,JPC,Residential Independent Sector
Cambridgeshire County Council,09-Oct-15,18525061-12118895,-997.43,Granta Housing -4 Kay Hitch Way,Care Establishment,2 - Operations - Learning Disability,JPC,Residential Independent Sector
Cambridgeshire County Council,09-Oct-15,18525063-12118896,-997.43,Granta Housing -4 Kay Hitch Way,Care Establishment,2 - Operations - Learning Disability,JPC,Residential Independent Sector
Cambridgeshire County Council,09-Oct-15,18525064-12118897,-997.43,Granta Housing -4 Kay Hitch Way,Care Establishment,2 - Operations - Learning Disability,JPC,Residential Independent Sector
Cambridgeshire County Council,09-Oct-15,18525065-12118898,-997.43,Granta Housing -4 Kay Hitch Way,Care Establishment,2 - Operations - Learning Disability,JPC,Residential Independent Sector
Cambridgeshire County Council,09-Oct-15,18525067-12118899,-997.43,Granta Housing -4 Kay Hitch Way,Care Establishment,2 - Operations - Learning Disability,JPC,Residential Independent Sector
Cambridgeshire County Council,09-Oct-15,18525068-12118900,-997.43,Granta Housing -4 Kay Hitch Way,Care Establishment,2 - Operations - Learning Disability,JPC,Residential Independent Sector
Cambridgeshire County Council,09-Oct-15,18525069-12118901,-997.43,Granta Housing -4 Kay Hitch Way,Care Establishment,2 - Operations - Learning Disability,JPC,Residential Independent Sector
Cambridgeshire County Council,09-Oct-15,18525205-12118902,-997.43,Granta Housing -4 Kay Hitch Way,Care Establishment,2 - Operations - Learning Disability,JPC,Residential Independent Sector
Cambridgeshire County Council,09-Oct-15,18525206-12118903,-997.43,Granta Housing -4 Kay Hitch Way,Care Establishment,2 - Operations - Learning Disability,JPC,Residential Independent Sector
Cambridgeshire County Council,09-Oct-15,18525209-12118904,-997.43,Granta Housing -4 Kay Hitch Way,Care Establishment,2 - Operations - Learning Disability,JPC,Residential Independent Sector
Cambridgeshire County Council,09-Oct-15,18525211-12118906,-997.43,Granta Housing -4 Kay Hitch Way,Care Establishment,2 - Operations - Learning Disability,JPC,Residential Independent Sector
Cambridgeshire County Council,09-Oct-15,18525212-12118907,-997.43,Granta Housing -4 Kay Hitch Way,Care Establishment,2 - Operations - Learning Disability,JPC,Residential Independent Sector
Cambridgeshire County Council,09-Oct-15,18525213-12118908,-997.43,Granta Housing -4 Kay Hitch Way,Care Establishment,2 - Operations - Learning Disability,JPC,Residential Independent Sector
Cambridgeshire County Council,09-Oct-15,18525214-12118909,-997.43,Granta Housing -4 Kay Hitch Way,Care Establishment,2 - Operations - Learning Disability,JPC,Residential Independent Sector
Cambridgeshire County Council,09-Oct-15,18525215-12118910,-997.43,Granta Housing -4 Kay Hitch Way,Care Establishment,2 - Operations - Learning Disability,JPC,Residential Independent Sector
Cambridgeshire County Council,09-Oct-15,18525219-12118911,-997.43,Granta Housing -4 Kay Hitch Way,Care Establishment,2 - Operations - Learning Disability,JPC,Residential Independent Sector
Cambridgeshire County Council,09-Oct-15,18525222-12118912,-997.43,Granta Housing -4 Kay Hitch Way,Care Establishment,2 - Operations - Learning Disability,JPC,Residential Independent Sector
Cambridgeshire County Council,09-Oct-15,18525226-12118913,-997.43,Granta Housing -4 Kay Hitch Way,Care Establishment,2 - Operations - Learning Disability,JPC,Residential Independent Sector
Cambridgeshire County Council,09-Oct-15,18525227-12118914,-997.43,Granta Housing -4 Kay Hitch Way,Care Establishment,2 - Operations - Learning Disability,JPC,Residential Independent Sector
Cambridgeshire County Council,09-Oct-15,18525229-12118915,-997.43,Granta Housing -4 Kay Hitch Way,Care Establishment,2 - Operations - Learning Disability,JPC,Residential Independent Sector
Cambridgeshire County Council,22-Oct-15,19443363-12183235,-982.32,Macintyre Care,Charity,2 - Operations - Learning Disability,LDP City Team,Residential Independent Sector
Cambridgeshire County Council,23-Oct-15,19343853-12191504,-979.05,Guidant Group,Trade Supplier,CSC,"Hawthorns Adolescent, Cambridge",Pay - Agency Staff
Cambridgeshire County Council,29-Oct-15,19444897-12210643,-937.37,Redacted Personal Data,Individual,2 - Operations - Learning Disability,LDP City Team,Residential Independent Sector
Cambridgeshire County Council,29-Oct-15,19444898-12210644,-937.37,Redacted Personal Data,Individual,2 - Operations - Learning Disability,LDP City Team,Residential Independent Sector
Cambridgeshire County Council,29-Oct-15,19444900-12210646,-937.37,Redacted Personal Data,Individual,2 - Operations - Learning Disability,LDP City Team,Residential Independent Sector
Cambridgeshire County Council,29-Oct-15,19444901-12210647,-937.37,Redacted Personal Data,Individual,2 - Operations - Learning Disability,LDP City Team,Residential Independent Sector
Cambridgeshire County Council,29-Oct-15,19444902-12210648,-937.37,Redacted Personal Data,Individual,2 - Operations - Learning Disability,LDP City Team,Residential Independent Sector
Cambridgeshire County Council,29-Oct-15,19444903-12210649,-937.37,Redacted Personal Data,Individual,2 - Operations - Learning Disability,LDP City Team,Residential Independent Sector
Cambridgeshire County Council,29-Oct-15,19444904-12210650,-937.37,Redacted Personal Data,Individual,2 - Operations - Learning Disability,LDP City Team,Residential Independent Sector
Cambridgeshire County Council,29-Oct-15,19444905-12210651,-937.37,Redacted Personal Data,Individual,2 - Operations - Learning Disability,LDP City Team,Residential Independent Sector
Cambridgeshire County Council,29-Oct-15,19444906-12210652,-937.37,Redacted Personal Data,Individual,2 - Operations - Learning Disability,LDP City Team,Residential Independent Sector
Cambridgeshire County Council,29-Oct-15,19444907-12210653,-937.37,Redacted Personal Data,Individual,2 - Operations - Learning Disability,LDP City Team,Residential Independent Sector
Cambridgeshire County Council,29-Oct-15,19444908-12210654,-937.37,Redacted Personal Data,Individual,2 - Operations - Learning Disability,LDP City Team,Residential Independent Sector
Cambridgeshire County Council,29-Oct-15,19444909-12210655,-937.37,Redacted Personal Data,Individual,2 - Operations - Learning Disability,LDP City Team,Residential Independent Sector
Cambridgeshire County Council,29-Oct-15,19444910-12210656,-937.37,Redacted Personal Data,Individual,2 - Operations - Learning Disability,LDP City Team,Residential Independent Sector
Cambridgeshire County Council,29-Oct-15,19444911-12210657,-937.37,Redacted Personal Data,Individual,2 - Operations - Learning Disability,LDP City Team,Residential Independent Sector
Cambridgeshire County Council,29-Oct-15,19444913-12210659,-937.37,Redacted Personal Data,Individual,2 - Operations - Learning Disability,LDP City Team,Residential Independent Sector
Cambridgeshire County Council,29-Oct-15,19444914-12210660,-937.37,Redacted Personal Data,Individual,2 - Operations - Learning Disability,LDP City Team,Residential Independent Sector
Cambridgeshire County Council,29-Oct-15,19444915-12210661,-937.37,Redacted Personal Data,Individual,2 - Operations - Learning Disability,LDP City Team,Residential Independent Sector
Cambridgeshire County Council,29-Oct-15,19444916-12210662,-937.37,Redacted Personal Data,Individual,2 - Operations - Learning Disability,LDP City Team,Residential Independent Sector
Cambridgeshire County Council,29-Oct-15,19444917-12210663,-937.37,Redacted Personal Data,Individual,2 - Operations - Learning Disability,LDP City Team,Residential Independent Sector
Cambridgeshire County Council,29-Oct-15,19444918-12210664,-937.37,Redacted Personal Data,Individual,2 - Operations - Learning Disability,LDP City Team,Residential Independent Sector
Cambridgeshire County Council,29-Oct-15,19444919-12210665,-937.37,Redacted Personal Data,Individual,2 - Operations - Learning Disability,LDP City Team,Residential Independent Sector
Cambridgeshire County Council,29-Oct-15,19444920-12210666,-937.37,Redacted Personal Data,Individual,2 - Operations - Learning Disability,LDP City Team,Residential Independent Sector
Cambridgeshire County Council,29-Oct-15,19444921-12210667,-937.37,Redacted Personal Data,Individual,2 - Operations - Learning Disability,LDP City Team,Residential Independent Sector
Cambridgeshire County Council,29-Oct-15,19444922-12210668,-937.37,Redacted Personal Data,Individual,2 - Operations - Learning Disability,LDP City Team,Residential Independent Sector
Cambridgeshire County Council,29-Oct-15,19444923-12210669,-937.37,Redacted Personal Data,Individual,2 - Operations - Learning Disability,LDP City Team,Residential Independent Sector
Cambridgeshire County Council,29-Oct-15,19444924-12210670,-937.37,Redacted Personal Data,Individual,2 - Operations - Learning Disability,LDP City Team,Residential Independent Sector
Cambridgeshire County Council,29-Oct-15,19444925-12210671,-937.37,Redacted Personal Data,Individual,2 - Operations - Learning Disability,LDP City Team,Residential Independent Sector
Cambridgeshire County Council,29-Oct-15,19444926-12210672,-937.37,Redacted Personal Data,Individual,2 - Operations - Learning Disability,LDP City Team,Residential Independent Sector
Cambridgeshire County Council,29-Oct-15,19444927-12210673,-937.37,Redacted Personal Data,Individual,2 - Operations - Learning Disability,LDP City Team,Residential Independent Sector
Cambridgeshire County Council,29-Oct-15,19444928-12210674,-937.37,Redacted Personal Data,Individual,2 - Operations - Learning Disability,LDP City Team,Residential Independent Sector
Cambridgeshire County Council,29-Oct-15,19444930-12210676,-937.37,Redacted Personal Data,Individual,2 - Operations - Learning Disability,LDP City Team,Residential Independent Sector
Cambridgeshire County Council,29-Oct-15,19444931-12210677,-937.37,Redacted Personal Data,Individual,2 - Operations - Learning Disability,LDP City Team,Residential Independent Sector
Cambridgeshire County Council,29-Oct-15,19444932-12210678,-937.37,Redacted Personal Data,Individual,2 - Operations - Learning Disability,LDP City Team,Residential Independent Sector
Cambridgeshire County Council,29-Oct-15,19444933-12210679,-937.37,Redacted Personal Data,Individual,2 - Operations - Learning Disability,LDP City Team,Residential Independent Sector
Cambridgeshire County Council,29-Oct-15,19444934-12210680,-937.37,Redacted Personal Data,Individual,2 - Operations - Learning Disability,LDP City Team,Residential Independent Sector
Cambridgeshire County Council,29-Oct-15,19444935-12210681,-937.37,Redacted Personal Data,Individual,2 - Operations - Learning Disability,LDP City Team,Residential Independent Sector
Cambridgeshire County Council,29-Oct-15,19444936-12210682,-937.37,Redacted Personal Data,Individual,2 - Operations - Learning Disability,LDP City Team,Residential Independent Sector
Cambridgeshire County Council,29-Oct-15,19444937-12210683,-937.37,Redacted Personal Data,Individual,2 - Operations - Learning Disability,LDP City Team,Residential Independent Sector
Cambridgeshire County Council,29-Oct-15,19444938-12210684,-937.37,Redacted Personal Data,Individual,2 - Operations - Learning Disability,LDP City Team,Residential Independent Sector
Cambridgeshire County Council,29-Oct-15,19444939-12210685,-937.37,Redacted Personal Data,Individual,2 - Operations - Learning Disability,LDP City Team,Residential Independent Sector
Cambridgeshire County Council,09-Oct-15,19336718-12115941,-917.01,Redacted Personal Data,Individual,2 - Commissioning - Older people Pool,East Cambs - O P Team,SDS - Care and support Services
Cambridgeshire County Council,22-Oct-15,19413600-12183765,-890,Abbey Healthcare (Huntingdon) Ltd,Care Establishment,2 - Commissioning - Older people Pool,Older People Mental Health Hunts,Nursing Independent Sector
Cambridgeshire County Council,22-Oct-15,19413604-12183767,-890,Abbey Healthcare (Huntingdon) Ltd,Care Establishment,2 - Commissioning - Older people Pool,Older People Mental Health Hunts,Nursing Independent Sector
Cambridgeshire County Council,22-Oct-15,19413605-12183768,-890,Abbey Healthcare (Huntingdon) Ltd,Care Establishment,2 - Commissioning - Older people Pool,Older People Mental Health Hunts,Nursing Independent Sector
Cambridgeshire County Council,22-Oct-15,19413606-12183769,-890,Abbey Healthcare (Huntingdon) Ltd,Care Establishment,2 - Commissioning - Older people Pool,Older People Mental Health Hunts,Nursing Independent Sector
Cambridgeshire County Council,22-Oct-15,19413607-12183770,-890,Abbey Healthcare (Huntingdon) Ltd,Care Establishment,2 - Commissioning - Older people Pool,Older People Mental Health Hunts,Nursing Independent Sector
Cambridgeshire County Council,22-Oct-15,19413608-12183771,-890,Abbey Healthcare (Huntingdon) Ltd,Care Establishment,2 - Commissioning - Older people Pool,Older People Mental Health Hunts,Nursing Independent Sector
Cambridgeshire County Council,01-Oct-15,19279607-12085948,-868,Cambridge City Council,Other Public Bodies,LGSS Managed,FM Caretaker Housing,Business rates
Cambridgeshire County Council,09-Oct-15,18525210-12118905,-854.94,Granta Housing -4 Kay Hitch Way,Care Establishment,2 - Operations - Learning Disability,JPC,Residential Independent Sector
Cambridgeshire County Council,22-Oct-15,19443116-12186971,-854.25,Woodlands Care Centre,Care Establishment,2 - Commissioning - Older people Pool,Older People Mental Health City & South,Nursing Independent Sector
Cambridgeshire County Council,22-Oct-15,19443117-12186972,-854.25,Woodlands Care Centre,Care Establishment,2 - Commissioning - Older people Pool,Older People Mental Health City & South,Nursing Independent Sector
Cambridgeshire County Council,22-Oct-15,19443118-12186973,-854.25,Woodlands Care Centre,Care Establishment,2 - Commissioning - Older people Pool,Older People Mental Health City & South,Nursing Independent Sector
Cambridgeshire County Council,22-Oct-15,19443119-12186968,-854.25,Woodlands Care Centre,Care Establishment,2 - Commissioning - Older people Pool,Older People Mental Health City & South,Nursing Independent Sector
Cambridgeshire County Council,15-Oct-15,19410184-12134429,-850,Meadows Homecare Services,Care Establishment,3 - Operations - Countywide Services,Countywide PD Service,Day and Domicillary Care Independent Sector
Cambridgeshire County Council,15-Oct-15,19410185-12134430,-850,Meadows Homecare Services,Care Establishment,3 - Operations - Countywide Services,Countywide PD Service,Day and Domicillary Care Independent Sector
Cambridgeshire County Council,15-Oct-15,19410186-12134431,-850,Meadows Homecare Services,Care Establishment,3 - Operations - Countywide Services,Countywide PD Service,Day and Domicillary Care Independent Sector
Cambridgeshire County Council,15-Oct-15,19410187-12134432,-850,Meadows Homecare Services,Care Establishment,3 - Operations - Countywide Services,Countywide PD Service,Day and Domicillary Care Independent Sector
Cambridgeshire County Council,15-Oct-15,19410188-12134433,-850,Meadows Homecare Services,Care Establishment,3 - Operations - Countywide Services,Countywide PD Service,Day and Domicillary Care Independent Sector
Cambridgeshire County Council,15-Oct-15,19410189-12134434,-850,Meadows Homecare Services,Care Establishment,3 - Operations - Countywide Services,Countywide PD Service,Day and Domicillary Care Independent Sector
Cambridgeshire County Council,15-Oct-15,19410190-12134435,-850,Meadows Homecare Services,Care Establishment,3 - Operations - Countywide Services,Countywide PD Service,Day and Domicillary Care Independent Sector
Cambridgeshire County Council,15-Oct-15,19410191-12134436,-850,Meadows Homecare Services,Care Establishment,3 - Operations - Countywide Services,Countywide PD Service,Day and Domicillary Care Independent Sector
Cambridgeshire County Council,15-Oct-15,19410192-12134437,-850,Meadows Homecare Services,Care Establishment,3 - Operations - Countywide Services,Countywide PD Service,Day and Domicillary Care Independent Sector
Cambridgeshire County Council,15-Oct-15,19410193-12134438,-850,Meadows Homecare Services,Care Establishment,3 - Operations - Countywide Services,Countywide PD Service,Day and Domicillary Care Independent Sector
Cambridgeshire County Council,15-Oct-15,19410194-12134439,-850,Meadows Homecare Services,Care Establishment,3 - Operations - Countywide Services,Countywide PD Service,Day and Domicillary Care Independent Sector
Cambridgeshire County Council,15-Oct-15,19410196-12134441,-850,Meadows Homecare Services,Care Establishment,3 - Operations - Countywide Services,Countywide PD Service,Day and Domicillary Care Independent Sector
Cambridgeshire County Council,15-Oct-15,19410197-12134442,-850,Meadows Homecare Services,Care Establishment,3 - Operations - Countywide Services,Countywide PD Service,Day and Domicillary Care Independent Sector
Cambridgeshire County Council,15-Oct-15,19410198-12134443,-850,Meadows Homecare Services,Care Establishment,3 - Operations - Countywide Services,Countywide PD Service,Day and Domicillary Care Independent Sector
Cambridgeshire County Council,15-Oct-15,19410199-12134444,-850,Meadows Homecare Services,Care Establishment,3 - Operations - Countywide Services,Countywide PD Service,Day and Domicillary Care Independent Sector
Cambridgeshire County Council,15-Oct-15,19410200-12134445,-850,Meadows Homecare Services,Care Establishment,3 - Operations - Countywide Services,Countywide PD Service,Day and Domicillary Care Independent Sector
Cambridgeshire County Council,15-Oct-15,19410201-12134446,-850,Meadows Homecare Services,Care Establishment,3 - Operations - Countywide Services,Countywide PD Service,Day and Domicillary Care Independent Sector
Cambridgeshire County Council,15-Oct-15,19410202-12134447,-850,Meadows Homecare Services,Care Establishment,3 - Operations - Countywide Services,Countywide PD Service,Day and Domicillary Care Independent Sector
Cambridgeshire County Council,15-Oct-15,19410203-12134448,-850,Meadows Homecare Services,Care Establishment,3 - Operations - Countywide Services,Countywide PD Service,Day and Domicillary Care Independent Sector
Cambridgeshire County Council,15-Oct-15,19406370-12140080,-830.45,Conquest Care Homes (Soham) Ltd,Care Establishment,2 - Operations - Learning Disability,LDP E Cambs Special Needs,Day and Domicillary Care Independent Sector
Cambridgeshire County Council,15-Oct-15,19406371-12140081,-830.45,Conquest Care Homes (Soham) Ltd,Care Establishment,2 - Operations - Learning Disability,LDP E Cambs Special Needs,Day and Domicillary Care Independent Sector
Cambridgeshire County Council,15-Oct-15,19406380-12140090,-830.45,Conquest Care Homes (Soham) Ltd,Care Establishment,2 - Operations - Learning Disability,LDP E Cambs Special Needs,Day and Domicillary Care Independent Sector
Cambridgeshire County Council,15-Oct-15,19406384-12140094,-830.45,Conquest Care Homes (Soham) Ltd,Care Establishment,2 - Operations - Learning Disability,LDP E Cambs Special Needs,Day and Domicillary Care Independent Sector
Cambridgeshire County Council,15-Oct-15,19406391-12140101,-830.45,Conquest Care Homes (Soham) Ltd,Care Establishment,2 - Operations - Learning Disability,LDP E Cambs Special Needs,Day and Domicillary Care Independent Sector
Cambridgeshire County Council,15-Oct-15,19406395-12140105,-830.45,Conquest Care Homes (Soham) Ltd,Care Establishment,2 - Operations - Learning Disability,LDP E Cambs Special Needs,Day and Domicillary Care Independent Sector
Cambridgeshire County Council,15-Oct-15,19406650-12140049,-830.45,Conquest Care Homes (Soham) Ltd,Care Establishment,2 - Operations - Learning Disability,LDP E Cambs Special Needs,Day and Domicillary Care Independent Sector
Cambridgeshire County Council,15-Oct-15,19406663-12140061,-830.45,Conquest Care Homes (Soham) Ltd,Care Establishment,2 - Operations - Learning Disability,LDP E Cambs Special Needs,Day and Domicillary Care Independent Sector
Cambridgeshire County Council,15-Oct-15,19406667-12140065,-830.45,Conquest Care Homes (Soham) Ltd,Care Establishment,2 - Operations - Learning Disability,LDP E Cambs Special Needs,Day and Domicillary Care Independent Sector
Cambridgeshire County Council,15-Oct-15,19414435-12139970,-830.45,Conquest Care Homes (Soham) Ltd,Care Establishment,2 - Operations - Learning Disability,LDP E Cambs Special Needs,Day and Domicillary Care Independent Sector
Cambridgeshire County Council,15-Oct-15,19414440-12139975,-830.45,Conquest Care Homes (Soham) Ltd,Care Establishment,2 - Operations - Learning Disability,LDP E Cambs Special Needs,Day and Domicillary Care Independent Sector
Cambridgeshire County Council,15-Oct-15,19414453-12139987,-830.45,Conquest Care Homes (Soham) Ltd,Care Establishment,2 - Operations - Learning Disability,LDP E Cambs Special Needs,Day and Domicillary Care Independent Sector
Cambridgeshire County Council,15-Oct-15,19414458-12139992,-830.45,Conquest Care Homes (Soham) Ltd,Care Establishment,2 - Operations - Learning Disability,LDP E Cambs Special Needs,Day and Domicillary Care Independent Sector
Cambridgeshire County Council,15-Oct-15,19414460-12139994,-830.45,Conquest Care Homes (Soham) Ltd,Care Establishment,2 - Operations - Learning Disability,LDP E Cambs Special Needs,Day and Domicillary Care Independent Sector
Cambridgeshire County Council,15-Oct-15,19414463-12139996,-830.45,Conquest Care Homes (Soham) Ltd,Care Establishment,2 - Operations - Learning Disability,LDP E Cambs Special Needs,Day and Domicillary Care Independent Sector
Cambridgeshire County Council,15-Oct-15,19414466-12139999,-830.45,Conquest Care Homes (Soham) Ltd,Care Establishment,2 - Operations - Learning Disability,LDP E Cambs Special Needs,Day and Domicillary Care Independent Sector
Cambridgeshire County Council,15-Oct-15,19414468-12140001,-830.45,Conquest Care Homes (Soham) Ltd,Care Establishment,2 - Operations - Learning Disability,LDP E Cambs Special Needs,Day and Domicillary Care Independent Sector
Cambridgeshire County Council,15-Oct-15,19414469-12140002,-830.45,Conquest Care Homes (Soham) Ltd,Care Establishment,2 - Operations - Learning Disability,LDP E Cambs Special Needs,Day and Domicillary Care Independent Sector
Cambridgeshire County Council,15-Oct-15,19414482-12140015,-830.45,Conquest Care Homes (Soham) Ltd,Care Establishment,2 - Operations - Learning Disability,LDP E Cambs Special Needs,Day and Domicillary Care Independent Sector
Cambridgeshire County Council,15-Oct-15,19414486-12140017,-830.45,Conquest Care Homes (Soham) Ltd,Care Establishment,2 - Operations - Learning Disability,LDP E Cambs Special Needs,Day and Domicillary Care Independent Sector
Cambridgeshire County Council,15-Oct-15,19414490-12140021,-830.45,Conquest Care Homes (Soham) Ltd,Care Establishment,2 - Operations - Learning Disability,LDP E Cambs Special Needs,Day and Domicillary Care Independent Sector
Cambridgeshire County Council,15-Oct-15,19414491-12140022,-830.45,Conquest Care Homes (Soham) Ltd,Care Establishment,2 - Operations - Learning Disability,LDP E Cambs Special Needs,Day and Domicillary Care Independent Sector
Cambridgeshire County Council,15-Oct-15,19414504-12140032,-830.45,Conquest Care Homes (Soham) Ltd,Care Establishment,2 - Operations - Learning Disability,LDP E Cambs Special Needs,Day and Domicillary Care Independent Sector
Cambridgeshire County Council,15-Oct-15,19414508-12140036,-830.45,Conquest Care Homes (Soham) Ltd,Care Establishment,2 - Operations - Learning Disability,LDP E Cambs Special Needs,Day and Domicillary Care Independent Sector
Cambridgeshire County Council,09-Oct-15,19184950-12114161,-817.12,Chamarel Ld,Care Establishment,2 - Operations - Learning Disability,LDP City Team,Residential Accommodation - Adults - Independent Sector
Cambridgeshire County Council,09-Oct-15,19184976-12114183,-817.12,Chamarel Ld,Care Establishment,2 - Operations - Learning Disability,LDP City Team,Residential Accommodation - Adults - Independent Sector
Cambridgeshire County Council,07-Oct-15,19364700-12102384,-805.71,Hunters Healthcare (Hunters Down),Care Establishment,4 - Commissioning - Mental Health & Supporting People,Dom Blocks,Residential Independent Sector
Cambridgeshire County Council,29-Oct-15,19444899-12210645,-803.46,Redacted Personal Data,Individual,2 - Operations - Learning Disability,LDP City Team,Residential Independent Sector
Cambridgeshire County Council,29-Oct-15,19440301-12212290,-796.12,Bna Goldsborough Peterborough,Care Establishment,3 - Operations - Countywide Services,Countywide PD Service,Day and Domicillary Care Independent Sector
Cambridgeshire County Council,29-Oct-15,19440319-12212293,-796.12,Bna Goldsborough Peterborough,Care Establishment,3 - Operations - Countywide Services,Countywide PD Service,Day and Domicillary Care Independent Sector
Cambridgeshire County Council,29-Oct-15,19441354-12212298,-796.12,Bna Goldsborough Peterborough,Care Establishment,3 - Operations - Countywide Services,Countywide PD Service,Day and Domicillary Care Independent Sector
Cambridgeshire County Council,29-Oct-15,19445117-12212287,-796.12,Bna Goldsborough Peterborough,Care Establishment,3 - Operations - Countywide Services,Countywide PD Service,Day and Domicillary Care Independent Sector
Cambridgeshire County Council,29-Oct-15,19445118-12212288,-796.12,Bna Goldsborough Peterborough,Care Establishment,3 - Operations - Countywide Services,Countywide PD Service,Day and Domicillary Care Independent Sector
Cambridgeshire County Council,29-Oct-15,19445121-12212289,-796.12,Bna Goldsborough Peterborough,Care Establishment,3 - Operations - Countywide Services,Countywide PD Service,Day and Domicillary Care Independent Sector
Cambridgeshire County Council,15-Oct-15,19400295-12147917,-793.75,Dalmeny House Limited,Care Establishment,2 - Operations - Learning Disability,LDP E Cambs Special Needs,SDS - Care and support Services
Cambridgeshire County Council,15-Oct-15,19400304-12147925,-793.75,Dalmeny House Limited,Care Establishment,2 - Operations - Learning Disability,LDP E Cambs Special Needs,SDS - Care and support Services
Cambridgeshire County Council,15-Oct-15,19400308-12147928,-793.75,Dalmeny House Limited,Care Establishment,2 - Operations - Learning Disability,LDP E Cambs Special Needs,SDS - Care and support Services
Cambridgeshire County Council,15-Oct-15,19400309-12147929,-793.75,Dalmeny House Limited,Care Establishment,2 - Operations - Learning Disability,LDP E Cambs Special Needs,SDS - Care and support Services
Cambridgeshire County Council,15-Oct-15,19400311-12147931,-793.75,Dalmeny House Limited,Care Establishment,2 - Operations - Learning Disability,LDP E Cambs Special Needs,SDS - Care and support Services
Cambridgeshire County Council,15-Oct-15,19400315-12147935,-793.75,Dalmeny House Limited,Care Establishment,2 - Operations - Learning Disability,LDP E Cambs Special Needs,SDS - Care and support Services
Cambridgeshire County Council,15-Oct-15,19400316-12147936,-793.75,Dalmeny House Limited,Care Establishment,2 - Operations - Learning Disability,LDP E Cambs Special Needs,SDS - Care and support Services
Cambridgeshire County Council,15-Oct-15,19400319-12147939,-793.75,Dalmeny House Limited,Care Establishment,2 - Operations - Learning Disability,LDP E Cambs Special Needs,SDS - Care and support Services
Cambridgeshire County Council,15-Oct-15,19408810-12147854,-793.75,Dalmeny House Limited,Care Establishment,2 - Operations - Learning Disability,LDP E Cambs Special Needs,SDS - Care and support Services
Cambridgeshire County Council,15-Oct-15,19408811-12147855,-793.75,Dalmeny House Limited,Care Establishment,2 - Operations - Learning Disability,LDP E Cambs Special Needs,SDS - Care and support Services
Cambridgeshire County Council,15-Oct-15,19408816-12147859,-793.75,Dalmeny House Limited,Care Establishment,2 - Operations - Learning Disability,LDP E Cambs Special Needs,SDS - Care and support Services
Cambridgeshire County Council,15-Oct-15,19408818-12147861,-793.75,Dalmeny House Limited,Care Establishment,2 - Operations - Learning Disability,LDP E Cambs Special Needs,SDS - Care and support Services
Cambridgeshire County Council,15-Oct-15,19408822-12147864,-793.75,Dalmeny House Limited,Care Establishment,2 - Operations - Learning Disability,LDP E Cambs Special Needs,SDS - Care and support Services
Cambridgeshire County Council,15-Oct-15,19408832-12147874,-793.75,Dalmeny House Limited,Care Establishment,2 - Operations - Learning Disability,LDP E Cambs Special Needs,SDS - Care and support Services
Cambridgeshire County Council,15-Oct-15,19408837-12147879,-793.75,Dalmeny House Limited,Care Establishment,2 - Operations - Learning Disability,LDP E Cambs Special Needs,SDS - Care and support Services
Cambridgeshire County Council,15-Oct-15,19408839-12147881,-793.75,Dalmeny House Limited,Care Establishment,2 - Operations - Learning Disability,LDP E Cambs Special Needs,SDS - Care and support Services
Cambridgeshire County Council,15-Oct-15,19408842-12147884,-793.75,Dalmeny House Limited,Care Establishment,2 - Operations - Learning Disability,LDP E Cambs Special Needs,SDS - Care and support Services
Cambridgeshire County Council,15-Oct-15,19408848-12147890,-793.75,Dalmeny House Limited,Care Establishment,2 - Operations - Learning Disability,LDP E Cambs Special Needs,SDS - Care and support Services
Cambridgeshire County Council,15-Oct-15,19408851-12147893,-793.75,Dalmeny House Limited,Care Establishment,2 - Operations - Learning Disability,LDP E Cambs Special Needs,SDS - Care and support Services
Cambridgeshire County Council,15-Oct-15,19408852-12147894,-793.75,Dalmeny House Limited,Care Establishment,2 - Operations - Learning Disability,LDP E Cambs Special Needs,SDS - Care and support Services
Cambridgeshire County Council,15-Oct-15,19408858-12147900,-793.75,Dalmeny House Limited,Care Establishment,2 - Operations - Learning Disability,LDP E Cambs Special Needs,SDS - Care and support Services
Cambridgeshire County Council,15-Oct-15,19408865-12147906,-793.75,Dalmeny House Limited,Care Establishment,2 - Operations - Learning Disability,LDP E Cambs Special Needs,SDS - Care and support Services
Cambridgeshire County Council,15-Oct-15,19408866-12147907,-793.75,Dalmeny House Limited,Care Establishment,2 - Operations - Learning Disability,LDP E Cambs Special Needs,SDS - Care and support Services
Cambridgeshire County Council,12-Oct-15,19258914-12122563,-791.4,The Great British Card Company Plc,Trade Supplier,Corporate Services,Libraries - Cambourne,Materials for resale
Cambridgeshire County Council,09-Oct-15,19378284-12116675,-760,Bramley Court,Care Establishment,2 - Commissioning - Older people Pool,Older People Mental Health City & South,Nursing Independent Sector
Cambridgeshire County Council,09-Oct-15,19378285-12116676,-760,Bramley Court,Care Establishment,2 - Commissioning - Older people Pool,Older People Mental Health City & South,Nursing Independent Sector
Cambridgeshire County Council,09-Oct-15,19378287-12116678,-760,Bramley Court,Care Establishment,2 - Commissioning - Older people Pool,Older People Mental Health City & South,Nursing Independent Sector
Cambridgeshire County Council,09-Oct-15,19378290-12116681,-760,Bramley Court,Care Establishment,2 - Commissioning - Older people Pool,Older People Mental Health City & South,Nursing Independent Sector
Cambridgeshire County Council,09-Oct-15,19378295-12116686,-760,Bramley Court,Care Establishment,2 - Commissioning - Older people Pool,Older People Mental Health City & South,Nursing Independent Sector
Cambridgeshire County Council,09-Oct-15,19378296-12116687,-760,Bramley Court,Care Establishment,2 - Commissioning - Older people Pool,Older People Mental Health City & South,Nursing Independent Sector
Cambridgeshire County Council,09-Oct-15,19378800-12116670,-760,Bramley Court,Care Establishment,2 - Commissioning - Older people Pool,Older People Mental Health City & South,Nursing Independent Sector
Cambridgeshire County Council,09-Oct-15,19378801-12116671,-760,Bramley Court,Care Establishment,2 - Commissioning - Older people Pool,Older People Mental Health City & South,Nursing Independent Sector
Cambridgeshire County Council,09-Oct-15,19378803-12116673,-760,Bramley Court,Care Establishment,2 - Commissioning - Older people Pool,Older People Mental Health City & South,Nursing Independent Sector
Cambridgeshire County Council,09-Oct-15,19378804-12116674,-760,Bramley Court,Care Establishment,2 - Commissioning - Older people Pool,Older People Mental Health City & South,Nursing Independent Sector
Cambridgeshire County Council,09-Oct-15,19379301-12116654,-760,Bramley Court,Care Establishment,2 - Commissioning - Older people Pool,Older People Mental Health City & South,Nursing Independent Sector
Cambridgeshire County Council,09-Oct-15,19379305-12116658,-760,Bramley Court,Care Establishment,2 - Commissioning - Older people Pool,Older People Mental Health City & South,Nursing Independent Sector
Cambridgeshire County Council,09-Oct-15,19379306-12116659,-760,Bramley Court,Care Establishment,2 - Commissioning - Older people Pool,Older People Mental Health City & South,Nursing Independent Sector
Cambridgeshire County Council,09-Oct-15,19379311-12116664,-760,Bramley Court,Care Establishment,2 - Commissioning - Older people Pool,Older People Mental Health City & South,Nursing Independent Sector
Cambridgeshire County Council,09-Oct-15,19379316-12116668,-760,Bramley Court,Care Establishment,2 - Commissioning - Older people Pool,Older People Mental Health City & South,Nursing Independent Sector
Cambridgeshire County Council,09-Oct-15,19379317-12116669,-760,Bramley Court,Care Establishment,2 - Commissioning - Older people Pool,Older People Mental Health City & South,Nursing Independent Sector
Cambridgeshire County Council,15-Oct-15,19397932-12151097,-757.29,Carewatch,Care Establishment,3 - Operations - Countywide Services,Countywide PD Service,Day and Domicillary Care Independent Sector
Cambridgeshire County Council,15-Oct-15,19397933-12151098,-757.29,Carewatch,Care Establishment,3 - Operations - Countywide Services,Countywide PD Service,Day and Domicillary Care Independent Sector
Cambridgeshire County Council,15-Oct-15,19397934-12151099,-757.29,Carewatch,Care Establishment,3 - Operations - Countywide Services,Countywide PD Service,Day and Domicillary Care Independent Sector
Cambridgeshire County Council,15-Oct-15,19397936-12151101,-757.29,Carewatch,Care Establishment,3 - Operations - Countywide Services,Countywide PD Service,Day and Domicillary Care Independent Sector
Cambridgeshire County Council,15-Oct-15,19397938-12151103,-757.29,Carewatch,Care Establishment,3 - Operations - Countywide Services,Countywide PD Service,Day and Domicillary Care Independent Sector
Cambridgeshire County Council,15-Oct-15,19397941-12151106,-757.29,Carewatch,Care Establishment,3 - Operations - Countywide Services,Countywide PD Service,Day and Domicillary Care Independent Sector
Cambridgeshire County Council,15-Oct-15,19397943-12151108,-757.29,Carewatch,Care Establishment,3 - Operations - Countywide Services,Countywide PD Service,Day and Domicillary Care Independent Sector
Cambridgeshire County Council,15-Oct-15,19397944-12151109,-757.29,Carewatch,Care Establishment,3 - Operations - Countywide Services,Countywide PD Service,Day and Domicillary Care Independent Sector
Cambridgeshire County Council,15-Oct-15,19397945-12151110,-757.29,Carewatch,Care Establishment,3 - Operations - Countywide Services,Countywide PD Service,Day and Domicillary Care Independent Sector
Cambridgeshire County Council,15-Oct-15,19397948-12151113,-757.29,Carewatch,Care Establishment,3 - Operations - Countywide Services,Countywide PD Service,Day and Domicillary Care Independent Sector
Cambridgeshire County Council,15-Oct-15,19397951-12151116,-757.29,Carewatch,Care Establishment,3 - Operations - Countywide Services,Countywide PD Service,Day and Domicillary Care Independent Sector
Cambridgeshire County Council,15-Oct-15,19397952-12151117,-757.29,Carewatch,Care Establishment,3 - Operations - Countywide Services,Countywide PD Service,Day and Domicillary Care Independent Sector
Cambridgeshire County Council,15-Oct-15,19397953-12151118,-757.29,Carewatch,Care Establishment,3 - Operations - Countywide Services,Countywide PD Service,Day and Domicillary Care Independent Sector
Cambridgeshire County Council,15-Oct-15,19397954-12151119,-757.29,Carewatch,Care Establishment,3 - Operations - Countywide Services,Countywide PD Service,Day and Domicillary Care Independent Sector
Cambridgeshire County Council,15-Oct-15,19397955-12151120,-757.29,Carewatch,Care Establishment,3 - Operations - Countywide Services,Countywide PD Service,Day and Domicillary Care Independent Sector
Cambridgeshire County Council,15-Oct-15,19406073-12151018,-757.29,Carewatch,Care Establishment,3 - Operations - Countywide Services,Countywide PD Service,Day and Domicillary Care Independent Sector
Cambridgeshire County Council,15-Oct-15,19406074-12151019,-757.29,Carewatch,Care Establishment,3 - Operations - Countywide Services,Countywide PD Service,Day and Domicillary Care Independent Sector
Cambridgeshire County Council,15-Oct-15,19406076-12151021,-757.29,Carewatch,Care Establishment,3 - Operations - Countywide Services,Countywide PD Service,Day and Domicillary Care Independent Sector
Cambridgeshire County Council,15-Oct-15,19406078-12151023,-757.29,Carewatch,Care Establishment,3 - Operations - Countywide Services,Countywide PD Service,Day and Domicillary Care Independent Sector
Cambridgeshire County Council,15-Oct-15,19413884-12150986,-757.29,Carewatch,Care Establishment,3 - Operations - Countywide Services,Countywide PD Service,Day and Domicillary Care Independent Sector
Cambridgeshire County Council,15-Oct-15,19413885-12150987,-757.29,Carewatch,Care Establishment,3 - Operations - Countywide Services,Countywide PD Service,Day and Domicillary Care Independent Sector
Cambridgeshire County Council,15-Oct-15,19397937-12151102,-756.43,Carewatch,Care Establishment,3 - Operations - Countywide Services,Countywide PD Service,Day and Domicillary Care Independent Sector
Cambridgeshire County Council,15-Oct-15,19397940-12151105,-751.28,Carewatch,Care Establishment,3 - Operations - Countywide Services,Countywide PD Service,Day and Domicillary Care Independent Sector
Cambridgeshire County Council,15-Oct-15,19397947-12151112,-751.28,Carewatch,Care Establishment,3 - Operations - Countywide Services,Countywide PD Service,Day and Domicillary Care Independent Sector
Cambridgeshire County Council,15-Oct-15,19406077-12151022,-751.28,Carewatch,Care Establishment,3 - Operations - Countywide Services,Countywide PD Service,Day and Domicillary Care Independent Sector
Cambridgeshire County Council,15-Oct-15,19413881-12150983,-751.28,Carewatch,Care Establishment,3 - Operations - Countywide Services,Countywide PD Service,Day and Domicillary Care Independent Sector
Cambridgeshire County Council,15-Oct-15,19413886-12150988,-751.28,Carewatch,Care Establishment,3 - Operations - Countywide Services,Countywide PD Service,Day and Domicillary Care Independent Sector
Cambridgeshire County Council,01-Oct-15,19265228-12087549,-750,Redacted Personal Data,Individual,3 - Operations - Countywide Services,Countywide PD Service,SDS - Care and support Services
Cambridgeshire County Council,01-Oct-15,19265230-12087551,-750,Redacted Personal Data,Individual,3 - Operations - Countywide Services,Countywide PD Service,SDS - Care and support Services
Cambridgeshire County Council,01-Oct-15,19265257-12087578,-750,Redacted Personal Data,Individual,3 - Operations - Countywide Services,Countywide PD Service,SDS - Care and support Services
Cambridgeshire County Council,01-Oct-15,19265258-12087579,-750,Redacted Personal Data,Individual,3 - Operations - Countywide Services,Countywide PD Service,SDS - Care and support Services
Cambridgeshire County Council,01-Oct-15,19265259-12087580,-750,Redacted Personal Data,Individual,3 - Operations - Countywide Services,Countywide PD Service,SDS - Care and support Services
Cambridgeshire County Council,01-Oct-15,19265260-12087581,-750,Redacted Personal Data,Individual,3 - Operations - Countywide Services,Countywide PD Service,SDS - Care and support Services
Cambridgeshire County Council,01-Oct-15,19265261-12087582,-750,Redacted Personal Data,Individual,3 - Operations - Countywide Services,Countywide PD Service,SDS - Care and support Services
Cambridgeshire County Council,01-Oct-15,19265262-12087583,-750,Redacted Personal Data,Individual,3 - Operations - Countywide Services,Countywide PD Service,SDS - Care and support Services
Cambridgeshire County Council,01-Oct-15,19265266-12087506,-750,Redacted Personal Data,Individual,3 - Operations - Countywide Services,Countywide PD Service,SDS - Care and support Services
Cambridgeshire County Council,01-Oct-15,19265270-12087510,-750,Redacted Personal Data,Individual,3 - Operations - Countywide Services,Countywide PD Service,SDS - Care and support Services
Cambridgeshire County Council,01-Oct-15,19265277-12087517,-750,Redacted Personal Data,Individual,3 - Operations - Countywide Services,Countywide PD Service,SDS - Care and support Services
Cambridgeshire County Council,01-Oct-15,19265281-12087521,-750,Redacted Personal Data,Individual,3 - Operations - Countywide Services,Countywide PD Service,SDS - Care and support Services
Cambridgeshire County Council,01-Oct-15,19265296-12087536,-750,Redacted Personal Data,Individual,3 - Operations - Countywide Services,Countywide PD Service,SDS - Care and support Services
Cambridgeshire County Council,01-Oct-15,19265298-12087538,-750,Redacted Personal Data,Individual,3 - Operations - Countywide Services,Countywide PD Service,SDS - Care and support Services
Cambridgeshire County Council,01-Oct-15,19265301-12087498,-750,Redacted Personal Data,Individual,3 - Operations - Countywide Services,Countywide PD Service,SDS - Care and support Services
Cambridgeshire County Council,01-Oct-15,19265303-12087500,-750,Redacted Personal Data,Individual,3 - Operations - Countywide Services,Countywide PD Service,SDS - Care and support Services
Cambridgeshire County Council,15-Oct-15,19325242-12148800,-750,The Gables Specialist Nursing Home,Care Establishment,2 - Commissioning - Older people Pool,Older People Mental Health City & South,Nursing Independent Sector
Cambridgeshire County Council,15-Oct-15,19325243-12148801,-750,The Gables Specialist Nursing Home,Care Establishment,2 - Commissioning - Older people Pool,Older People Mental Health City & South,Nursing Independent Sector
Cambridgeshire County Council,15-Oct-15,19325244-12148802,-750,The Gables Specialist Nursing Home,Care Establishment,2 - Commissioning - Older people Pool,Older People Mental Health City & South,Nursing Independent Sector
Cambridgeshire County Council,15-Oct-15,19325247-12148805,-750,The Gables Specialist Nursing Home,Care Establishment,2 - Commissioning - Older people Pool,Older People Mental Health City & South,Nursing Independent Sector
Cambridgeshire County Council,15-Oct-15,19325248-12148806,-750,The Gables Specialist Nursing Home,Care Establishment,2 - Commissioning - Older people Pool,Older People Mental Health City & South,Nursing Independent Sector
Cambridgeshire County Council,15-Oct-15,19325249-12148807,-750,The Gables Specialist Nursing Home,Care Establishment,2 - Commissioning - Older people Pool,Older People Mental Health City & South,Nursing Independent Sector
Cambridgeshire County Council,15-Oct-15,19325251-12148809,-750,The Gables Specialist Nursing Home,Care Establishment,2 - Commissioning - Older people Pool,Older People Mental Health City & South,Nursing Independent Sector
Cambridgeshire County Council,15-Oct-15,19325252-12148810,-750,The Gables Specialist Nursing Home,Care Establishment,2 - Commissioning - Older people Pool,Older People Mental Health City & South,Nursing Independent Sector
Cambridgeshire County Council,15-Oct-15,19325254-12148812,-750,The Gables Specialist Nursing Home,Care Establishment,2 - Commissioning - Older people Pool,Older People Mental Health City & South,Nursing Independent Sector
Cambridgeshire County Council,15-Oct-15,19325255-12148813,-750,The Gables Specialist Nursing Home,Care Establishment,2 - Commissioning - Older people Pool,Older People Mental Health City & South,Nursing Independent Sector
Cambridgeshire County Council,15-Oct-15,19325256-12148814,-750,The Gables Specialist Nursing Home,Care Establishment,2 - Commissioning - Older people Pool,Older People Mental Health City & South,Nursing Independent Sector
Cambridgeshire County Council,15-Oct-15,19325258-12148816,-750,The Gables Specialist Nursing Home,Care Establishment,2 - Commissioning - Older people Pool,Older People Mental Health City & South,Nursing Independent Sector
Cambridgeshire County Council,15-Oct-15,19325264-12148822,-750,The Gables Specialist Nursing Home,Care Establishment,2 - Commissioning - Older people Pool,Older People Mental Health City & South,Nursing Independent Sector
Cambridgeshire County Council,15-Oct-15,19325267-12148824,-750,The Gables Specialist Nursing Home,Care Establishment,2 - Commissioning - Older people Pool,Older People Mental Health City & South,Nursing Independent Sector
Cambridgeshire County Council,15-Oct-15,19325269-12148826,-750,The Gables Specialist Nursing Home,Care Establishment,2 - Commissioning - Older people Pool,Older People Mental Health City & South,Nursing Independent Sector
Cambridgeshire County Council,15-Oct-15,19325270-12148827,-750,The Gables Specialist Nursing Home,Care Establishment,2 - Commissioning - Older people Pool,Older People Mental Health City & South,Nursing Independent Sector
Cambridgeshire County Council,15-Oct-15,19325271-12148828,-750,The Gables Specialist Nursing Home,Care Establishment,2 - Commissioning - Older people Pool,Older People Mental Health City & South,Nursing Independent Sector
Cambridgeshire County Council,15-Oct-15,19325276-12148832,-750,The Gables Specialist Nursing Home,Care Establishment,2 - Commissioning - Older people Pool,Older People Mental Health City & South,Nursing Independent Sector
Cambridgeshire County Council,15-Oct-15,19325277-12148833,-750,The Gables Specialist Nursing Home,Care Establishment,2 - Commissioning - Older people Pool,Older People Mental Health City & South,Nursing Independent Sector
Cambridgeshire County Council,15-Oct-15,19325282-12148836,-750,The Gables Specialist Nursing Home,Care Establishment,2 - Commissioning - Older people Pool,Older People Mental Health City & South,Nursing Independent Sector
Cambridgeshire County Council,15-Oct-15,19325283-12148837,-750,The Gables Specialist Nursing Home,Care Establishment,2 - Commissioning - Older people Pool,Older People Mental Health City & South,Nursing Independent Sector
Cambridgeshire County Council,15-Oct-15,19325287-12148841,-750,The Gables Specialist Nursing Home,Care Establishment,2 - Commissioning - Older people Pool,Older People Mental Health City & South,Nursing Independent Sector
Cambridgeshire County Council,15-Oct-15,19325288-12148842,-750,The Gables Specialist Nursing Home,Care Establishment,2 - Commissioning - Older people Pool,Older People Mental Health City & South,Nursing Independent Sector
Cambridgeshire County Council,15-Oct-15,19330619-12148727,-750,The Gables Specialist Nursing Home,Care Establishment,2 - Commissioning - Older people Pool,Older People Mental Health E Cambs,Nursing Independent Sector
Cambridgeshire County Council,15-Oct-15,19333075-12148420,-740,The Gables Specialist Nursing Home,Care Establishment,2 - Commissioning - Older people Pool,Older People Mental Health Hunts,Nursing Independent Sector
Cambridgeshire County Council,15-Oct-15,19333077-12148422,-740,The Gables Specialist Nursing Home,Care Establishment,2 - Commissioning - Older people Pool,Older People Mental Health Hunts,Nursing Independent Sector
Cambridgeshire County Council,15-Oct-15,19333078-12148423,-740,The Gables Specialist Nursing Home,Care Establishment,2 - Commissioning - Older people Pool,Older People Mental Health Hunts,Nursing Independent Sector
Cambridgeshire County Council,15-Oct-15,19333080-12148493,-740,The Gables Specialist Nursing Home,Care Establishment,2 - Commissioning - Older people Pool,Older People Mental Health Hunts,Nursing Independent Sector
Cambridgeshire County Council,15-Oct-15,19333082-12148495,-740,The Gables Specialist Nursing Home,Care Establishment,2 - Commissioning - Older people Pool,Older People Mental Health Hunts,Nursing Independent Sector
Cambridgeshire County Council,15-Oct-15,19333083-12148496,-740,The Gables Specialist Nursing Home,Care Establishment,2 - Commissioning - Older people Pool,Older People Mental Health Hunts,Nursing Independent Sector
Cambridgeshire County Council,15-Oct-15,19333085-12148498,-740,The Gables Specialist Nursing Home,Care Establishment,2 - Commissioning - Older people Pool,Older People Mental Health Hunts,Nursing Independent Sector
Cambridgeshire County Council,15-Oct-15,19333086-12148499,-740,The Gables Specialist Nursing Home,Care Establishment,2 - Commissioning - Older people Pool,Older People Mental Health Hunts,Nursing Independent Sector
Cambridgeshire County Council,15-Oct-15,19333089-12148502,-740,The Gables Specialist Nursing Home,Care Establishment,2 - Commissioning - Older people Pool,Older People Mental Health Hunts,Nursing Independent Sector
Cambridgeshire County Council,15-Oct-15,19333090-12148503,-740,The Gables Specialist Nursing Home,Care Establishment,2 - Commissioning - Older people Pool,Older People Mental Health Hunts,Nursing Independent Sector
Cambridgeshire County Council,15-Oct-15,19333091-12148504,-740,The Gables Specialist Nursing Home,Care Establishment,2 - Commissioning - Older people Pool,Older People Mental Health Hunts,Nursing Independent Sector
Cambridgeshire County Council,15-Oct-15,19333092-12148505,-740,The Gables Specialist Nursing Home,Care Establishment,2 - Commissioning - Older people Pool,Older People Mental Health Hunts,Nursing Independent Sector
Cambridgeshire County Council,15-Oct-15,19333101-12148429,-740,The Gables Specialist Nursing Home,Care Establishment,2 - Commissioning - Older people Pool,Older People Mental Health Hunts,Nursing Independent Sector
Cambridgeshire County Council,15-Oct-15,19333337-12148441,-740,The Gables Specialist Nursing Home,Care Establishment,2 - Commissioning - Older people Pool,Older People Mental Health City & South,Nursing Independent Sector
Cambridgeshire County Council,15-Oct-15,19333338-12148442,-740,The Gables Specialist Nursing Home,Care Establishment,2 - Commissioning - Older people Pool,Older People Mental Health City & South,Nursing Independent Sector
Cambridgeshire County Council,15-Oct-15,19333341-12148445,-740,The Gables Specialist Nursing Home,Care Establishment,2 - Commissioning - Older people Pool,Older People Mental Health City & South,Nursing Independent Sector
Cambridgeshire County Council,15-Oct-15,19333342-12148446,-740,The Gables Specialist Nursing Home,Care Establishment,2 - Commissioning - Older people Pool,Older People Mental Health City & South,Nursing Independent Sector
Cambridgeshire County Council,15-Oct-15,19333344-12148448,-740,The Gables Specialist Nursing Home,Care Establishment,2 - Commissioning - Older people Pool,Older People Mental Health City & South,Nursing Independent Sector
Cambridgeshire County Council,15-Oct-15,19337175-12148389,-740,The Gables Specialist Nursing Home,Care Establishment,2 - Commissioning - Older people Pool,Older People Mental Health City & South,Nursing Independent Sector
Cambridgeshire County Council,15-Oct-15,19337176-12148390,-740,The Gables Specialist Nursing Home,Care Establishment,2 - Commissioning - Older people Pool,Older People Mental Health City & South,Nursing Independent Sector
Cambridgeshire County Council,15-Oct-15,19337177-12148391,-740,The Gables Specialist Nursing Home,Care Establishment,2 - Commissioning - Older people Pool,Older People Mental Health City & South,Nursing Independent Sector
Cambridgeshire County Council,15-Oct-15,19337178-12148392,-740,The Gables Specialist Nursing Home,Care Establishment,2 - Commissioning - Older people Pool,Older People Mental Health City & South,Nursing Independent Sector
Cambridgeshire County Council,15-Oct-15,19337181-12148395,-740,The Gables Specialist Nursing Home,Care Establishment,2 - Commissioning - Older people Pool,Older People Mental Health City & South,Nursing Independent Sector
Cambridgeshire County Council,15-Oct-15,19337183-12148397,-740,The Gables Specialist Nursing Home,Care Establishment,2 - Commissioning - Older people Pool,Older People Mental Health City & South,Nursing Independent Sector
Cambridgeshire County Council,15-Oct-15,19337185-12148399,-740,The Gables Specialist Nursing Home,Care Establishment,2 - Commissioning - Older people Pool,Older People Mental Health City & South,Nursing Independent Sector
Cambridgeshire County Council,15-Oct-15,19337188-12148402,-740,The Gables Specialist Nursing Home,Care Establishment,2 - Commissioning - Older people Pool,Older People Mental Health City & South,Nursing Independent Sector
Cambridgeshire County Council,15-Oct-15,19337189-12148216,-740,The Gables Specialist Nursing Home,Care Establishment,2 - Commissioning - Older people Pool,Older People Mental Health City & South,Nursing Independent Sector
Cambridgeshire County Council,15-Oct-15,19337190-12148217,-740,The Gables Specialist Nursing Home,Care Establishment,2 - Commissioning - Older people Pool,Older People Mental Health City & South,Nursing Independent Sector
Cambridgeshire County Council,15-Oct-15,19337191-12148218,-740,The Gables Specialist Nursing Home,Care Establishment,2 - Commissioning - Older people Pool,Older People Mental Health City & South,Nursing Independent Sector
Cambridgeshire County Council,15-Oct-15,19337192-12148219,-740,The Gables Specialist Nursing Home,Care Establishment,2 - Commissioning - Older people Pool,Older People Mental Health City & South,Nursing Independent Sector
Cambridgeshire County Council,15-Oct-15,19337193-12148220,-740,The Gables Specialist Nursing Home,Care Establishment,2 - Commissioning - Older people Pool,Older People Mental Health City & South,Nursing Independent Sector
Cambridgeshire County Council,15-Oct-15,19337194-12148221,-740,The Gables Specialist Nursing Home,Care Establishment,2 - Commissioning - Older people Pool,Older People Mental Health City & South,Nursing Independent Sector
Cambridgeshire County Council,01-Oct-15,19354708-12084963,-728.57,Meadows Homecare Services,Care Establishment,3 - Operations - Countywide Services,Countywide PD Service,Day and Domicillary Care Independent Sector
Cambridgeshire County Council,15-Oct-15,19397942-12151107,-725.23,Carewatch,Care Establishment,3 - Operations - Countywide Services,Countywide PD Service,Day and Domicillary Care Independent Sector
Cambridgeshire County Council,22-Oct-15,19436196-12181317,-720.75,Redacted Personal Data,Individual,3 - Operations - Countywide Services,Countywide PD Service,SDS - Care and support Services
Cambridgeshire County Council,22-Oct-15,19436231-12181352,-720.75,Redacted Personal Data,Individual,3 - Operations - Countywide Services,Countywide PD Service,SDS - Care and support Services
Cambridgeshire County Council,22-Oct-15,19436246-12181367,-720.75,Redacted Personal Data,Individual,3 - Operations - Countywide Services,Countywide PD Service,SDS - Care and support Services
Cambridgeshire County Council,22-Oct-15,19436247-12181368,-720.75,Redacted Personal Data,Individual,3 - Operations - Countywide Services,Countywide PD Service,SDS - Care and support Services
Cambridgeshire County Council,15-Oct-15,19397931-12151096,-719.48,Carewatch,Care Establishment,3 - Operations - Countywide Services,Countywide PD Service,Day and Domicillary Care Independent Sector
Cambridgeshire County Council,29-Oct-15,19440308-12212291,-717.68,Bna Goldsborough Peterborough,Care Establishment,3 - Operations - Countywide Services,Countywide PD Service,Day and Domicillary Care Independent Sector
Cambridgeshire County Council,29-Oct-15,19440318-12212292,-717.68,Bna Goldsborough Peterborough,Care Establishment,3 - Operations - Countywide Services,Countywide PD Service,Day and Domicillary Care Independent Sector
Cambridgeshire County Council,29-Oct-15,19440320-12212294,-717.68,Bna Goldsborough Peterborough,Care Establishment,3 - Operations - Countywide Services,Countywide PD Service,Day and Domicillary Care Independent Sector
Cambridgeshire County Council,29-Oct-15,19440347-12212296,-717.68,Bna Goldsborough Peterborough,Care Establishment,3 - Operations - Countywide Services,Countywide PD Service,Day and Domicillary Care Independent Sector
Cambridgeshire County Council,29-Oct-15,19441346-12212297,-717.68,Bna Goldsborough Peterborough,Care Establishment,3 - Operations - Countywide Services,Countywide PD Service,Day and Domicillary Care Independent Sector
Cambridgeshire County Council,29-Oct-15,19445116-12212286,-717.68,Bna Goldsborough Peterborough,Care Establishment,3 - Operations - Countywide Services,Countywide PD Service,Day and Domicillary Care Independent Sector
Cambridgeshire County Council,15-Oct-15,19397645-12141034,-713.12,Alderton House,Care Establishment,2 - Operations - Learning Disability,LDP E Cambs Special Needs,SDS - Care and support Services
Cambridgeshire County Council,15-Oct-15,19397649-12141038,-713.12,Alderton House,Care Establishment,2 - Operations - Learning Disability,LDP E Cambs Special Needs,SDS - Care and support Services
Cambridgeshire County Council,15-Oct-15,19397650-12141039,-713.12,Alderton House,Care Establishment,2 - Operations - Learning Disability,LDP E Cambs Special Needs,SDS - Care and support Services
Cambridgeshire County Council,15-Oct-15,19397653-12141042,-713.12,Alderton House,Care Establishment,2 - Operations - Learning Disability,LDP E Cambs Special Needs,SDS - Care and support Services
Cambridgeshire County Council,15-Oct-15,19397655-12141044,-713.12,Alderton House,Care Establishment,2 - Operations - Learning Disability,LDP E Cambs Special Needs,SDS - Care and support Services
Cambridgeshire County Council,15-Oct-15,19397657-12141046,-713.12,Alderton House,Care Establishment,2 - Operations - Learning Disability,LDP E Cambs Special Needs,SDS - Care and support Services
Cambridgeshire County Council,15-Oct-15,19397658-12141047,-713.12,Alderton House,Care Establishment,2 - Operations - Learning Disability,LDP E Cambs Special Needs,SDS - Care and support Services
Cambridgeshire County Council,15-Oct-15,19397661-12141050,-713.12,Alderton House,Care Establishment,2 - Operations - Learning Disability,LDP E Cambs Special Needs,SDS - Care and support Services
Cambridgeshire County Council,15-Oct-15,19397663-12141052,-713.12,Alderton House,Care Establishment,2 - Operations - Learning Disability,LDP E Cambs Special Needs,SDS - Care and support Services
Cambridgeshire County Council,15-Oct-15,19397664-12141053,-713.12,Alderton House,Care Establishment,2 - Operations - Learning Disability,LDP E Cambs Special Needs,SDS - Care and support Services
Cambridgeshire County Council,15-Oct-15,19397665-12141054,-713.12,Alderton House,Care Establishment,2 - Operations - Learning Disability,LDP E Cambs Special Needs,SDS - Care and support Services
Cambridgeshire County Council,15-Oct-15,19397670-12141059,-713.12,Alderton House,Care Establishment,2 - Operations - Learning Disability,LDP E Cambs Special Needs,SDS - Care and support Services
Cambridgeshire County Council,15-Oct-15,19397671-12141060,-713.12,Alderton House,Care Establishment,2 - Operations - Learning Disability,LDP E Cambs Special Needs,SDS - Care and support Services
Cambridgeshire County Council,15-Oct-15,19397672-12141061,-713.12,Alderton House,Care Establishment,2 - Operations - Learning Disability,LDP E Cambs Special Needs,SDS - Care and support Services
Cambridgeshire County Council,15-Oct-15,19397675-12141064,-713.12,Alderton House,Care Establishment,2 - Operations - Learning Disability,LDP E Cambs Special Needs,SDS - Care and support Services
Cambridgeshire County Council,15-Oct-15,19397680-12141069,-713.12,Alderton House,Care Establishment,2 - Operations - Learning Disability,LDP E Cambs Special Needs,SDS - Care and support Services
Cambridgeshire County Council,15-Oct-15,19397681-12141070,-713.12,Alderton House,Care Establishment,2 - Operations - Learning Disability,LDP E Cambs Special Needs,SDS - Care and support Services
Cambridgeshire County Council,15-Oct-15,19397682-12141071,-713.12,Alderton House,Care Establishment,2 - Operations - Learning Disability,LDP E Cambs Special Needs,SDS - Care and support Services
Cambridgeshire County Council,15-Oct-15,19397685-12141074,-713.12,Alderton House,Care Establishment,2 - Operations - Learning Disability,LDP E Cambs Special Needs,SDS - Care and support Services
Cambridgeshire County Council,15-Oct-15,19397686-12141075,-713.12,Alderton House,Care Establishment,2 - Operations - Learning Disability,LDP E Cambs Special Needs,SDS - Care and support Services
Cambridgeshire County Council,15-Oct-15,19397690-12141079,-713.12,Alderton House,Care Establishment,2 - Operations - Learning Disability,LDP E Cambs Special Needs,SDS - Care and support Services
Cambridgeshire County Council,15-Oct-15,19397693-12141082,-713.12,Alderton House,Care Establishment,2 - Operations - Learning Disability,LDP E Cambs Special Needs,SDS - Care and support Services
Cambridgeshire County Council,15-Oct-15,19397694-12141083,-713.12,Alderton House,Care Establishment,2 - Operations - Learning Disability,LDP E Cambs Special Needs,SDS - Care and support Services
Cambridgeshire County Council,15-Oct-15,19397695-12141084,-713.12,Alderton House,Care Establishment,2 - Operations - Learning Disability,LDP E Cambs Special Needs,SDS - Care and support Services
Cambridgeshire County Council,15-Oct-15,19406075-12151020,-709.2,Carewatch,Care Establishment,3 - Operations - Countywide Services,Countywide PD Service,Day and Domicillary Care Independent Sector
Cambridgeshire County Council,09-Oct-15,19184952-12114163,-700.39,Chamarel Ld,Care Establishment,2 - Operations - Learning Disability,LDP City Team,Residential Accommodation - Adults - Independent Sector
Cambridgeshire County Council,15-Oct-15,19322321-12148733,-700,The Gables Specialist Nursing Home,Care Establishment,2 - Commissioning - Older people Pool,Older People Mental Health Fenland,Nursing Independent Sector
Cambridgeshire County Council,15-Oct-15,19322322-12148734,-700,The Gables Specialist Nursing Home,Care Establishment,2 - Commissioning - Older people Pool,Older People Mental Health Fenland,Nursing Independent Sector
Cambridgeshire County Council,15-Oct-15,19322323-12148735,-700,The Gables Specialist Nursing Home,Care Establishment,2 - Commissioning - Older people Pool,Older People Mental Health Fenland,Nursing Independent Sector
Cambridgeshire County Council,15-Oct-15,19322324-12148736,-700,The Gables Specialist Nursing Home,Care Establishment,2 - Commissioning - Older people Pool,Older People Mental Health Fenland,Nursing Independent Sector
Cambridgeshire County Council,15-Oct-15,19322326-12148738,-700,The Gables Specialist Nursing Home,Care Establishment,2 - Commissioning - Older people Pool,Older People Mental Health Fenland,Nursing Independent Sector
Cambridgeshire County Council,15-Oct-15,19322330-12148742,-700,The Gables Specialist Nursing Home,Care Establishment,2 - Commissioning - Older people Pool,Older People Mental Health Fenland,Nursing Independent Sector
Cambridgeshire County Council,15-Oct-15,19322333-12148745,-700,The Gables Specialist Nursing Home,Care Establishment,2 - Commissioning - Older people Pool,Older People Mental Health Fenland,Nursing Independent Sector
Cambridgeshire County Council,15-Oct-15,19322334-12148746,-700,The Gables Specialist Nursing Home,Care Establishment,2 - Commissioning - Older people Pool,Older People Mental Health Fenland,Nursing Independent Sector
Cambridgeshire County Council,15-Oct-15,19322335-12148747,-700,The Gables Specialist Nursing Home,Care Establishment,2 - Commissioning - Older people Pool,Older People Mental Health Fenland,Nursing Independent Sector
Cambridgeshire County Council,15-Oct-15,19322336-12148748,-700,The Gables Specialist Nursing Home,Care Establishment,2 - Commissioning - Older people Pool,Older People Mental Health Fenland,Nursing Independent Sector
Cambridgeshire County Council,15-Oct-15,19328327-12148617,-700,The Gables Specialist Nursing Home,Care Establishment,2 - Commissioning - Older people Pool,Older People Mental Health Fenland,Nursing Independent Sector
Cambridgeshire County Council,15-Oct-15,19328332-12148622,-700,The Gables Specialist Nursing Home,Care Establishment,2 - Commissioning - Older people Pool,Older People Mental Health Fenland,Nursing Independent Sector
Cambridgeshire County Council,15-Oct-15,19328333-12148623,-700,The Gables Specialist Nursing Home,Care Establishment,2 - Commissioning - Older people Pool,Older People Mental Health Fenland,Nursing Independent Sector
Cambridgeshire County Council,15-Oct-15,19328336-12148626,-700,The Gables Specialist Nursing Home,Care Establishment,2 - Commissioning - Older people Pool,Older People Mental Health Fenland,Nursing Independent Sector
Cambridgeshire County Council,15-Oct-15,19328339-12148629,-700,The Gables Specialist Nursing Home,Care Establishment,2 - Commissioning - Older people Pool,Older People Mental Health Fenland,Nursing Independent Sector
Cambridgeshire County Council,15-Oct-15,19328341-12148631,-700,The Gables Specialist Nursing Home,Care Establishment,2 - Commissioning - Older people Pool,Older People Mental Health Fenland,Nursing Independent Sector
Cambridgeshire County Council,15-Oct-15,19328345-12148635,-700,The Gables Specialist Nursing Home,Care Establishment,2 - Commissioning - Older people Pool,Older People Mental Health Fenland,Nursing Independent Sector
Cambridgeshire County Council,09-Oct-15,19336720-12115943,-700,Redacted Personal Data,Individual,2 - Commissioning - Older people Pool,East Cambs - O P Team,SDS - Care and support Services
Cambridgeshire County Council,09-Oct-15,19336721-12115944,-700,Redacted Personal Data,Individual,2 - Commissioning - Older people Pool,East Cambs - O P Team,SDS - Care and support Services
Cambridgeshire County Council,09-Oct-15,19336723-12115946,-700,Redacted Personal Data,Individual,2 - Commissioning - Older people Pool,East Cambs - O P Team,SDS - Care and support Services
Cambridgeshire County Council,09-Oct-15,19336724-12115947,-700,Redacted Personal Data,Individual,2 - Commissioning - Older people Pool,East Cambs - O P Team,SDS - Care and support Services
Cambridgeshire County Council,09-Oct-15,19336726-12115949,-700,Redacted Personal Data,Individual,2 - Commissioning - Older people Pool,East Cambs - O P Team,SDS - Care and support Services
Cambridgeshire County Council,09-Oct-15,19336728-12115951,-700,Redacted Personal Data,Individual,2 - Commissioning - Older people Pool,East Cambs - O P Team,SDS - Care and support Services
Cambridgeshire County Council,09-Oct-15,19336730-12115953,-700,Redacted Personal Data,Individual,2 - Commissioning - Older people Pool,East Cambs - O P Team,SDS - Care and support Services
Cambridgeshire County Council,09-Oct-15,19336734-12115957,-700,Redacted Personal Data,Individual,2 - Commissioning - Older people Pool,East Cambs - O P Team,SDS - Care and support Services
Cambridgeshire County Council,09-Oct-15,19336735-12115958,-700,Redacted Personal Data,Individual,2 - Commissioning - Older people Pool,East Cambs - O P Team,SDS - Care and support Services
Cambridgeshire County Council,09-Oct-15,19336736-12115959,-700,Redacted Personal Data,Individual,2 - Commissioning - Older people Pool,East Cambs - O P Team,SDS - Care and support Services
Cambridgeshire County Council,09-Oct-15,19336738-12115961,-700,Redacted Personal Data,Individual,2 - Commissioning - Older people Pool,East Cambs - O P Team,SDS - Care and support Services
Cambridgeshire County Council,09-Oct-15,19336739-12115962,-700,Redacted Personal Data,Individual,2 - Commissioning - Older people Pool,East Cambs - O P Team,SDS - Care and support Services
Cambridgeshire County Council,09-Oct-15,19336740-12115963,-700,Redacted Personal Data,Individual,2 - Commissioning - Older people Pool,East Cambs - O P Team,SDS - Care and support Services
Cambridgeshire County Council,05-Oct-15,19223882-12099518,-698.18,Midfield Lodge Care Centre,Care Establishment,4 - Commissioning - Mental Health & Supporting People,OP Winter Pressure,Residential Independent Sector
Cambridgeshire County Council,19-Oct-15,19422284-12163683,-696,Whippet Coaches Limited,Trade Supplier,S&C,H to S Transport - Secondary,Home to School - Contract
Cambridgeshire County Council,09-Oct-15,19382206-12116139,-693.45,Kelam Health Care Ltd T/A Paxton Hall Care Home,Care Establishment,2 - Commissioning - Older people Pool,Hunts O P  Team,Residential Independent Sector
Cambridgeshire County Council,09-Oct-15,19382209-12116142,-693.45,Kelam Health Care Ltd T/A Paxton Hall Care Home,Care Establishment,2 - Commissioning - Older people Pool,Hunts O P  Team,Residential Independent Sector
Cambridgeshire County Council,09-Oct-15,19382210-12116143,-693.45,Kelam Health Care Ltd T/A Paxton Hall Care Home,Care Establishment,2 - Commissioning - Older people Pool,Hunts O P  Team,Residential Independent Sector
Cambridgeshire County Council,09-Oct-15,19382212-12116145,-693.45,Kelam Health Care Ltd T/A Paxton Hall Care Home,Care Establishment,2 - Commissioning - Older people Pool,Hunts O P  Team,Residential Independent Sector
Cambridgeshire County Council,09-Oct-15,19382214-12116147,-693.45,Kelam Health Care Ltd T/A Paxton Hall Care Home,Care Establishment,2 - Commissioning - Older people Pool,Hunts O P  Team,Residential Independent Sector
Cambridgeshire County Council,09-Oct-15,19382216-12116149,-693.45,Kelam Health Care Ltd T/A Paxton Hall Care Home,Care Establishment,2 - Commissioning - Older people Pool,Hunts O P  Team,Residential Independent Sector
Cambridgeshire County Council,09-Oct-15,19382219-12116152,-693.45,Kelam Health Care Ltd T/A Paxton Hall Care Home,Care Establishment,2 - Commissioning - Older people Pool,Hunts O P  Team,Residential Independent Sector
Cambridgeshire County Council,09-Oct-15,19382222-12116155,-693.45,Kelam Health Care Ltd T/A Paxton Hall Care Home,Care Establishment,2 - Commissioning - Older people Pool,Hunts O P  Team,Residential Independent Sector
Cambridgeshire County Council,09-Oct-15,19382224-12116157,-693.45,Kelam Health Care Ltd T/A Paxton Hall Care Home,Care Establishment,2 - Commissioning - Older people Pool,Hunts O P  Team,Residential Independent Sector
Cambridgeshire County Council,09-Oct-15,19382226-12116159,-693.45,Kelam Health Care Ltd T/A Paxton Hall Care Home,Care Establishment,2 - Commissioning - Older people Pool,Hunts O P  Team,Residential Independent Sector
Cambridgeshire County Council,09-Oct-15,19382227-12116160,-693.45,Kelam Health Care Ltd T/A Paxton Hall Care Home,Care Establishment,2 - Commissioning - Older people Pool,Hunts O P  Team,Residential Independent Sector
Cambridgeshire County Council,09-Oct-15,19382230-12116163,-693.45,Kelam Health Care Ltd T/A Paxton Hall Care Home,Care Establishment,2 - Commissioning - Older people Pool,Hunts O P  Team,Residential Independent Sector
Cambridgeshire County Council,09-Oct-15,19382231-12116164,-693.45,Kelam Health Care Ltd T/A Paxton Hall Care Home,Care Establishment,2 - Commissioning - Older people Pool,Hunts O P  Team,Residential Independent Sector
Cambridgeshire County Council,09-Oct-15,19382232-12116165,-693.45,Kelam Health Care Ltd T/A Paxton Hall Care Home,Care Establishment,2 - Commissioning - Older people Pool,Hunts O P  Team,Residential Independent Sector
Cambridgeshire County Council,09-Oct-15,19382239-12116172,-693.45,Kelam Health Care Ltd T/A Paxton Hall Care Home,Care Establishment,2 - Commissioning - Older people Pool,Hunts O P  Team,Residential Independent Sector
Cambridgeshire County Council,09-Oct-15,19382242-12116175,-693.45,Kelam Health Care Ltd T/A Paxton Hall Care Home,Care Establishment,2 - Commissioning - Older people Pool,Hunts O P  Team,Residential Independent Sector
Cambridgeshire County Council,09-Oct-15,19382243-12116176,-693.45,Kelam Health Care Ltd T/A Paxton Hall Care Home,Care Establishment,2 - Commissioning - Older people Pool,Hunts O P  Team,Residential Independent Sector
Cambridgeshire County Council,09-Oct-15,19382244-12116177,-693.45,Kelam Health Care Ltd T/A Paxton Hall Care Home,Care Establishment,2 - Commissioning - Older people Pool,Hunts O P  Team,Residential Independent Sector
Cambridgeshire County Council,09-Oct-15,19382245-12116178,-693.45,Kelam Health Care Ltd T/A Paxton Hall Care Home,Care Establishment,2 - Commissioning - Older people Pool,Hunts O P  Team,Residential Independent Sector
Cambridgeshire County Council,09-Oct-15,19382249-12116182,-693.45,Kelam Health Care Ltd T/A Paxton Hall Care Home,Care Establishment,2 - Commissioning - Older people Pool,Hunts O P  Team,Residential Independent Sector
Cambridgeshire County Council,09-Oct-15,19382250-12116183,-693.45,Kelam Health Care Ltd T/A Paxton Hall Care Home,Care Establishment,2 - Commissioning - Older people Pool,Hunts O P  Team,Residential Independent Sector
Cambridgeshire County Council,09-Oct-15,19382252-12116185,-693.45,Kelam Health Care Ltd T/A Paxton Hall Care Home,Care Establishment,2 - Commissioning - Older people Pool,Hunts O P  Team,Residential Independent Sector
Cambridgeshire County Council,09-Oct-15,19382253-12116186,-693.45,Kelam Health Care Ltd T/A Paxton Hall Care Home,Care Establishment,2 - Commissioning - Older people Pool,Hunts O P  Team,Residential Independent Sector
Cambridgeshire County Council,09-Oct-15,19382254-12116187,-693.45,Kelam Health Care Ltd T/A Paxton Hall Care Home,Care Establishment,2 - Commissioning - Older people Pool,Hunts O P  Team,Residential Independent Sector
Cambridgeshire County Council,15-Oct-15,19408862-12147903,-680.36,Dalmeny House Limited,Care Establishment,2 - Operations - Learning Disability,LDP E Cambs Special Needs,SDS - Care and support Services
Cambridgeshire County Council,01-Oct-15,19326273-12087353,-679.97,The Hillings Limited,Care Establishment,2 - Commissioning - Older people Pool,Hunts O P  Team,Residential Independent Sector
Cambridgeshire County Council,22-Oct-15,19442854-12183875,-667.94,Redacted Personal Data,Individual,3 - Operations - Countywide Services,Countywide PD Service,SDS - Care and support Services
Cambridgeshire County Council,22-Oct-15,19442855-12183876,-667.94,Redacted Personal Data,Individual,3 - Operations - Countywide Services,Countywide PD Service,SDS - Care and support Services
Cambridgeshire County Council,22-Oct-15,19442857-12183878,-667.94,Redacted Personal Data,Individual,3 - Operations - Countywide Services,Countywide PD Service,SDS - Care and support Services
Cambridgeshire County Council,22-Oct-15,19442860-12183881,-667.94,Redacted Personal Data,Individual,3 - Operations - Countywide Services,Countywide PD Service,SDS - Care and support Services
Cambridgeshire County Council,22-Oct-15,19439214-12181730,-666.17,Redacted Personal Data,Individual,2 - Operations - Learning Disability,LDP City Team,SDS - Care and support Services
Cambridgeshire County Council,22-Oct-15,19439216-12181732,-666.17,Redacted Personal Data,Individual,2 - Operations - Learning Disability,LDP City Team,SDS - Care and support Services
Cambridgeshire County Council,22-Oct-15,19439228-12181744,-666.17,Redacted Personal Data,Individual,2 - Operations - Learning Disability,LDP City Team,SDS - Care and support Services
Cambridgeshire County Council,22-Oct-15,19439230-12181746,-666.17,Redacted Personal Data,Individual,2 - Operations - Learning Disability,LDP City Team,SDS - Care and support Services
Cambridgeshire County Council,22-Oct-15,19439234-12181750,-666.17,Redacted Personal Data,Individual,2 - Operations - Learning Disability,LDP City Team,SDS - Care and support Services
Cambridgeshire County Council,22-Oct-15,19439240-12181756,-666.17,Redacted Personal Data,Individual,2 - Operations - Learning Disability,LDP City Team,SDS - Care and support Services
Cambridgeshire County Council,22-Oct-15,19439243-12181759,-666.17,Redacted Personal Data,Individual,2 - Operations - Learning Disability,LDP City Team,SDS - Care and support Services
Cambridgeshire County Council,22-Oct-15,19439246-12181762,-666.17,Redacted Personal Data,Individual,2 - Operations - Learning Disability,LDP City Team,SDS - Care and support Services
Cambridgeshire County Council,22-Oct-15,19439262-12181683,-666.17,Redacted Personal Data,Individual,2 - Operations - Learning Disability,LDP City Team,SDS - Care and support Services
Cambridgeshire County Council,22-Oct-15,19439265-12181686,-666.17,Redacted Personal Data,Individual,2 - Operations - Learning Disability,LDP City Team,SDS - Care and support Services
Cambridgeshire County Council,22-Oct-15,19439280-12181701,-666.17,Redacted Personal Data,Individual,2 - Operations - Learning Disability,LDP City Team,SDS - Care and support Services
Cambridgeshire County Council,22-Oct-15,19439283-12181704,-666.17,Redacted Personal Data,Individual,2 - Operations - Learning Disability,LDP City Team,SDS - Care and support Services
Cambridgeshire County Council,22-Oct-15,19439297-12181718,-666.17,Redacted Personal Data,Individual,2 - Operations - Learning Disability,LDP City Team,SDS - Care and support Services
Cambridgeshire County Council,22-Oct-15,19444081-12181670,-666.17,Redacted Personal Data,Individual,2 - Operations - Learning Disability,LDP City Team,SDS - Care and support Services
Cambridgeshire County Council,15-Oct-15,19332225-12148570,-650,The Gables Specialist Nursing Home,Care Establishment,2 - Commissioning - Older people Pool,Older People Mental Health Fenland,Nursing Independent Sector
Cambridgeshire County Council,15-Oct-15,19332226-12148571,-650,The Gables Specialist Nursing Home,Care Establishment,2 - Commissioning - Older people Pool,Older People Mental Health Fenland,Nursing Independent Sector
Cambridgeshire County Council,15-Oct-15,19332227-12148572,-650,The Gables Specialist Nursing Home,Care Establishment,2 - Commissioning - Older people Pool,Older People Mental Health Fenland,Nursing Independent Sector
Cambridgeshire County Council,15-Oct-15,19332228-12148573,-650,The Gables Specialist Nursing Home,Care Establishment,2 - Commissioning - Older people Pool,Older People Mental Health Fenland,Nursing Independent Sector
Cambridgeshire County Council,15-Oct-15,19332229-12148574,-650,The Gables Specialist Nursing Home,Care Establishment,2 - Commissioning - Older people Pool,Older People Mental Health Fenland,Nursing Independent Sector
Cambridgeshire County Council,15-Oct-15,19332230-12148575,-650,The Gables Specialist Nursing Home,Care Establishment,2 - Commissioning - Older people Pool,Older People Mental Health Fenland,Nursing Independent Sector
Cambridgeshire County Council,15-Oct-15,19332231-12148576,-650,The Gables Specialist Nursing Home,Care Establishment,2 - Commissioning - Older people Pool,Older People Mental Health Fenland,Nursing Independent Sector
Cambridgeshire County Council,15-Oct-15,19332232-12148509,-650,The Gables Specialist Nursing Home,Care Establishment,2 - Commissioning - Older people Pool,Older People Mental Health Fenland,Nursing Independent Sector
Cambridgeshire County Council,15-Oct-15,19332233-12148510,-650,The Gables Specialist Nursing Home,Care Establishment,2 - Commissioning - Older people Pool,Older People Mental Health Fenland,Nursing Independent Sector
Cambridgeshire County Council,15-Oct-15,19332235-12148512,-650,The Gables Specialist Nursing Home,Care Establishment,2 - Commissioning - Older people Pool,Older People Mental Health Fenland,Nursing Independent Sector
Cambridgeshire County Council,15-Oct-15,19332236-12148513,-650,The Gables Specialist Nursing Home,Care Establishment,2 - Commissioning - Older people Pool,Older People Mental Health Fenland,Nursing Independent Sector
Cambridgeshire County Council,15-Oct-15,19332237-12148514,-650,The Gables Specialist Nursing Home,Care Establishment,2 - Commissioning - Older people Pool,Older People Mental Health Fenland,Nursing Independent Sector
Cambridgeshire County Council,15-Oct-15,19332238-12148515,-650,The Gables Specialist Nursing Home,Care Establishment,2 - Commissioning - Older people Pool,Older People Mental Health Fenland,Nursing Independent Sector
Cambridgeshire County Council,15-Oct-15,19332239-12148516,-650,The Gables Specialist Nursing Home,Care Establishment,2 - Commissioning - Older people Pool,Older People Mental Health Fenland,Nursing Independent Sector
Cambridgeshire County Council,15-Oct-15,19332240-12148517,-650,The Gables Specialist Nursing Home,Care Establishment,2 - Commissioning - Older people Pool,Older People Mental Health Fenland,Nursing Independent Sector
Cambridgeshire County Council,15-Oct-15,19332241-12148518,-650,The Gables Specialist Nursing Home,Care Establishment,2 - Commissioning - Older people Pool,Older People Mental Health Fenland,Nursing Independent Sector
Cambridgeshire County Council,15-Oct-15,19332242-12148519,-650,The Gables Specialist Nursing Home,Care Establishment,2 - Commissioning - Older people Pool,Older People Mental Health Fenland,Nursing Independent Sector
Cambridgeshire County Council,15-Oct-15,19332243-12148520,-650,The Gables Specialist Nursing Home,Care Establishment,2 - Commissioning - Older people Pool,Older People Mental Health Fenland,Nursing Independent Sector
Cambridgeshire County Council,15-Oct-15,19332244-12148521,-650,The Gables Specialist Nursing Home,Care Establishment,2 - Commissioning - Older people Pool,Older People Mental Health Fenland,Nursing Independent Sector
Cambridgeshire County Council,15-Oct-15,19332245-12148522,-650,The Gables Specialist Nursing Home,Care Establishment,2 - Commissioning - Older people Pool,Older People Mental Health Fenland,Nursing Independent Sector
Cambridgeshire County Council,15-Oct-15,19332246-12148523,-650,The Gables Specialist Nursing Home,Care Establishment,2 - Commissioning - Older people Pool,Older People Mental Health Fenland,Nursing Independent Sector
Cambridgeshire County Council,15-Oct-15,19332247-12148524,-650,The Gables Specialist Nursing Home,Care Establishment,2 - Commissioning - Older people Pool,Older People Mental Health Fenland,Nursing Independent Sector
Cambridgeshire County Council,15-Oct-15,19332248-12148525,-650,The Gables Specialist Nursing Home,Care Establishment,2 - Commissioning - Older people Pool,Older People Mental Health Fenland,Nursing Independent Sector
Cambridgeshire County Council,15-Oct-15,19332249-12148526,-650,The Gables Specialist Nursing Home,Care Establishment,2 - Commissioning - Older people Pool,Older People Mental Health Fenland,Nursing Independent Sector
Cambridgeshire County Council,15-Oct-15,19332250-12148527,-650,The Gables Specialist Nursing Home,Care Establishment,2 - Commissioning - Older people Pool,Older People Mental Health Fenland,Nursing Independent Sector
Cambridgeshire County Council,15-Oct-15,19332251-12148528,-650,The Gables Specialist Nursing Home,Care Establishment,2 - Commissioning - Older people Pool,Older People Mental Health Fenland,Nursing Independent Sector
Cambridgeshire County Council,15-Oct-15,19332252-12148529,-650,The Gables Specialist Nursing Home,Care Establishment,2 - Commissioning - Older people Pool,Older People Mental Health Fenland,Nursing Independent Sector
Cambridgeshire County Council,15-Oct-15,19332253-12148530,-650,The Gables Specialist Nursing Home,Care Establishment,2 - Commissioning - Older people Pool,Older People Mental Health Fenland,Nursing Independent Sector
Cambridgeshire County Council,15-Oct-15,19332254-12148531,-650,The Gables Specialist Nursing Home,Care Establishment,2 - Commissioning - Older people Pool,Older People Mental Health Fenland,Nursing Independent Sector
Cambridgeshire County Council,15-Oct-15,19332255-12148532,-650,The Gables Specialist Nursing Home,Care Establishment,2 - Commissioning - Older people Pool,Older People Mental Health Fenland,Nursing Independent Sector
Cambridgeshire County Council,15-Oct-15,19332256-12148533,-650,The Gables Specialist Nursing Home,Care Establishment,2 - Commissioning - Older people Pool,Older People Mental Health Fenland,Nursing Independent Sector
Cambridgeshire County Council,15-Oct-15,19332257-12148534,-650,The Gables Specialist Nursing Home,Care Establishment,2 - Commissioning - Older people Pool,Older People Mental Health Fenland,Nursing Independent Sector
Cambridgeshire County Council,15-Oct-15,19332258-12148535,-650,The Gables Specialist Nursing Home,Care Establishment,2 - Commissioning - Older people Pool,Older People Mental Health Fenland,Nursing Independent Sector
Cambridgeshire County Council,15-Oct-15,19332259-12148536,-650,The Gables Specialist Nursing Home,Care Establishment,2 - Commissioning - Older people Pool,Older People Mental Health Fenland,Nursing Independent Sector
Cambridgeshire County Council,15-Oct-15,19332261-12148538,-650,The Gables Specialist Nursing Home,Care Establishment,2 - Commissioning - Older people Pool,Older People Mental Health Fenland,Nursing Independent Sector
Cambridgeshire County Council,15-Oct-15,19332262-12148539,-650,The Gables Specialist Nursing Home,Care Establishment,2 - Commissioning - Older people Pool,Older People Mental Health Fenland,Nursing Independent Sector
Cambridgeshire County Council,15-Oct-15,19332263-12148540,-650,The Gables Specialist Nursing Home,Care Establishment,2 - Commissioning - Older people Pool,Older People Mental Health Fenland,Nursing Independent Sector
Cambridgeshire County Council,15-Oct-15,19332264-12148541,-650,The Gables Specialist Nursing Home,Care Establishment,2 - Commissioning - Older people Pool,Older People Mental Health Fenland,Nursing Independent Sector
Cambridgeshire County Council,15-Oct-15,19332265-12148542,-650,The Gables Specialist Nursing Home,Care Establishment,2 - Commissioning - Older people Pool,Older People Mental Health Fenland,Nursing Independent Sector
Cambridgeshire County Council,15-Oct-15,19332266-12148543,-650,The Gables Specialist Nursing Home,Care Establishment,2 - Commissioning - Older people Pool,Older People Mental Health Fenland,Nursing Independent Sector
Cambridgeshire County Council,15-Oct-15,19332267-12148544,-650,The Gables Specialist Nursing Home,Care Establishment,2 - Commissioning - Older people Pool,Older People Mental Health Fenland,Nursing Independent Sector
Cambridgeshire County Council,15-Oct-15,19413882-12150984,-643.95,Carewatch,Care Establishment,3 - Operations - Countywide Services,Countywide PD Service,Day and Domicillary Care Independent Sector
Cambridgeshire County Council,15-Oct-15,19325286-12148840,-642.86,The Gables Specialist Nursing Home,Care Establishment,2 - Commissioning - Older people Pool,Older People Mental Health City & South,Nursing Independent Sector
Cambridgeshire County Council,15-Oct-15,19330615-12148723,-642.86,The Gables Specialist Nursing Home,Care Establishment,2 - Commissioning - Older people Pool,Older People Mental Health E Cambs,Nursing Independent Sector
Cambridgeshire County Council,15-Oct-15,19328967-12148636,-640,The Gables Specialist Nursing Home,Care Establishment,2 - Commissioning - Older people Pool,Older People Mental Health Fenland,Nursing Independent Sector
Cambridgeshire County Council,15-Oct-15,19328973-12148638,-640,The Gables Specialist Nursing Home,Care Establishment,2 - Commissioning - Older people Pool,Older People Mental Health Fenland,Nursing Independent Sector
Cambridgeshire County Council,15-Oct-15,19328979-12148640,-640,The Gables Specialist Nursing Home,Care Establishment,2 - Commissioning - Older people Pool,Older People Mental Health Fenland,Nursing Independent Sector
Cambridgeshire County Council,15-Oct-15,19328981-12148642,-640,The Gables Specialist Nursing Home,Care Establishment,2 - Commissioning - Older people Pool,Older People Mental Health Fenland,Nursing Independent Sector
Cambridgeshire County Council,15-Oct-15,19328993-12148644,-640,The Gables Specialist Nursing Home,Care Establishment,2 - Commissioning - Older people Pool,Older People Mental Health Fenland,Nursing Independent Sector
Cambridgeshire County Council,15-Oct-15,19335225-12148250,-640,The Gables Specialist Nursing Home,Care Establishment,2 - Commissioning - Older people Pool,Older People Mental Health Fenland,Nursing Independent Sector
Cambridgeshire County Council,15-Oct-15,19335227-12148252,-640,The Gables Specialist Nursing Home,Care Establishment,2 - Commissioning - Older people Pool,Older People Mental Health Fenland,Nursing Independent Sector
Cambridgeshire County Council,15-Oct-15,19335240-12148255,-640,The Gables Specialist Nursing Home,Care Establishment,2 - Commissioning - Older people Pool,Older People Mental Health Fenland,Nursing Independent Sector
Cambridgeshire County Council,15-Oct-15,19335245-12148257,-640,The Gables Specialist Nursing Home,Care Establishment,2 - Commissioning - Older people Pool,Older People Mental Health Fenland,Nursing Independent Sector
Cambridgeshire County Council,15-Oct-15,19335246-12148258,-640,The Gables Specialist Nursing Home,Care Establishment,2 - Commissioning - Older people Pool,Older People Mental Health Fenland,Nursing Independent Sector
Cambridgeshire County Council,15-Oct-15,19335252-12148259,-640,The Gables Specialist Nursing Home,Care Establishment,2 - Commissioning - Older people Pool,Older People Mental Health Fenland,Nursing Independent Sector
Cambridgeshire County Council,15-Oct-15,19335253-12148260,-640,The Gables Specialist Nursing Home,Care Establishment,2 - Commissioning - Older people Pool,Older People Mental Health Fenland,Nursing Independent Sector
Cambridgeshire County Council,15-Oct-15,19335261-12148264,-640,The Gables Specialist Nursing Home,Care Establishment,2 - Commissioning - Older people Pool,Older People Mental Health Fenland,Nursing Independent Sector
Cambridgeshire County Council,15-Oct-15,19335270-12148266,-640,The Gables Specialist Nursing Home,Care Establishment,2 - Commissioning - Older people Pool,Older People Mental Health Fenland,Nursing Independent Sector
Cambridgeshire County Council,15-Oct-15,19338542-12148230,-640,The Gables Specialist Nursing Home,Care Establishment,2 - Commissioning - Older people Pool,Older People Mental Health Fenland,Nursing Independent Sector
Cambridgeshire County Council,15-Oct-15,19338550-12148232,-640,The Gables Specialist Nursing Home,Care Establishment,2 - Commissioning - Older people Pool,Older People Mental Health Fenland,Nursing Independent Sector
Cambridgeshire County Council,15-Oct-15,19338557-12148233,-640,The Gables Specialist Nursing Home,Care Establishment,2 - Commissioning - Older people Pool,Older People Mental Health Fenland,Nursing Independent Sector
Cambridgeshire County Council,15-Oct-15,19338558-12148234,-640,The Gables Specialist Nursing Home,Care Establishment,2 - Commissioning - Older people Pool,Older People Mental Health Fenland,Nursing Independent Sector
Cambridgeshire County Council,15-Oct-15,19338559-12148235,-640,The Gables Specialist Nursing Home,Care Establishment,2 - Commissioning - Older people Pool,Older People Mental Health Fenland,Nursing Independent Sector
Cambridgeshire County Council,15-Oct-15,19338562-12148236,-640,The Gables Specialist Nursing Home,Care Establishment,2 - Commissioning - Older people Pool,Older People Mental Health Fenland,Nursing Independent Sector
Cambridgeshire County Council,15-Oct-15,19338570-12148239,-640,The Gables Specialist Nursing Home,Care Establishment,2 - Commissioning - Older people Pool,Older People Mental Health Fenland,Nursing Independent Sector
Cambridgeshire County Council,15-Oct-15,19338571-12148240,-640,The Gables Specialist Nursing Home,Care Establishment,2 - Commissioning - Older people Pool,Older People Mental Health Fenland,Nursing Independent Sector
Cambridgeshire County Council,15-Oct-15,19338576-12148242,-640,The Gables Specialist Nursing Home,Care Establishment,2 - Commissioning - Older people Pool,Older People Mental Health Fenland,Nursing Independent Sector
Cambridgeshire County Council,15-Oct-15,19333079-12148492,-634.29,The Gables Specialist Nursing Home,Care Establishment,2 - Commissioning - Older people Pool,Older People Mental Health Hunts,Nursing Independent Sector
Cambridgeshire County Council,15-Oct-15,19333330-12148434,-634.29,The Gables Specialist Nursing Home,Care Establishment,2 - Commissioning - Older people Pool,Older People Mental Health City & South,Nursing Independent Sector
Cambridgeshire County Council,15-Oct-15,19414676-12155444,-628.05,Westminster Homecare Limited,Care Establishment,2 - Operations - Learning Disability,LDP E Cambs Team,Day and Domicillary Care Independent Sector
Cambridgeshire County Council,15-Oct-15,19414677-12155445,-628.05,Westminster Homecare Limited,Care Establishment,2 - Operations - Learning Disability,LDP E Cambs Team,Day and Domicillary Care Independent Sector
Cambridgeshire County Council,15-Oct-15,19414685-12155446,-628.05,Westminster Homecare Limited,Care Establishment,2 - Operations - Learning Disability,LDP E Cambs Team,Day and Domicillary Care Independent Sector
Cambridgeshire County Council,15-Oct-15,19414686-12155447,-628.05,Westminster Homecare Limited,Care Establishment,2 - Operations - Learning Disability,LDP E Cambs Team,Day and Domicillary Care Independent Sector
Cambridgeshire County Council,15-Oct-15,19414690-12155448,-628.05,Westminster Homecare Limited,Care Establishment,2 - Operations - Learning Disability,LDP E Cambs Team,Day and Domicillary Care Independent Sector
Cambridgeshire County Council,15-Oct-15,19414732-12155450,-628.05,Westminster Homecare Limited,Care Establishment,2 - Operations - Learning Disability,LDP E Cambs Team,Day and Domicillary Care Independent Sector
Cambridgeshire County Council,15-Oct-15,19414741-12155451,-628.05,Westminster Homecare Limited,Care Establishment,2 - Operations - Learning Disability,LDP E Cambs Team,Day and Domicillary Care Independent Sector
Cambridgeshire County Council,15-Oct-15,19414742-12155452,-628.05,Westminster Homecare Limited,Care Establishment,2 - Operations - Learning Disability,LDP E Cambs Team,Day and Domicillary Care Independent Sector
Cambridgeshire County Council,15-Oct-15,19417037-12155927,-628.05,Westminster Homecare Limited,Care Establishment,2 - Operations - Learning Disability,LDP E Cambs Team,Day and Domicillary Care Independent Sector
Cambridgeshire County Council,15-Oct-15,19417042-12155928,-628.05,Westminster Homecare Limited,Care Establishment,2 - Operations - Learning Disability,LDP E Cambs Team,Day and Domicillary Care Independent Sector
Cambridgeshire County Council,15-Oct-15,19417043-12155929,-628.05,Westminster Homecare Limited,Care Establishment,2 - Operations - Learning Disability,LDP E Cambs Team,Day and Domicillary Care Independent Sector
Cambridgeshire County Council,15-Oct-15,19417044-12155930,-628.05,Westminster Homecare Limited,Care Establishment,2 - Operations - Learning Disability,LDP E Cambs Team,Day and Domicillary Care Independent Sector
Cambridgeshire County Council,15-Oct-15,19417049-12155931,-628.05,Westminster Homecare Limited,Care Establishment,2 - Operations - Learning Disability,LDP E Cambs Team,Day and Domicillary Care Independent Sector
Cambridgeshire County Council,15-Oct-15,19417057-12155932,-628.05,Westminster Homecare Limited,Care Establishment,2 - Operations - Learning Disability,LDP E Cambs Team,Day and Domicillary Care Independent Sector
Cambridgeshire County Council,15-Oct-15,19417060-12155933,-628.05,Westminster Homecare Limited,Care Establishment,2 - Operations - Learning Disability,LDP E Cambs Team,Day and Domicillary Care Independent Sector
Cambridgeshire County Council,15-Oct-15,19417633-12155829,-628.05,Westminster Homecare Limited,Care Establishment,2 - Operations - Learning Disability,LDP E Cambs Team,Day and Domicillary Care Independent Sector
Cambridgeshire County Council,15-Oct-15,19417637-12155830,-628.05,Westminster Homecare Limited,Care Establishment,2 - Operations - Learning Disability,LDP E Cambs Team,Day and Domicillary Care Independent Sector
Cambridgeshire County Council,15-Oct-15,19417638-12155831,-628.05,Westminster Homecare Limited,Care Establishment,2 - Operations - Learning Disability,LDP E Cambs Team,Day and Domicillary Care Independent Sector
Cambridgeshire County Council,15-Oct-15,19417639-12155832,-628.05,Westminster Homecare Limited,Care Establishment,2 - Operations - Learning Disability,LDP E Cambs Team,Day and Domicillary Care Independent Sector
Cambridgeshire County Council,15-Oct-15,19417640-12155833,-628.05,Westminster Homecare Limited,Care Establishment,2 - Operations - Learning Disability,LDP E Cambs Team,Day and Domicillary Care Independent Sector
Cambridgeshire County Council,15-Oct-15,19417641-12155834,-628.05,Westminster Homecare Limited,Care Establishment,2 - Operations - Learning Disability,LDP E Cambs Team,Day and Domicillary Care Independent Sector
Cambridgeshire County Council,15-Oct-15,19417661-12155835,-628.05,Westminster Homecare Limited,Care Establishment,2 - Operations - Learning Disability,LDP E Cambs Team,Day and Domicillary Care Independent Sector
Cambridgeshire County Council,15-Oct-15,19412930-12153466,-616.92,Hunters Healthcare (Hunters Down),Care Establishment,2 - Commissioning - Older people Pool,Hunts O P  Team,Nursing Independent Sector
Cambridgeshire County Council,15-Oct-15,17425849-12153521,-607.8,Brook Healthcare#1,Care Establishment,2 - Commissioning - Older people Pool,North City Older People's Integrated Team,Residential Independent Sector
Cambridgeshire County Council,15-Oct-15,17425850-12153522,-607.8,Brook Healthcare#1,Care Establishment,2 - Commissioning - Older people Pool,North City Older People's Integrated Team,Residential Independent Sector
Cambridgeshire County Council,15-Oct-15,19322328-12148740,-600,The Gables Specialist Nursing Home,Care Establishment,2 - Commissioning - Older people Pool,Older People Mental Health Fenland,Nursing Independent Sector
Cambridgeshire County Council,09-Oct-15,19336737-12115960,-600,Redacted Personal Data,Individual,2 - Commissioning - Older people Pool,East Cambs - O P Team,SDS - Care and support Services
Cambridgeshire County Council,16-Oct-15,19306479-12160351,-590.44,Guidant Group,Trade Supplier,4 - Operations - Providers services,"Larkfield, Ely",Pay - Agency Staff
Cambridgeshire County Council,01-Oct-15,19356704-12085773,-587.31,Conquest Care Homes (Soham) Ltd,Care Establishment,2 - Operations - Learning Disability,LDP E Cambs Team,SDS - Care and support Services
Cambridgeshire County Council,15-Oct-15,19376863-12139961,-587.31,Conquest Care Homes (Soham) Ltd,Care Establishment,2 - Operations - Learning Disability,LDP E Cambs Team,SDS - Care and support Services
Cambridgeshire County Council,15-Oct-15,19414438-12139973,-587.31,Conquest Care Homes (Soham) Ltd,Care Establishment,2 - Operations - Learning Disability,LDP E Cambs Team,SDS - Care and support Services
Cambridgeshire County Council,22-Oct-15,19436485-12183266,-587.31,Conquest Care Homes (Soham) Ltd,Care Establishment,2 - Operations - Learning Disability,LDP E Cambs Team,SDS - Care and support Services
Cambridgeshire County Council,29-Oct-15,19470575-12211392,-587.31,Conquest Care Homes (Soham) Ltd,Care Establishment,2 - Operations - Learning Disability,LDP E Cambs Special Needs,SDS - Care and support Services
Cambridgeshire County Council,09-Oct-15,19356683-12118205,-581.85,The Cambridge Nursing Centre,Care Establishment,2 - Commissioning - Older people Pool,Older People Mental Health City & South,Nursing Independent Sector
Cambridgeshire County Council,09-Oct-15,19356684-12118206,-581.85,The Cambridge Nursing Centre,Care Establishment,2 - Commissioning - Older people Pool,Older People Mental Health City & South,Nursing Independent Sector
Cambridgeshire County Council,09-Oct-15,19356685-12118207,-581.85,The Cambridge Nursing Centre,Care Establishment,2 - Commissioning - Older people Pool,Older People Mental Health City & South,Nursing Independent Sector
Cambridgeshire County Council,09-Oct-15,19356686-12118208,-581.85,The Cambridge Nursing Centre,Care Establishment,2 - Commissioning - Older people Pool,Older People Mental Health City & South,Nursing Independent Sector
Cambridgeshire County Council,09-Oct-15,19356687-12118209,-581.85,The Cambridge Nursing Centre,Care Establishment,2 - Commissioning - Older people Pool,Older People Mental Health City & South,Nursing Independent Sector
Cambridgeshire County Council,09-Oct-15,19356688-12118210,-581.85,The Cambridge Nursing Centre,Care Establishment,2 - Commissioning - Older people Pool,Older People Mental Health City & South,Nursing Independent Sector
Cambridgeshire County Council,09-Oct-15,19356689-12118211,-581.85,The Cambridge Nursing Centre,Care Establishment,2 - Commissioning - Older people Pool,Older People Mental Health City & South,Nursing Independent Sector
Cambridgeshire County Council,09-Oct-15,19356691-12118213,-581.85,The Cambridge Nursing Centre,Care Establishment,2 - Commissioning - Older people Pool,Older People Mental Health City & South,Nursing Independent Sector
Cambridgeshire County Council,15-Oct-15,19355424-12139494,-576.4,Fitzwilliam Healthcare Ltd,Care Establishment,2 - Commissioning - Older people Pool,North City Older People's Integrated Team,Residential Independent Sector
Cambridgeshire County Council,15-Oct-15,19355425-12139495,-576.4,Fitzwilliam Healthcare Ltd,Care Establishment,2 - Commissioning - Older people Pool,North City Older People's Integrated Team,Residential Independent Sector
Cambridgeshire County Council,09-Oct-15,19383788-12118215,-572.53,The Cambridge Nursing Centre,Care Establishment,2 - Commissioning - Older people Pool,North City Older People's Integrated Team,Nursing Independent Sector
Cambridgeshire County Council,09-Oct-15,19383789-12118216,-572.53,The Cambridge Nursing Centre,Care Establishment,2 - Commissioning - Older people Pool,North City Older People's Integrated Team,Nursing Independent Sector
Cambridgeshire County Council,09-Oct-15,19383790-12118217,-572.53,The Cambridge Nursing Centre,Care Establishment,2 - Commissioning - Older people Pool,North City Older People's Integrated Team,Nursing Independent Sector
Cambridgeshire County Council,09-Oct-15,19383791-12118218,-572.53,The Cambridge Nursing Centre,Care Establishment,2 - Commissioning - Older people Pool,North City Older People's Integrated Team,Nursing Independent Sector
Cambridgeshire County Council,22-Oct-15,19440559-12187916,-572.53,The Cambridge Nursing Centre,Care Establishment,2 - Commissioning - Older people Pool,North City Older People's Integrated Team,Nursing Independent Sector
Cambridgeshire County Council,22-Oct-15,19440560-12187917,-572.53,The Cambridge Nursing Centre,Care Establishment,2 - Commissioning - Older people Pool,North City Older People's Integrated Team,Nursing Independent Sector
Cambridgeshire County Council,15-Oct-15,19380132-12151200,-560.95,Carewatch,Care Establishment,2 - Commissioning - Older people Pool,Hunts O P  Team,Day and Domicillary Care Independent Sector
Cambridgeshire County Council,15-Oct-15,19380133-12151201,-560.95,Carewatch,Care Establishment,2 - Commissioning - Older people Pool,Hunts O P  Team,Day and Domicillary Care Independent Sector
Cambridgeshire County Council,15-Oct-15,19380134-12151202,-560.95,Carewatch,Care Establishment,2 - Commissioning - Older people Pool,Hunts O P  Team,Day and Domicillary Care Independent Sector
Cambridgeshire County Council,15-Oct-15,19380135-12151203,-560.95,Carewatch,Care Establishment,2 - Commissioning - Older people Pool,Hunts O P  Team,Day and Domicillary Care Independent Sector
Cambridgeshire County Council,15-Oct-15,19380136-12151204,-560.95,Carewatch,Care Establishment,2 - Commissioning - Older people Pool,Hunts O P  Team,Day and Domicillary Care Independent Sector
Cambridgeshire County Council,22-Oct-15,19437012-12186497,-559.73,Woodlands Care Centre,Care Establishment,3 - Operations - Countywide Services,Countywide PD Service,Nursing Independent Sector
Cambridgeshire County Council,22-Oct-15,19437013-12186498,-559.73,Woodlands Care Centre,Care Establishment,3 - Operations - Countywide Services,Countywide PD Service,Nursing Independent Sector
Cambridgeshire County Council,22-Oct-15,19437015-12186500,-559.73,Woodlands Care Centre,Care Establishment,3 - Operations - Countywide Services,Countywide PD Service,Nursing Independent Sector
Cambridgeshire County Council,22-Oct-15,19437016-12186501,-559.73,Woodlands Care Centre,Care Establishment,3 - Operations - Countywide Services,Countywide PD Service,Nursing Independent Sector
Cambridgeshire County Council,22-Oct-15,19437017-12186502,-559.73,Woodlands Care Centre,Care Establishment,3 - Operations - Countywide Services,Countywide PD Service,Nursing Independent Sector
Cambridgeshire County Council,22-Oct-15,19437018-12186503,-559.73,Woodlands Care Centre,Care Establishment,3 - Operations - Countywide Services,Countywide PD Service,Nursing Independent Sector
Cambridgeshire County Council,22-Oct-15,19437019-12186504,-559.73,Woodlands Care Centre,Care Establishment,3 - Operations - Countywide Services,Countywide PD Service,Nursing Independent Sector
Cambridgeshire County Council,22-Oct-15,19437020-12186505,-559.73,Woodlands Care Centre,Care Establishment,3 - Operations - Countywide Services,Countywide PD Service,Nursing Independent Sector
Cambridgeshire County Council,22-Oct-15,19437021-12186506,-559.73,Woodlands Care Centre,Care Establishment,3 - Operations - Countywide Services,Countywide PD Service,Nursing Independent Sector
Cambridgeshire County Council,29-Oct-15,19471910-12211494,-556.95,Barchester Healthcare Homes Ltd,Care Establishment,2 - Commissioning - Older people Pool,North City Older People's Integrated Team,Nursing Independent Sector
Cambridgeshire County Council,29-Oct-15,19471911-12211495,-556.95,Barchester Healthcare Homes Ltd,Care Establishment,2 - Commissioning - Older people Pool,North City Older People's Integrated Team,Nursing Independent Sector
Cambridgeshire County Council,09-Oct-15,19378583-12116869,-556.94,Barchester Healthcare Homes Ltd,Care Establishment,2 - Commissioning - Older people Pool,North City Older People's Integrated Team,Nursing Independent Sector
Cambridgeshire County Council,22-Oct-15,19364189-12188478,-553.58,Brighter Futures Foster Care,Care Establishment,S&C,Placements - Social Care,Agency Placements - Out County
Cambridgeshire County Council,15-Oct-15,19357292-12141167,-549.36,Care Uk Community Partnerships Ltd,Care Establishment,2 - Commissioning - Older people Pool,North City Older People's Integrated Team,Nursing Independent Sector
Cambridgeshire County Council,15-Oct-15,19357296-12141168,-549.36,Care Uk Community Partnerships Ltd,Care Establishment,2 - Commissioning - Older people Pool,North City Older People's Integrated Team,Nursing Independent Sector
Cambridgeshire County Council,15-Oct-15,19338541-12148229,-548.57,The Gables Specialist Nursing Home,Care Establishment,2 - Commissioning - Older people Pool,Older People Mental Health Fenland,Nursing Independent Sector
Cambridgeshire County Council,20-Oct-15,19387619-12166989,-547.46,Archant Herts & Cambs,Trade Supplier,S&C,Catering - Cook Freeze Unit (C3),Recruitment - Advertising
Cambridgeshire County Council,15-Oct-15,19335178-12148487,-546.72,The Gables Specialist Nursing Home,Care Establishment,2 - Commissioning - Older people Pool,Older People Mental Health Fenland,Nursing Independent Sector
Cambridgeshire County Council,15-Oct-15,19335179-12148488,-546.72,The Gables Specialist Nursing Home,Care Establishment,2 - Commissioning - Older people Pool,Older People Mental Health Fenland,Nursing Independent Sector
Cambridgeshire County Council,15-Oct-15,19335180-12148489,-546.72,The Gables Specialist Nursing Home,Care Establishment,2 - Commissioning - Older people Pool,Older People Mental Health Fenland,Nursing Independent Sector
Cambridgeshire County Council,15-Oct-15,19335181-12148490,-546.72,The Gables Specialist Nursing Home,Care Establishment,2 - Commissioning - Older people Pool,Older People Mental Health Fenland,Nursing Independent Sector
Cambridgeshire County Council,15-Oct-15,19335182-12148491,-546.72,The Gables Specialist Nursing Home,Care Establishment,2 - Commissioning - Older people Pool,Older People Mental Health Fenland,Nursing Independent Sector
Cambridgeshire County Council,15-Oct-15,19335183-12148449,-546.72,The Gables Specialist Nursing Home,Care Establishment,2 - Commissioning - Older people Pool,Older People Mental Health Fenland,Nursing Independent Sector
Cambridgeshire County Council,15-Oct-15,19335186-12148452,-546.72,The Gables Specialist Nursing Home,Care Establishment,2 - Commissioning - Older people Pool,Older People Mental Health Fenland,Nursing Independent Sector
Cambridgeshire County Council,15-Oct-15,19335187-12148453,-546.72,The Gables Specialist Nursing Home,Care Establishment,2 - Commissioning - Older people Pool,Older People Mental Health Fenland,Nursing Independent Sector
Cambridgeshire County Council,15-Oct-15,19335188-12148454,-546.72,The Gables Specialist Nursing Home,Care Establishment,2 - Commissioning - Older people Pool,Older People Mental Health Fenland,Nursing Independent Sector
Cambridgeshire County Council,15-Oct-15,19335189-12148455,-546.72,The Gables Specialist Nursing Home,Care Establishment,2 - Commissioning - Older people Pool,Older People Mental Health Fenland,Nursing Independent Sector
Cambridgeshire County Council,15-Oct-15,19335190-12148456,-546.72,The Gables Specialist Nursing Home,Care Establishment,2 - Commissioning - Older people Pool,Older People Mental Health Fenland,Nursing Independent Sector
Cambridgeshire County Council,15-Oct-15,19335193-12148459,-546.72,The Gables Specialist Nursing Home,Care Establishment,2 - Commissioning - Older people Pool,Older People Mental Health Fenland,Nursing Independent Sector
Cambridgeshire County Council,15-Oct-15,19335198-12148464,-546.72,The Gables Specialist Nursing Home,Care Establishment,2 - Commissioning - Older people Pool,Older People Mental Health Fenland,Nursing Independent Sector
Cambridgeshire County Council,15-Oct-15,19335200-12148466,-546.72,The Gables Specialist Nursing Home,Care Establishment,2 - Commissioning - Older people Pool,Older People Mental Health Fenland,Nursing Independent Sector
Cambridgeshire County Council,15-Oct-15,19335201-12148467,-546.72,The Gables Specialist Nursing Home,Care Establishment,2 - Commissioning - Older people Pool,Older People Mental Health Fenland,Nursing Independent Sector
Cambridgeshire County Council,15-Oct-15,19335203-12148469,-546.72,The Gables Specialist Nursing Home,Care Establishment,2 - Commissioning - Older people Pool,Older People Mental Health Fenland,Nursing Independent Sector
Cambridgeshire County Council,15-Oct-15,19335204-12148470,-546.72,The Gables Specialist Nursing Home,Care Establishment,2 - Commissioning - Older people Pool,Older People Mental Health Fenland,Nursing Independent Sector
Cambridgeshire County Council,15-Oct-15,19335208-12148474,-546.72,The Gables Specialist Nursing Home,Care Establishment,2 - Commissioning - Older people Pool,Older People Mental Health Fenland,Nursing Independent Sector
Cambridgeshire County Council,15-Oct-15,19335212-12148478,-546.72,The Gables Specialist Nursing Home,Care Establishment,2 - Commissioning - Older people Pool,Older People Mental Health Fenland,Nursing Independent Sector
Cambridgeshire County Council,15-Oct-15,19335215-12148481,-546.72,The Gables Specialist Nursing Home,Care Establishment,2 - Commissioning - Older people Pool,Older People Mental Health Fenland,Nursing Independent Sector
Cambridgeshire County Council,15-Oct-15,19335216-12148482,-546.72,The Gables Specialist Nursing Home,Care Establishment,2 - Commissioning - Older people Pool,Older People Mental Health Fenland,Nursing Independent Sector
Cambridgeshire County Council,15-Oct-15,19335218-12148484,-546.72,The Gables Specialist Nursing Home,Care Establishment,2 - Commissioning - Older people Pool,Older People Mental Health Fenland,Nursing Independent Sector
Cambridgeshire County Council,15-Oct-15,19335219-12148244,-546.72,The Gables Specialist Nursing Home,Care Establishment,2 - Commissioning - Older people Pool,Older People Mental Health Fenland,Nursing Independent Sector
Cambridgeshire County Council,22-Oct-15,19382728-12183918,-545.37,Manor House Residential And Nursing,Care Establishment,2 - Commissioning - Older people Pool,Hunts O P  Team,Nursing Independent Sector
Cambridgeshire County Council,22-Oct-15,19382729-12183919,-545.37,Manor House Residential And Nursing,Care Establishment,2 - Commissioning - Older people Pool,Hunts O P  Team,Nursing Independent Sector
Cambridgeshire County Council,22-Oct-15,19382731-12183921,-545.37,Manor House Residential And Nursing,Care Establishment,2 - Commissioning - Older people Pool,Hunts O P  Team,Nursing Independent Sector
Cambridgeshire County Council,09-Oct-15,19378288-12116679,-542.86,Bramley Court,Care Establishment,2 - Commissioning - Older people Pool,Older People Mental Health City & South,Nursing Independent Sector
Cambridgeshire County Council,22-Oct-15,19437716-12181220,-541.29,Glennfield Care Centre (Op),Care Establishment,2 - Commissioning - Older people Pool,Wisbech Older People Integration Team,Residential Independent Sector
Cambridgeshire County Council,22-Oct-15,19437721-12181238,-541.29,Glennfield Care Centre (Op),Care Establishment,2 - Commissioning - Older people Pool,Wisbech Older People Integration Team,Residential Independent Sector
Cambridgeshire County Council,22-Oct-15,19437722-12181239,-541.29,Glennfield Care Centre (Op),Care Establishment,2 - Commissioning - Older people Pool,Wisbech Older People Integration Team,Residential Independent Sector
Cambridgeshire County Council,22-Oct-15,19437723-12181240,-541.29,Glennfield Care Centre (Op),Care Establishment,2 - Commissioning - Older people Pool,Wisbech Older People Integration Team,Residential Independent Sector
Cambridgeshire County Council,22-Oct-15,19437724-12181241,-541.29,Glennfield Care Centre (Op),Care Establishment,2 - Commissioning - Older people Pool,Wisbech Older People Integration Team,Residential Independent Sector
Cambridgeshire County Council,22-Oct-15,19437725-12181242,-541.29,Glennfield Care Centre (Op),Care Establishment,2 - Commissioning - Older people Pool,Wisbech Older People Integration Team,Residential Independent Sector
Cambridgeshire County Council,22-Oct-15,19437726-12181243,-541.29,Glennfield Care Centre (Op),Care Establishment,2 - Commissioning - Older people Pool,Wisbech Older People Integration Team,Residential Independent Sector
Cambridgeshire County Council,22-Oct-15,19437728-12181245,-541.29,Glennfield Care Centre (Op),Care Establishment,2 - Commissioning - Older people Pool,Wisbech Older People Integration Team,Residential Independent Sector
Cambridgeshire County Council,22-Oct-15,19437730-12181247,-541.29,Glennfield Care Centre (Op),Care Establishment,2 - Commissioning - Older people Pool,Wisbech Older People Integration Team,Residential Independent Sector
Cambridgeshire County Council,22-Oct-15,19437731-12181248,-541.29,Glennfield Care Centre (Op),Care Establishment,2 - Commissioning - Older people Pool,Wisbech Older People Integration Team,Residential Independent Sector
Cambridgeshire County Council,22-Oct-15,19437732-12181249,-541.29,Glennfield Care Centre (Op),Care Establishment,2 - Commissioning - Older people Pool,Wisbech Older People Integration Team,Residential Independent Sector
Cambridgeshire County Council,22-Oct-15,19437734-12181221,-541.29,Glennfield Care Centre (Op),Care Establishment,2 - Commissioning - Older people Pool,Wisbech Older People Integration Team,Residential Independent Sector
Cambridgeshire County Council,22-Oct-15,19437736-12181223,-541.29,Glennfield Care Centre (Op),Care Establishment,2 - Commissioning - Older people Pool,Wisbech Older People Integration Team,Residential Independent Sector
Cambridgeshire County Council,22-Oct-15,19437737-12181224,-541.29,Glennfield Care Centre (Op),Care Establishment,2 - Commissioning - Older people Pool,Wisbech Older People Integration Team,Residential Independent Sector
Cambridgeshire County Council,22-Oct-15,19437739-12181226,-541.29,Glennfield Care Centre (Op),Care Establishment,2 - Commissioning - Older people Pool,Wisbech Older People Integration Team,Residential Independent Sector
Cambridgeshire County Council,22-Oct-15,19437741-12181228,-541.29,Glennfield Care Centre (Op),Care Establishment,2 - Commissioning - Older people Pool,Wisbech Older People Integration Team,Residential Independent Sector
Cambridgeshire County Council,22-Oct-15,19437746-12181233,-541.29,Glennfield Care Centre (Op),Care Establishment,2 - Commissioning - Older people Pool,Wisbech Older People Integration Team,Residential Independent Sector
Cambridgeshire County Council,28-Oct-15,10347189-12206538,-539.26,Redacted Personal Data,Individual,2 - Commissioning - Older people Pool,Hunts O P  Team,SDS - Care and support Services
Cambridgeshire County Council,28-Oct-15,10347190-12206539,-539.26,Redacted Personal Data,Individual,2 - Commissioning - Older people Pool,Hunts O P  Team,SDS - Care and support Services
Cambridgeshire County Council,28-Oct-15,10347191-12206540,-539.26,Redacted Personal Data,Individual,2 - Commissioning - Older people Pool,Hunts O P  Team,SDS - Care and support Services
Cambridgeshire County Council,28-Oct-15,10347192-12206541,-539.26,Redacted Personal Data,Individual,2 - Commissioning - Older people Pool,Hunts O P  Team,SDS - Care and support Services
Cambridgeshire County Council,28-Oct-15,10347193-12206542,-539.26,Redacted Personal Data,Individual,2 - Commissioning - Older people Pool,Hunts O P  Team,SDS - Care and support Services
Cambridgeshire County Council,28-Oct-15,10347194-12206543,-539.26,Redacted Personal Data,Individual,2 - Commissioning - Older people Pool,Hunts O P  Team,SDS - Care and support Services
Cambridgeshire County Council,28-Oct-15,10347195-12206544,-539.26,Redacted Personal Data,Individual,2 - Commissioning - Older people Pool,Hunts O P  Team,SDS - Care and support Services
Cambridgeshire County Council,28-Oct-15,10347196-12206545,-539.26,Redacted Personal Data,Individual,2 - Commissioning - Older people Pool,Hunts O P  Team,SDS - Care and support Services
Cambridgeshire County Council,28-Oct-15,10347197-12206546,-539.26,Redacted Personal Data,Individual,2 - Commissioning - Older people Pool,Hunts O P  Team,SDS - Care and support Services
Cambridgeshire County Council,28-Oct-15,10347198-12206547,-539.26,Redacted Personal Data,Individual,2 - Commissioning - Older people Pool,Hunts O P  Team,SDS - Care and support Services
Cambridgeshire County Council,28-Oct-15,10347200-12206549,-539.26,Redacted Personal Data,Individual,2 - Commissioning - Older people Pool,Hunts O P  Team,SDS - Care and support Services
Cambridgeshire County Council,28-Oct-15,10347201-12206550,-539.26,Redacted Personal Data,Individual,2 - Commissioning - Older people Pool,Hunts O P  Team,SDS - Care and support Services
Cambridgeshire County Council,28-Oct-15,10347202-12206551,-539.26,Redacted Personal Data,Individual,2 - Commissioning - Older people Pool,Hunts O P  Team,SDS - Care and support Services
Cambridgeshire County Council,28-Oct-15,10347203-12206552,-539.26,Redacted Personal Data,Individual,2 - Commissioning - Older people Pool,Hunts O P  Team,SDS - Care and support Services
Cambridgeshire County Council,28-Oct-15,10347204-12206553,-539.26,Redacted Personal Data,Individual,2 - Commissioning - Older people Pool,Hunts O P  Team,SDS - Care and support Services
Cambridgeshire County Council,28-Oct-15,10347205-12206554,-539.26,Redacted Personal Data,Individual,2 - Commissioning - Older people Pool,Hunts O P  Team,SDS - Care and support Services
Cambridgeshire County Council,28-Oct-15,10347206-12206555,-539.26,Redacted Personal Data,Individual,2 - Commissioning - Older people Pool,Hunts O P  Team,SDS - Care and support Services
Cambridgeshire County Council,28-Oct-15,10347207-12206556,-539.26,Redacted Personal Data,Individual,2 - Commissioning - Older people Pool,Hunts O P  Team,SDS - Care and support Services
Cambridgeshire County Council,28-Oct-15,10347208-12206557,-539.26,Redacted Personal Data,Individual,2 - Commissioning - Older people Pool,Hunts O P  Team,SDS - Care and support Services
Cambridgeshire County Council,28-Oct-15,10347209-12206558,-539.26,Redacted Personal Data,Individual,2 - Commissioning - Older people Pool,Hunts O P  Team,SDS - Care and support Services
Cambridgeshire County Council,28-Oct-15,10347210-12206559,-539.26,Redacted Personal Data,Individual,2 - Commissioning - Older people Pool,Hunts O P  Team,SDS - Care and support Services
Cambridgeshire County Council,28-Oct-15,10347213-12206560,-539.26,Redacted Personal Data,Individual,2 - Commissioning - Older people Pool,Hunts O P  Team,SDS - Care and support Services
Cambridgeshire County Council,28-Oct-15,10347215-12206562,-539.26,Redacted Personal Data,Individual,2 - Commissioning - Older people Pool,Hunts O P  Team,SDS - Care and support Services
Cambridgeshire County Council,28-Oct-15,10347216-12206563,-539.26,Redacted Personal Data,Individual,2 - Commissioning - Older people Pool,Hunts O P  Team,SDS - Care and support Services
Cambridgeshire County Council,28-Oct-15,10347217-12206564,-539.26,Redacted Personal Data,Individual,2 - Commissioning - Older people Pool,Hunts O P  Team,SDS - Care and support Services
Cambridgeshire County Council,28-Oct-15,10347218-12206565,-539.26,Redacted Personal Data,Individual,2 - Commissioning - Older people Pool,Hunts O P  Team,SDS - Care and support Services
Cambridgeshire County Council,28-Oct-15,10347219-12206566,-539.26,Redacted Personal Data,Individual,2 - Commissioning - Older people Pool,Hunts O P  Team,SDS - Care and support Services
Cambridgeshire County Council,28-Oct-15,10347220-12206567,-539.26,Redacted Personal Data,Individual,2 - Commissioning - Older people Pool,Hunts O P  Team,SDS - Care and support Services
Cambridgeshire County Council,28-Oct-15,10347221-12206568,-539.26,Redacted Personal Data,Individual,2 - Commissioning - Older people Pool,Hunts O P  Team,SDS - Care and support Services
Cambridgeshire County Council,28-Oct-15,10347222-12206569,-539.26,Redacted Personal Data,Individual,2 - Commissioning - Older people Pool,Hunts O P  Team,SDS - Care and support Services
Cambridgeshire County Council,28-Oct-15,10347223-12206570,-539.26,Redacted Personal Data,Individual,2 - Commissioning - Older people Pool,Hunts O P  Team,SDS - Care and support Services
Cambridgeshire County Council,28-Oct-15,10347224-12206571,-539.26,Redacted Personal Data,Individual,2 - Commissioning - Older people Pool,Hunts O P  Team,SDS - Care and support Services
Cambridgeshire County Council,28-Oct-15,10347225-12206572,-539.26,Redacted Personal Data,Individual,2 - Commissioning - Older people Pool,Hunts O P  Team,SDS - Care and support Services
Cambridgeshire County Council,28-Oct-15,10347226-12206573,-539.26,Redacted Personal Data,Individual,2 - Commissioning - Older people Pool,Hunts O P  Team,SDS - Care and support Services
Cambridgeshire County Council,28-Oct-15,10347227-12206574,-539.26,Redacted Personal Data,Individual,2 - Commissioning - Older people Pool,Hunts O P  Team,SDS - Care and support Services
Cambridgeshire County Council,28-Oct-15,10347228-12206575,-539.26,Redacted Personal Data,Individual,2 - Commissioning - Older people Pool,Hunts O P  Team,SDS - Care and support Services
Cambridgeshire County Council,28-Oct-15,10347229-12206576,-539.26,Redacted Personal Data,Individual,2 - Commissioning - Older people Pool,Hunts O P  Team,SDS - Care and support Services
Cambridgeshire County Council,28-Oct-15,10347231-12206578,-539.26,Redacted Personal Data,Individual,2 - Commissioning - Older people Pool,Hunts O P  Team,SDS - Care and support Services
Cambridgeshire County Council,28-Oct-15,10347232-12206579,-539.26,Redacted Personal Data,Individual,2 - Commissioning - Older people Pool,Hunts O P  Team,SDS - Care and support Services
Cambridgeshire County Council,28-Oct-15,10347233-12206580,-539.26,Redacted Personal Data,Individual,2 - Commissioning - Older people Pool,Hunts O P  Team,SDS - Care and support Services
Cambridgeshire County Council,28-Oct-15,10347234-12206581,-539.26,Redacted Personal Data,Individual,2 - Commissioning - Older people Pool,Hunts O P  Team,SDS - Care and support Services
Cambridgeshire County Council,28-Oct-15,10347235-12206582,-539.26,Redacted Personal Data,Individual,2 - Commissioning - Older people Pool,Hunts O P  Team,SDS - Care and support Services
Cambridgeshire County Council,28-Oct-15,10347236-12206583,-539.26,Redacted Personal Data,Individual,2 - Commissioning - Older people Pool,Hunts O P  Team,SDS - Care and support Services
Cambridgeshire County Council,28-Oct-15,10347237-12206584,-539.26,Redacted Personal Data,Individual,2 - Commissioning - Older people Pool,Hunts O P  Team,SDS - Care and support Services
Cambridgeshire County Council,28-Oct-15,10347238-12206585,-539.26,Redacted Personal Data,Individual,2 - Commissioning - Older people Pool,Hunts O P  Team,SDS - Care and support Services
Cambridgeshire County Council,28-Oct-15,10347239-12206586,-539.26,Redacted Personal Data,Individual,2 - Commissioning - Older people Pool,Hunts O P  Team,SDS - Care and support Services
Cambridgeshire County Council,28-Oct-15,10347240-12206587,-539.26,Redacted Personal Data,Individual,2 - Commissioning - Older people Pool,Hunts O P  Team,SDS - Care and support Services
Cambridgeshire County Council,28-Oct-15,10347241-12206588,-539.26,Redacted Personal Data,Individual,2 - Commissioning - Older people Pool,Hunts O P  Team,SDS - Care and support Services
Cambridgeshire County Council,28-Oct-15,10347242-12206589,-539.26,Redacted Personal Data,Individual,2 - Commissioning - Older people Pool,Hunts O P  Team,SDS - Care and support Services
Cambridgeshire County Council,28-Oct-15,10347243-12206590,-539.26,Redacted Personal Data,Individual,2 - Commissioning - Older people Pool,Hunts O P  Team,SDS - Care and support Services
Cambridgeshire County Council,28-Oct-15,10347244-12206591,-539.26,Redacted Personal Data,Individual,2 - Commissioning - Older people Pool,Hunts O P  Team,SDS - Care and support Services
Cambridgeshire County Council,28-Oct-15,10347245-12206592,-539.26,Redacted Personal Data,Individual,2 - Commissioning - Older people Pool,Hunts O P  Team,SDS - Care and support Services
Cambridgeshire County Council,28-Oct-15,10347246-12206593,-539.26,Redacted Personal Data,Individual,2 - Commissioning - Older people Pool,Hunts O P  Team,SDS - Care and support Services
Cambridgeshire County Council,28-Oct-15,10347247-12206594,-539.26,Redacted Personal Data,Individual,2 - Commissioning - Older people Pool,Hunts O P  Team,SDS - Care and support Services
Cambridgeshire County Council,28-Oct-15,10347250-12206596,-539.26,Redacted Personal Data,Individual,2 - Commissioning - Older people Pool,Hunts O P  Team,SDS - Care and support Services
Cambridgeshire County Council,28-Oct-15,10347251-12206597,-539.26,Redacted Personal Data,Individual,2 - Commissioning - Older people Pool,Hunts O P  Team,SDS - Care and support Services
Cambridgeshire County Council,28-Oct-15,10347252-12206598,-539.26,Redacted Personal Data,Individual,2 - Commissioning - Older people Pool,Hunts O P  Team,SDS - Care and support Services
Cambridgeshire County Council,28-Oct-15,10347253-12206599,-539.26,Redacted Personal Data,Individual,2 - Commissioning - Older people Pool,Hunts O P  Team,SDS - Care and support Services
Cambridgeshire County Council,28-Oct-15,10347254-12206600,-539.26,Redacted Personal Data,Individual,2 - Commissioning - Older people Pool,Hunts O P  Team,SDS - Care and support Services
Cambridgeshire County Council,28-Oct-15,10347255-12206601,-539.26,Redacted Personal Data,Individual,2 - Commissioning - Older people Pool,Hunts O P  Team,SDS - Care and support Services
Cambridgeshire County Council,28-Oct-15,10347256-12206602,-539.26,Redacted Personal Data,Individual,2 - Commissioning - Older people Pool,Hunts O P  Team,SDS - Care and support Services
Cambridgeshire County Council,28-Oct-15,10347257-12206603,-539.26,Redacted Personal Data,Individual,2 - Commissioning - Older people Pool,Hunts O P  Team,SDS - Care and support Services
Cambridgeshire County Council,28-Oct-15,10347258-12206604,-539.26,Redacted Personal Data,Individual,2 - Commissioning - Older people Pool,Hunts O P  Team,SDS - Care and support Services
Cambridgeshire County Council,28-Oct-15,10347259-12206605,-539.26,Redacted Personal Data,Individual,2 - Commissioning - Older people Pool,Hunts O P  Team,SDS - Care and support Services
Cambridgeshire County Council,28-Oct-15,10347260-12206606,-539.26,Redacted Personal Data,Individual,2 - Commissioning - Older people Pool,Hunts O P  Team,SDS - Care and support Services
Cambridgeshire County Council,28-Oct-15,10347261-12206607,-539.26,Redacted Personal Data,Individual,2 - Commissioning - Older people Pool,Hunts O P  Team,SDS - Care and support Services
Cambridgeshire County Council,28-Oct-15,10347262-12206608,-539.26,Redacted Personal Data,Individual,2 - Commissioning - Older people Pool,Hunts O P  Team,SDS - Care and support Services
Cambridgeshire County Council,28-Oct-15,10347263-12206433,-539.26,Redacted Personal Data,Individual,2 - Commissioning - Older people Pool,Hunts O P  Team,SDS - Care and support Services
Cambridgeshire County Council,28-Oct-15,10347264-12206434,-539.26,Redacted Personal Data,Individual,2 - Commissioning - Older people Pool,Hunts O P  Team,SDS - Care and support Services
Cambridgeshire County Council,28-Oct-15,10347265-12206435,-539.26,Redacted Personal Data,Individual,2 - Commissioning - Older people Pool,Hunts O P  Team,SDS - Care and support Services
Cambridgeshire County Council,28-Oct-15,10347266-12206436,-539.26,Redacted Personal Data,Individual,2 - Commissioning - Older people Pool,Hunts O P  Team,SDS - Care and support Services
Cambridgeshire County Council,28-Oct-15,10347267-12206437,-539.26,Redacted Personal Data,Individual,2 - Commissioning - Older people Pool,Hunts O P  Team,SDS - Care and support Services
Cambridgeshire County Council,28-Oct-15,10347268-12206438,-539.26,Redacted Personal Data,Individual,2 - Commissioning - Older people Pool,Hunts O P  Team,SDS - Care and support Services
Cambridgeshire County Council,28-Oct-15,10347269-12206439,-539.26,Redacted Personal Data,Individual,2 - Commissioning - Older people Pool,Hunts O P  Team,SDS - Care and support Services
Cambridgeshire County Council,28-Oct-15,10347271-12206441,-539.26,Redacted Personal Data,Individual,2 - Commissioning - Older people Pool,Hunts O P  Team,SDS - Care and support Services
Cambridgeshire County Council,28-Oct-15,10347273-12206443,-539.26,Redacted Personal Data,Individual,2 - Commissioning - Older people Pool,Hunts O P  Team,SDS - Care and support Services
Cambridgeshire County Council,28-Oct-15,10347274-12206444,-539.26,Redacted Personal Data,Individual,2 - Commissioning - Older people Pool,Hunts O P  Team,SDS - Care and support Services
Cambridgeshire County Council,28-Oct-15,10347275-12206445,-539.26,Redacted Personal Data,Individual,2 - Commissioning - Older people Pool,Hunts O P  Team,SDS - Care and support Services
Cambridgeshire County Council,28-Oct-15,10347276-12206446,-539.26,Redacted Personal Data,Individual,2 - Commissioning - Older people Pool,Hunts O P  Team,SDS - Care and support Services
Cambridgeshire County Council,28-Oct-15,10347277-12206447,-539.26,Redacted Personal Data,Individual,2 - Commissioning - Older people Pool,Hunts O P  Team,SDS - Care and support Services
Cambridgeshire County Council,28-Oct-15,10347278-12206448,-539.26,Redacted Personal Data,Individual,2 - Commissioning - Older people Pool,Hunts O P  Team,SDS - Care and support Services
Cambridgeshire County Council,28-Oct-15,10347279-12206449,-539.26,Redacted Personal Data,Individual,2 - Commissioning - Older people Pool,Hunts O P  Team,SDS - Care and support Services
Cambridgeshire County Council,28-Oct-15,10347280-12206450,-539.26,Redacted Personal Data,Individual,2 - Commissioning - Older people Pool,Hunts O P  Team,SDS - Care and support Services
Cambridgeshire County Council,28-Oct-15,10347282-12206479,-539.26,Redacted Personal Data,Individual,2 - Commissioning - Older people Pool,Hunts O P  Team,SDS - Care and support Services
Cambridgeshire County Council,28-Oct-15,10347283-12206480,-539.26,Redacted Personal Data,Individual,2 - Commissioning - Older people Pool,Hunts O P  Team,SDS - Care and support Services
Cambridgeshire County Council,01-Oct-15,19356853-12084413,-539.09,Redacted Personal Data,Individual,2 - Commissioning - Older people Pool,North City Older People's Integrated Team,Direct Payments - Social Services
Cambridgeshire County Council,01-Oct-15,19356854-12084414,-539.09,Redacted Personal Data,Individual,2 - Commissioning - Older people Pool,North City Older People's Integrated Team,Direct Payments - Social Services
Cambridgeshire County Council,01-Oct-15,19356855-12084415,-539.09,Redacted Personal Data,Individual,2 - Commissioning - Older people Pool,North City Older People's Integrated Team,Direct Payments - Social Services
Cambridgeshire County Council,01-Oct-15,19356857-12084417,-539.09,Redacted Personal Data,Individual,2 - Commissioning - Older people Pool,North City Older People's Integrated Team,Direct Payments - Social Services
Cambridgeshire County Council,01-Oct-15,19356860-12084420,-539.09,Redacted Personal Data,Individual,2 - Commissioning - Older people Pool,North City Older People's Integrated Team,Direct Payments - Social Services
Cambridgeshire County Council,01-Oct-15,19356861-12084421,-539.09,Redacted Personal Data,Individual,2 - Commissioning - Older people Pool,North City Older People's Integrated Team,Direct Payments - Social Services
Cambridgeshire County Council,01-Oct-15,19356864-12084424,-539.09,Redacted Personal Data,Individual,2 - Commissioning - Older people Pool,North City Older People's Integrated Team,Direct Payments - Social Services
Cambridgeshire County Council,01-Oct-15,19356865-12084425,-539.09,Redacted Personal Data,Individual,2 - Commissioning - Older people Pool,North City Older People's Integrated Team,Direct Payments - Social Services
Cambridgeshire County Council,01-Oct-15,19356868-12084428,-539.09,Redacted Personal Data,Individual,2 - Commissioning - Older people Pool,North City Older People's Integrated Team,Direct Payments - Social Services
Cambridgeshire County Council,01-Oct-15,19356869-12084429,-539.09,Redacted Personal Data,Individual,2 - Commissioning - Older people Pool,North City Older People's Integrated Team,Direct Payments - Social Services
Cambridgeshire County Council,01-Oct-15,19356872-12084432,-539.09,Redacted Personal Data,Individual,2 - Commissioning - Older people Pool,North City Older People's Integrated Team,Direct Payments - Social Services
Cambridgeshire County Council,01-Oct-15,19356873-12084433,-539.09,Redacted Personal Data,Individual,2 - Commissioning - Older people Pool,North City Older People's Integrated Team,Direct Payments - Social Services
Cambridgeshire County Council,01-Oct-15,19356875-12084435,-539.09,Redacted Personal Data,Individual,2 - Commissioning - Older people Pool,North City Older People's Integrated Team,Direct Payments - Social Services
Cambridgeshire County Council,01-Oct-15,19356876-12084436,-539.09,Redacted Personal Data,Individual,2 - Commissioning - Older people Pool,North City Older People's Integrated Team,Direct Payments - Social Services
Cambridgeshire County Council,01-Oct-15,19356877-12084437,-539.09,Redacted Personal Data,Individual,2 - Commissioning - Older people Pool,North City Older People's Integrated Team,Direct Payments - Social Services
Cambridgeshire County Council,01-Oct-15,19356878-12084438,-539.09,Redacted Personal Data,Individual,2 - Commissioning - Older people Pool,North City Older People's Integrated Team,Direct Payments - Social Services
Cambridgeshire County Council,01-Oct-15,19356881-12084441,-539.09,Redacted Personal Data,Individual,2 - Commissioning - Older people Pool,North City Older People's Integrated Team,Direct Payments - Social Services
Cambridgeshire County Council,01-Oct-15,19356883-12084443,-539.09,Redacted Personal Data,Individual,2 - Commissioning - Older people Pool,North City Older People's Integrated Team,Direct Payments - Social Services
Cambridgeshire County Council,01-Oct-15,19356887-12084447,-539.09,Redacted Personal Data,Individual,2 - Commissioning - Older people Pool,North City Older People's Integrated Team,Direct Payments - Social Services
Cambridgeshire County Council,01-Oct-15,19356888-12084448,-539.09,Redacted Personal Data,Individual,2 - Commissioning - Older people Pool,North City Older People's Integrated Team,Direct Payments - Social Services
Cambridgeshire County Council,01-Oct-15,19356891-12084451,-539.09,Redacted Personal Data,Individual,2 - Commissioning - Older people Pool,North City Older People's Integrated Team,Direct Payments - Social Services
Cambridgeshire County Council,01-Oct-15,19356897-12084457,-539.09,Redacted Personal Data,Individual,2 - Commissioning - Older people Pool,North City Older People's Integrated Team,Direct Payments - Social Services
Cambridgeshire County Council,01-Oct-15,19356900-12084460,-539.09,Redacted Personal Data,Individual,2 - Commissioning - Older people Pool,North City Older People's Integrated Team,Direct Payments - Social Services
Cambridgeshire County Council,01-Oct-15,19356905-12084465,-539.09,Redacted Personal Data,Individual,2 - Commissioning - Older people Pool,North City Older People's Integrated Team,Direct Payments - Social Services
Cambridgeshire County Council,01-Oct-15,19356907-12084467,-539.09,Redacted Personal Data,Individual,2 - Commissioning - Older people Pool,North City Older People's Integrated Team,Direct Payments - Social Services
Cambridgeshire County Council,01-Oct-15,19356909-12084469,-539.09,Redacted Personal Data,Individual,2 - Commissioning - Older people Pool,North City Older People's Integrated Team,Direct Payments - Social Services
Cambridgeshire County Council,01-Oct-15,19356910-12084470,-539.09,Redacted Personal Data,Individual,2 - Commissioning - Older people Pool,North City Older People's Integrated Team,Direct Payments - Social Services
Cambridgeshire County Council,29-Oct-15,19444929-12210675,-532.98,Redacted Personal Data,Individual,2 - Operations - Learning Disability,LDP City Team,Residential Independent Sector
Cambridgeshire County Council,28-Oct-15,16850393-12206460,-528.81,Redacted Personal Data,Individual,2 - Commissioning - Older people Pool,Hunts O P  Team,SDS - Care and support Services
Cambridgeshire County Council,28-Oct-15,16852415-12206475,-528.81,Redacted Personal Data,Individual,2 - Commissioning - Older people Pool,Hunts O P  Team,SDS - Care and support Services
Cambridgeshire County Council,28-Oct-15,16852416-12206476,-528.81,Redacted Personal Data,Individual,2 - Commissioning - Older people Pool,Hunts O P  Team,SDS - Care and support Services
Cambridgeshire County Council,28-Oct-15,16852455-12206360,-528.81,Redacted Personal Data,Individual,2 - Commissioning - Older people Pool,Hunts O P  Team,SDS - Care and support Services
Cambridgeshire County Council,28-Oct-15,16852456-12206361,-528.81,Redacted Personal Data,Individual,2 - Commissioning - Older people Pool,Hunts O P  Team,SDS - Care and support Services
Cambridgeshire County Council,28-Oct-15,16852457-12206362,-528.81,Redacted Personal Data,Individual,2 - Commissioning - Older people Pool,Hunts O P  Team,SDS - Care and support Services
Cambridgeshire County Council,28-Oct-15,16852484-12206375,-528.81,Redacted Personal Data,Individual,2 - Commissioning - Older people Pool,Hunts O P  Team,SDS - Care and support Services
Cambridgeshire County Council,28-Oct-15,16856507-12206387,-528.81,Redacted Personal Data,Individual,2 - Commissioning - Older people Pool,Hunts O P  Team,SDS - Care and support Services
Cambridgeshire County Council,28-Oct-15,16856515-12206394,-528.81,Redacted Personal Data,Individual,2 - Commissioning - Older people Pool,Hunts O P  Team,SDS - Care and support Services
Cambridgeshire County Council,28-Oct-15,16856525-12206399,-528.81,Redacted Personal Data,Individual,2 - Commissioning - Older people Pool,Hunts O P  Team,SDS - Care and support Services
Cambridgeshire County Council,28-Oct-15,16856527-12206401,-528.81,Redacted Personal Data,Individual,2 - Commissioning - Older people Pool,Hunts O P  Team,SDS - Care and support Services
Cambridgeshire County Council,28-Oct-15,16856535-12206405,-528.81,Redacted Personal Data,Individual,2 - Commissioning - Older people Pool,Hunts O P  Team,SDS - Care and support Services
Cambridgeshire County Council,28-Oct-15,16856540-12206408,-528.81,Redacted Personal Data,Individual,2 - Commissioning - Older people Pool,Hunts O P  Team,SDS - Care and support Services
Cambridgeshire County Council,28-Oct-15,16856551-12206413,-528.81,Redacted Personal Data,Individual,2 - Commissioning - Older people Pool,Hunts O P  Team,SDS - Care and support Services
Cambridgeshire County Council,28-Oct-15,16856555-12206415,-528.81,Redacted Personal Data,Individual,2 - Commissioning - Older people Pool,Hunts O P  Team,SDS - Care and support Services
Cambridgeshire County Council,28-Oct-15,16856560-12206419,-528.81,Redacted Personal Data,Individual,2 - Commissioning - Older people Pool,Hunts O P  Team,SDS - Care and support Services
Cambridgeshire County Council,28-Oct-15,16856576-12206425,-528.81,Redacted Personal Data,Individual,2 - Commissioning - Older people Pool,Hunts O P  Team,SDS - Care and support Services
Cambridgeshire County Council,28-Oct-15,16856577-12206426,-528.81,Redacted Personal Data,Individual,2 - Commissioning - Older people Pool,Hunts O P  Team,SDS - Care and support Services
Cambridgeshire County Council,15-Oct-15,19357070-12153438,-528.79,Hunters Healthcare (Hunters Down),Care Establishment,2 - Commissioning - Older people Pool,Hunts O P  Team,Nursing Independent Sector
Cambridgeshire County Council,15-Oct-15,19333093-12148506,-528.57,The Gables Specialist Nursing Home,Care Establishment,2 - Commissioning - Older people Pool,Older People Mental Health Hunts,Nursing Independent Sector
Cambridgeshire County Council,09-Oct-15,19354208-12114249,-521.74,Heron House Care Home,Care Establishment,2 - Commissioning - Older people Pool,Wisbech Older People Integration Team,Nursing Independent Sector
Cambridgeshire County Council,09-Oct-15,19354209-12114250,-521.74,Heron House Care Home,Care Establishment,2 - Commissioning - Older people Pool,Wisbech Older People Integration Team,Nursing Independent Sector
Cambridgeshire County Council,09-Oct-15,19354210-12114251,-521.74,Heron House Care Home,Care Establishment,2 - Commissioning - Older people Pool,Wisbech Older People Integration Team,Nursing Independent Sector
Cambridgeshire County Council,09-Oct-15,19354212-12114253,-521.74,Heron House Care Home,Care Establishment,2 - Commissioning - Older people Pool,Wisbech Older People Integration Team,Nursing Independent Sector
Cambridgeshire County Council,09-Oct-15,19354213-12114254,-521.74,Heron House Care Home,Care Establishment,2 - Commissioning - Older people Pool,Wisbech Older People Integration Team,Nursing Independent Sector
Cambridgeshire County Council,09-Oct-15,19354214-12114255,-521.74,Heron House Care Home,Care Establishment,2 - Commissioning - Older people Pool,Wisbech Older People Integration Team,Nursing Independent Sector
Cambridgeshire County Council,22-Oct-15,19442116-12185825,-521.74,Swan House Nursing & Residential Home,Care Establishment,2 - Commissioning - Older people Pool,Hunts O P  Team,Nursing Independent Sector
Cambridgeshire County Council,22-Oct-15,19442683-12188983,-520.56,Ringshill Care Home,Care Establishment,2 - Commissioning - Older people Pool,Hunts O P  Team,Nursing Independent Sector
Cambridgeshire County Council,22-Oct-15,19411841-12183857,-515.6,The Elms Nursing Home,Care Establishment,2 - Commissioning - Older people Pool,East Cambs - O P Team,Nursing Independent Sector
Cambridgeshire County Council,22-Oct-15,19411842-12183858,-515.6,The Elms Nursing Home,Care Establishment,2 - Commissioning - Older people Pool,East Cambs - O P Team,Nursing Independent Sector
Cambridgeshire County Council,15-Oct-15,19325599-12151377,-514.5,Thera East Anglia,Trust (Other),2 - Commissioning - Older people Pool,Hunts O P  Team,Day and Domicillary Care Independent Sector
Cambridgeshire County Council,09-Oct-15,19329684-12114278,-513.1,Heron House Care Home,Care Establishment,2 - Commissioning - Older people Pool,Older People Mental Health Hunts,Nursing Independent Sector
Cambridgeshire County Council,09-Oct-15,19329685-12114279,-513.1,Heron House Care Home,Care Establishment,2 - Commissioning - Older people Pool,Older People Mental Health Hunts,Nursing Independent Sector
Cambridgeshire County Council,09-Oct-15,19329687-12114281,-513.1,Heron House Care Home,Care Establishment,2 - Commissioning - Older people Pool,Older People Mental Health Hunts,Nursing Independent Sector
Cambridgeshire County Council,09-Oct-15,19329695-12114289,-513.1,Heron House Care Home,Care Establishment,2 - Commissioning - Older people Pool,Older People Mental Health Hunts,Nursing Independent Sector
Cambridgeshire County Council,09-Oct-15,19329698-12114292,-513.1,Heron House Care Home,Care Establishment,2 - Commissioning - Older people Pool,Older People Mental Health Hunts,Nursing Independent Sector
Cambridgeshire County Council,09-Oct-15,19329699-12114293,-513.1,Heron House Care Home,Care Establishment,2 - Commissioning - Older people Pool,Older People Mental Health Hunts,Nursing Independent Sector
Cambridgeshire County Council,09-Oct-15,19329701-12114295,-513.1,Heron House Care Home,Care Establishment,2 - Commissioning - Older people Pool,Older People Mental Health Hunts,Nursing Independent Sector
Cambridgeshire County Council,09-Oct-15,19329703-12114297,-513.1,Heron House Care Home,Care Establishment,2 - Commissioning - Older people Pool,Older People Mental Health Hunts,Nursing Independent Sector
Cambridgeshire County Council,09-Oct-15,19329704-12114298,-513.1,Heron House Care Home,Care Establishment,2 - Commissioning - Older people Pool,Older People Mental Health Hunts,Nursing Independent Sector
Cambridgeshire County Council,09-Oct-15,19329705-12114299,-513.1,Heron House Care Home,Care Establishment,2 - Commissioning - Older people Pool,Older People Mental Health Hunts,Nursing Independent Sector
Cambridgeshire County Council,09-Oct-15,19329707-12114301,-513.1,Heron House Care Home,Care Establishment,2 - Commissioning - Older people Pool,Older People Mental Health Hunts,Nursing Independent Sector
Cambridgeshire County Council,09-Oct-15,19329710-12114304,-513.1,Heron House Care Home,Care Establishment,2 - Commissioning - Older people Pool,Older People Mental Health Hunts,Nursing Independent Sector
Cambridgeshire County Council,09-Oct-15,19329711-12114305,-513.1,Heron House Care Home,Care Establishment,2 - Commissioning - Older people Pool,Older People Mental Health Hunts,Nursing Independent Sector
Cambridgeshire County Council,09-Oct-15,19329714-12114264,-513.1,Heron House Care Home,Care Establishment,2 - Commissioning - Older people Pool,Older People Mental Health Hunts,Nursing Independent Sector
Cambridgeshire County Council,09-Oct-15,19329716-12114266,-513.1,Heron House Care Home,Care Establishment,2 - Commissioning - Older people Pool,Older People Mental Health Hunts,Nursing Independent Sector
Cambridgeshire County Council,09-Oct-15,19329719-12114269,-513.1,Heron House Care Home,Care Establishment,2 - Commissioning - Older people Pool,Older People Mental Health Hunts,Nursing Independent Sector
Cambridgeshire County Council,09-Oct-15,19329720-12114270,-513.1,Heron House Care Home,Care Establishment,2 - Commissioning - Older people Pool,Older People Mental Health Hunts,Nursing Independent Sector
Cambridgeshire County Council,09-Oct-15,19329721-12114271,-513.1,Heron House Care Home,Care Establishment,2 - Commissioning - Older people Pool,Older People Mental Health Hunts,Nursing Independent Sector
Cambridgeshire County Council,09-Oct-15,19329723-12114273,-513.1,Heron House Care Home,Care Establishment,2 - Commissioning - Older people Pool,Older People Mental Health Hunts,Nursing Independent Sector
Cambridgeshire County Council,09-Oct-15,19351647-12114214,-513.1,Heron House Care Home,Care Establishment,2 - Commissioning - Older people Pool,Older People Mental Health Hunts,Nursing Independent Sector
Cambridgeshire County Council,09-Oct-15,19351649-12114216,-513.1,Heron House Care Home,Care Establishment,2 - Commissioning - Older people Pool,Older People Mental Health Hunts,Nursing Independent Sector
Cambridgeshire County Council,09-Oct-15,19351650-12114217,-513.1,Heron House Care Home,Care Establishment,2 - Commissioning - Older people Pool,Older People Mental Health Hunts,Nursing Independent Sector
Cambridgeshire County Council,09-Oct-15,19351651-12114218,-513.1,Heron House Care Home,Care Establishment,2 - Commissioning - Older people Pool,Older People Mental Health Hunts,Nursing Independent Sector
Cambridgeshire County Council,09-Oct-15,19351652-12114219,-513.1,Heron House Care Home,Care Establishment,2 - Commissioning - Older people Pool,Older People Mental Health Hunts,Nursing Independent Sector
Cambridgeshire County Council,09-Oct-15,19351656-12114223,-513.1,Heron House Care Home,Care Establishment,2 - Commissioning - Older people Pool,Older People Mental Health Hunts,Nursing Independent Sector
Cambridgeshire County Council,09-Oct-15,19351657-12114224,-513.1,Heron House Care Home,Care Establishment,2 - Commissioning - Older people Pool,Older People Mental Health Hunts,Nursing Independent Sector
Cambridgeshire County Council,09-Oct-15,19351659-12114226,-513.1,Heron House Care Home,Care Establishment,2 - Commissioning - Older people Pool,Older People Mental Health Hunts,Nursing Independent Sector
Cambridgeshire County Council,09-Oct-15,19351661-12114228,-513.1,Heron House Care Home,Care Establishment,2 - Commissioning - Older people Pool,Older People Mental Health Hunts,Nursing Independent Sector
Cambridgeshire County Council,09-Oct-15,19351662-12114229,-513.1,Heron House Care Home,Care Establishment,2 - Commissioning - Older people Pool,Older People Mental Health Hunts,Nursing Independent Sector
Cambridgeshire County Council,09-Oct-15,19351663-12114230,-513.1,Heron House Care Home,Care Establishment,2 - Commissioning - Older people Pool,Older People Mental Health Hunts,Nursing Independent Sector
Cambridgeshire County Council,09-Oct-15,19351664-12114231,-513.1,Heron House Care Home,Care Establishment,2 - Commissioning - Older people Pool,Older People Mental Health Hunts,Nursing Independent Sector
Cambridgeshire County Council,09-Oct-15,19351666-12114233,-513.1,Heron House Care Home,Care Establishment,2 - Commissioning - Older people Pool,Older People Mental Health Hunts,Nursing Independent Sector
Cambridgeshire County Council,09-Oct-15,19351667-12114234,-513.1,Heron House Care Home,Care Establishment,2 - Commissioning - Older people Pool,Older People Mental Health Hunts,Nursing Independent Sector
Cambridgeshire County Council,09-Oct-15,19353670-12114237,-513.1,Heron House Care Home,Care Establishment,2 - Commissioning - Older people Pool,Older People Mental Health Hunts,Nursing Independent Sector
Cambridgeshire County Council,09-Oct-15,19353676-12114243,-513.1,Heron House Care Home,Care Establishment,2 - Commissioning - Older people Pool,Older People Mental Health Hunts,Nursing Independent Sector
Cambridgeshire County Council,09-Oct-15,19354351-12114256,-513.1,Heron House Care Home,Care Establishment,2 - Commissioning - Older people Pool,Older People Mental Health Hunts,Nursing Independent Sector
Cambridgeshire County Council,09-Oct-15,19354354-12114259,-513.1,Heron House Care Home,Care Establishment,2 - Commissioning - Older people Pool,Older People Mental Health Hunts,Nursing Independent Sector
Cambridgeshire County Council,09-Oct-15,19354357-12114261,-513.1,Heron House Care Home,Care Establishment,2 - Commissioning - Older people Pool,Older People Mental Health Hunts,Nursing Independent Sector
Cambridgeshire County Council,09-Oct-15,19382556-12114317,-513.1,Heron House Care Home,Care Establishment,2 - Commissioning - Older people Pool,Older People Mental Health Hunts,Nursing Independent Sector
Cambridgeshire County Council,09-Oct-15,19382560-12114321,-513.1,Heron House Care Home,Care Establishment,2 - Commissioning - Older people Pool,Older People Mental Health Hunts,Nursing Independent Sector
Cambridgeshire County Council,09-Oct-15,19382561-12114322,-513.1,Heron House Care Home,Care Establishment,2 - Commissioning - Older people Pool,Older People Mental Health Hunts,Nursing Independent Sector
Cambridgeshire County Council,09-Oct-15,19382564-12114325,-513.1,Heron House Care Home,Care Establishment,2 - Commissioning - Older people Pool,Older People Mental Health Hunts,Nursing Independent Sector
Cambridgeshire County Council,09-Oct-15,19382569-12114330,-513.1,Heron House Care Home,Care Establishment,2 - Commissioning - Older people Pool,Older People Mental Health Hunts,Nursing Independent Sector
Cambridgeshire County Council,09-Oct-15,19382571-12114332,-513.1,Heron House Care Home,Care Establishment,2 - Commissioning - Older people Pool,Older People Mental Health Hunts,Nursing Independent Sector
Cambridgeshire County Council,09-Oct-15,19382572-12114333,-513.1,Heron House Care Home,Care Establishment,2 - Commissioning - Older people Pool,Older People Mental Health Hunts,Nursing Independent Sector
Cambridgeshire County Council,09-Oct-15,19382573-12114334,-513.1,Heron House Care Home,Care Establishment,2 - Commissioning - Older people Pool,Older People Mental Health Hunts,Nursing Independent Sector
Cambridgeshire County Council,09-Oct-15,19382574-12114335,-513.1,Heron House Care Home,Care Establishment,2 - Commissioning - Older people Pool,Older People Mental Health Hunts,Nursing Independent Sector
Cambridgeshire County Council,09-Oct-15,19382575-12114336,-513.1,Heron House Care Home,Care Establishment,2 - Commissioning - Older people Pool,Older People Mental Health Hunts,Nursing Independent Sector
Cambridgeshire County Council,09-Oct-15,19382581-12114342,-513.1,Heron House Care Home,Care Establishment,2 - Commissioning - Older people Pool,Older People Mental Health Hunts,Nursing Independent Sector
Cambridgeshire County Council,09-Oct-15,19382588-12114349,-513.1,Heron House Care Home,Care Establishment,2 - Commissioning - Older people Pool,Older People Mental Health Hunts,Nursing Independent Sector
Cambridgeshire County Council,09-Oct-15,19382589-12114350,-513.1,Heron House Care Home,Care Establishment,2 - Commissioning - Older people Pool,Older People Mental Health Hunts,Nursing Independent Sector
Cambridgeshire County Council,09-Oct-15,19382590-12114351,-513.1,Heron House Care Home,Care Establishment,2 - Commissioning - Older people Pool,Older People Mental Health Hunts,Nursing Independent Sector
Cambridgeshire County Council,09-Oct-15,19382591-12114352,-513.1,Heron House Care Home,Care Establishment,2 - Commissioning - Older people Pool,Older People Mental Health Hunts,Nursing Independent Sector
Cambridgeshire County Council,09-Oct-15,19382592-12114353,-513.1,Heron House Care Home,Care Establishment,2 - Commissioning - Older people Pool,Older People Mental Health Hunts,Nursing Independent Sector
Cambridgeshire County Council,09-Oct-15,19382593-12114312,-513.1,Heron House Care Home,Care Establishment,2 - Commissioning - Older people Pool,Older People Mental Health Hunts,Nursing Independent Sector
Cambridgeshire County Council,09-Oct-15,19382594-12114313,-513.1,Heron House Care Home,Care Establishment,2 - Commissioning - Older people Pool,Older People Mental Health Hunts,Nursing Independent Sector
Cambridgeshire County Council,09-Oct-15,19382596-12114315,-513.1,Heron House Care Home,Care Establishment,2 - Commissioning - Older people Pool,Older People Mental Health Hunts,Nursing Independent Sector
Cambridgeshire County Council,15-Oct-15,19407108-12141423,-513.1,Heron House Care Home,Care Establishment,2 - Commissioning - Older people Pool,Older People Mental Health Hunts,Nursing Independent Sector
Cambridgeshire County Council,15-Oct-15,19407111-12141425,-513.1,Heron House Care Home,Care Establishment,2 - Commissioning - Older people Pool,Older People Mental Health Hunts,Nursing Independent Sector
Cambridgeshire County Council,15-Oct-15,19407113-12141427,-513.1,Heron House Care Home,Care Establishment,2 - Commissioning - Older people Pool,Older People Mental Health Hunts,Nursing Independent Sector
Cambridgeshire County Council,15-Oct-15,19407121-12141432,-513.1,Heron House Care Home,Care Establishment,2 - Commissioning - Older people Pool,Older People Mental Health Hunts,Nursing Independent Sector
Cambridgeshire County Council,15-Oct-15,19407127-12141437,-513.1,Heron House Care Home,Care Establishment,2 - Commissioning - Older people Pool,Older People Mental Health Hunts,Nursing Independent Sector
Cambridgeshire County Council,15-Oct-15,19407128-12141438,-513.1,Heron House Care Home,Care Establishment,2 - Commissioning - Older people Pool,Older People Mental Health Hunts,Nursing Independent Sector
Cambridgeshire County Council,15-Oct-15,19407135-12141444,-513.1,Heron House Care Home,Care Establishment,2 - Commissioning - Older people Pool,Older People Mental Health Hunts,Nursing Independent Sector
Cambridgeshire County Council,15-Oct-15,19407139-12141448,-513.1,Heron House Care Home,Care Establishment,2 - Commissioning - Older people Pool,Older People Mental Health Hunts,Nursing Independent Sector
Cambridgeshire County Council,15-Oct-15,19407140-12141449,-513.1,Heron House Care Home,Care Establishment,2 - Commissioning - Older people Pool,Older People Mental Health Hunts,Nursing Independent Sector
Cambridgeshire County Council,15-Oct-15,19407141-12141450,-513.1,Heron House Care Home,Care Establishment,2 - Commissioning - Older people Pool,Older People Mental Health Hunts,Nursing Independent Sector
Cambridgeshire County Council,15-Oct-15,19407142-12141451,-513.1,Heron House Care Home,Care Establishment,2 - Commissioning - Older people Pool,Older People Mental Health Hunts,Nursing Independent Sector
Cambridgeshire County Council,15-Oct-15,19407143-12141452,-513.1,Heron House Care Home,Care Establishment,2 - Commissioning - Older people Pool,Older People Mental Health Hunts,Nursing Independent Sector
Cambridgeshire County Council,15-Oct-15,19407144-12141453,-513.1,Heron House Care Home,Care Establishment,2 - Commissioning - Older people Pool,Older People Mental Health Hunts,Nursing Independent Sector
Cambridgeshire County Council,15-Oct-15,19407146-12141455,-513.1,Heron House Care Home,Care Establishment,2 - Commissioning - Older people Pool,Older People Mental Health Hunts,Nursing Independent Sector
Cambridgeshire County Council,15-Oct-15,19407148-12141457,-513.1,Heron House Care Home,Care Establishment,2 - Commissioning - Older people Pool,Older People Mental Health Hunts,Nursing Independent Sector
Cambridgeshire County Council,15-Oct-15,19407149-12141458,-513.1,Heron House Care Home,Care Establishment,2 - Commissioning - Older people Pool,Older People Mental Health Hunts,Nursing Independent Sector
Cambridgeshire County Council,15-Oct-15,19407151-12141460,-513.1,Heron House Care Home,Care Establishment,2 - Commissioning - Older people Pool,Older People Mental Health Hunts,Nursing Independent Sector
Cambridgeshire County Council,15-Oct-15,19407152-12141461,-513.1,Heron House Care Home,Care Establishment,2 - Commissioning - Older people Pool,Older People Mental Health Hunts,Nursing Independent Sector
Cambridgeshire County Council,15-Oct-15,19407155-12141462,-513.1,Heron House Care Home,Care Establishment,2 - Commissioning - Older people Pool,Older People Mental Health Hunts,Nursing Independent Sector
Cambridgeshire County Council,29-Oct-15,19436054-12210571,-513.1,Heron House Care Home,Care Establishment,2 - Commissioning - Older people Pool,Older People Mental Health Hunts,Nursing Independent Sector
Cambridgeshire County Council,29-Oct-15,19436055-12210572,-513.1,Heron House Care Home,Care Establishment,2 - Commissioning - Older people Pool,Older People Mental Health Hunts,Nursing Independent Sector
Cambridgeshire County Council,29-Oct-15,19436057-12210574,-513.1,Heron House Care Home,Care Establishment,2 - Commissioning - Older people Pool,Older People Mental Health Hunts,Nursing Independent Sector
Cambridgeshire County Council,29-Oct-15,19436058-12210575,-513.1,Heron House Care Home,Care Establishment,2 - Commissioning - Older people Pool,Older People Mental Health Hunts,Nursing Independent Sector
Cambridgeshire County Council,29-Oct-15,19436059-12210576,-513.1,Heron House Care Home,Care Establishment,2 - Commissioning - Older people Pool,Older People Mental Health Hunts,Nursing Independent Sector
Cambridgeshire County Council,29-Oct-15,19436060-12210577,-513.1,Heron House Care Home,Care Establishment,2 - Commissioning - Older people Pool,Older People Mental Health Hunts,Nursing Independent Sector
Cambridgeshire County Council,29-Oct-15,19436062-12210579,-513.1,Heron House Care Home,Care Establishment,2 - Commissioning - Older people Pool,Older People Mental Health Hunts,Nursing Independent Sector
Cambridgeshire County Council,29-Oct-15,19436064-12210581,-513.1,Heron House Care Home,Care Establishment,2 - Commissioning - Older people Pool,Older People Mental Health Hunts,Nursing Independent Sector
Cambridgeshire County Council,29-Oct-15,19436069-12210586,-513.1,Heron House Care Home,Care Establishment,2 - Commissioning - Older people Pool,Older People Mental Health Hunts,Nursing Independent Sector
Cambridgeshire County Council,29-Oct-15,19436070-12210587,-513.1,Heron House Care Home,Care Establishment,2 - Commissioning - Older people Pool,Older People Mental Health Hunts,Nursing Independent Sector
Cambridgeshire County Council,29-Oct-15,19436078-12210595,-513.1,Heron House Care Home,Care Establishment,2 - Commissioning - Older people Pool,Older People Mental Health Hunts,Nursing Independent Sector
Cambridgeshire County Council,29-Oct-15,19436080-12210597,-513.1,Heron House Care Home,Care Establishment,2 - Commissioning - Older people Pool,Older People Mental Health Hunts,Nursing Independent Sector
Cambridgeshire County Council,29-Oct-15,19436081-12210598,-513.1,Heron House Care Home,Care Establishment,2 - Commissioning - Older people Pool,Older People Mental Health Hunts,Nursing Independent Sector
Cambridgeshire County Council,29-Oct-15,19436082-12210599,-513.1,Heron House Care Home,Care Establishment,2 - Commissioning - Older people Pool,Older People Mental Health Hunts,Nursing Independent Sector
Cambridgeshire County Council,29-Oct-15,19436084-12210601,-513.1,Heron House Care Home,Care Establishment,2 - Commissioning - Older people Pool,Older People Mental Health Hunts,Nursing Independent Sector
Cambridgeshire County Council,29-Oct-15,19436088-12210605,-513.1,Heron House Care Home,Care Establishment,2 - Commissioning - Older people Pool,Older People Mental Health Hunts,Nursing Independent Sector
Cambridgeshire County Council,29-Oct-15,19436089-12210606,-513.1,Heron House Care Home,Care Establishment,2 - Commissioning - Older people Pool,Older People Mental Health Hunts,Nursing Independent Sector
Cambridgeshire County Council,29-Oct-15,19436090-12210607,-513.1,Heron House Care Home,Care Establishment,2 - Commissioning - Older people Pool,Older People Mental Health Hunts,Nursing Independent Sector
Cambridgeshire County Council,29-Oct-15,19436091-12210608,-513.1,Heron House Care Home,Care Establishment,2 - Commissioning - Older people Pool,Older People Mental Health Hunts,Nursing Independent Sector
Cambridgeshire County Council,29-Oct-15,19468553-12210552,-513.1,Heron House Care Home,Care Establishment,2 - Commissioning - Older people Pool,Older People Mental Health Hunts,Nursing Independent Sector
Cambridgeshire County Council,29-Oct-15,19468555-12210554,-513.1,Heron House Care Home,Care Establishment,2 - Commissioning - Older people Pool,Older People Mental Health Hunts,Nursing Independent Sector
Cambridgeshire County Council,29-Oct-15,19468557-12210556,-513.1,Heron House Care Home,Care Establishment,2 - Commissioning - Older people Pool,Older People Mental Health Hunts,Nursing Independent Sector
Cambridgeshire County Council,29-Oct-15,19468560-12210559,-513.1,Heron House Care Home,Care Establishment,2 - Commissioning - Older people Pool,Older People Mental Health Hunts,Nursing Independent Sector
Cambridgeshire County Council,29-Oct-15,19468562-12210561,-513.1,Heron House Care Home,Care Establishment,2 - Commissioning - Older people Pool,Older People Mental Health Hunts,Nursing Independent Sector
Cambridgeshire County Council,29-Oct-15,19468563-12210562,-513.1,Heron House Care Home,Care Establishment,2 - Commissioning - Older people Pool,Older People Mental Health Hunts,Nursing Independent Sector
Cambridgeshire County Council,29-Oct-15,19468565-12210564,-513.1,Heron House Care Home,Care Establishment,2 - Commissioning - Older people Pool,Older People Mental Health Hunts,Nursing Independent Sector
Cambridgeshire County Council,29-Oct-15,19468566-12210565,-513.1,Heron House Care Home,Care Establishment,2 - Commissioning - Older people Pool,Older People Mental Health Hunts,Nursing Independent Sector
Cambridgeshire County Council,29-Oct-15,19468570-12210569,-513.1,Heron House Care Home,Care Establishment,2 - Commissioning - Older people Pool,Older People Mental Health Hunts,Nursing Independent Sector
Cambridgeshire County Council,29-Oct-15,19470718-12210530,-513.1,Heron House Care Home,Care Establishment,2 - Commissioning - Older people Pool,Older People Mental Health Hunts,Nursing Independent Sector
Cambridgeshire County Council,29-Oct-15,19470719-12210531,-513.1,Heron House Care Home,Care Establishment,2 - Commissioning - Older people Pool,Older People Mental Health Hunts,Nursing Independent Sector
Cambridgeshire County Council,29-Oct-15,19470721-12210533,-513.1,Heron House Care Home,Care Establishment,2 - Commissioning - Older people Pool,Older People Mental Health Hunts,Nursing Independent Sector
Cambridgeshire County Council,29-Oct-15,19470723-12210535,-513.1,Heron House Care Home,Care Establishment,2 - Commissioning - Older people Pool,Older People Mental Health Hunts,Nursing Independent Sector
Cambridgeshire County Council,29-Oct-15,19470724-12210536,-513.1,Heron House Care Home,Care Establishment,2 - Commissioning - Older people Pool,Older People Mental Health Hunts,Nursing Independent Sector
Cambridgeshire County Council,29-Oct-15,19470730-12210542,-513.1,Heron House Care Home,Care Establishment,2 - Commissioning - Older people Pool,Older People Mental Health Hunts,Nursing Independent Sector
Cambridgeshire County Council,29-Oct-15,19470733-12210545,-513.1,Heron House Care Home,Care Establishment,2 - Commissioning - Older people Pool,Older People Mental Health Hunts,Nursing Independent Sector
Cambridgeshire County Council,29-Oct-15,19470734-12210546,-513.1,Heron House Care Home,Care Establishment,2 - Commissioning - Older people Pool,Older People Mental Health Hunts,Nursing Independent Sector
Cambridgeshire County Council,29-Oct-15,19470736-12210548,-513.1,Heron House Care Home,Care Establishment,2 - Commissioning - Older people Pool,Older People Mental Health Hunts,Nursing Independent Sector
Cambridgeshire County Council,29-Oct-15,19470739-12210551,-513.1,Heron House Care Home,Care Establishment,2 - Commissioning - Older people Pool,Older People Mental Health Hunts,Nursing Independent Sector
Cambridgeshire County Council,01-Oct-15,19337721-12086842,-513.05,Ringshill Care Home,Care Establishment,2 - Commissioning - Older people Pool,Older People Mental Health Hunts,Nursing Independent Sector
Cambridgeshire County Council,01-Oct-15,19337723-12086844,-513.05,Ringshill Care Home,Care Establishment,2 - Commissioning - Older people Pool,Older People Mental Health Hunts,Nursing Independent Sector
Cambridgeshire County Council,01-Oct-15,19337724-12086845,-513.05,Ringshill Care Home,Care Establishment,2 - Commissioning - Older people Pool,Older People Mental Health Hunts,Nursing Independent Sector
Cambridgeshire County Council,01-Oct-15,19337728-12086849,-513.05,Ringshill Care Home,Care Establishment,2 - Commissioning - Older people Pool,Older People Mental Health Hunts,Nursing Independent Sector
Cambridgeshire County Council,01-Oct-15,19337729-12086850,-513.05,Ringshill Care Home,Care Establishment,2 - Commissioning - Older people Pool,Older People Mental Health Hunts,Nursing Independent Sector
Cambridgeshire County Council,01-Oct-15,19357746-12086865,-513.05,Ringshill Care Home,Care Establishment,2 - Commissioning - Older people Pool,Older People Mental Health Hunts,Nursing Independent Sector
Cambridgeshire County Council,01-Oct-15,19357750-12086855,-513.05,Ringshill Care Home,Care Establishment,2 - Commissioning - Older people Pool,Older People Mental Health Hunts,Nursing Independent Sector
Cambridgeshire County Council,01-Oct-15,19357751-12086856,-513.05,Ringshill Care Home,Care Establishment,2 - Commissioning - Older people Pool,Older People Mental Health Hunts,Nursing Independent Sector
Cambridgeshire County Council,01-Oct-15,19357752-12086857,-513.05,Ringshill Care Home,Care Establishment,2 - Commissioning - Older people Pool,Older People Mental Health Hunts,Nursing Independent Sector
Cambridgeshire County Council,01-Oct-15,19357754-12086859,-513.05,Ringshill Care Home,Care Establishment,2 - Commissioning - Older people Pool,Older People Mental Health Hunts,Nursing Independent Sector
Cambridgeshire County Council,09-Oct-15,19384223-12117916,-513.05,Ringshill Care Home,Care Establishment,2 - Commissioning - Older people Pool,Older People Mental Health Hunts,Nursing Independent Sector
Cambridgeshire County Council,09-Oct-15,19384224-12117917,-513.05,Ringshill Care Home,Care Establishment,2 - Commissioning - Older people Pool,Older People Mental Health Hunts,Nursing Independent Sector
Cambridgeshire County Council,09-Oct-15,19384226-12117919,-513.05,Ringshill Care Home,Care Establishment,2 - Commissioning - Older people Pool,Older People Mental Health Hunts,Nursing Independent Sector
Cambridgeshire County Council,09-Oct-15,19384227-12117920,-513.05,Ringshill Care Home,Care Establishment,2 - Commissioning - Older people Pool,Older People Mental Health Hunts,Nursing Independent Sector
Cambridgeshire County Council,09-Oct-15,19384232-12117925,-513.05,Ringshill Care Home,Care Establishment,2 - Commissioning - Older people Pool,Older People Mental Health Hunts,Nursing Independent Sector
Cambridgeshire County Council,15-Oct-15,19404508-12153353,-513.05,Ringshill Care Home,Care Establishment,2 - Commissioning - Older people Pool,Older People Mental Health Hunts,Nursing Independent Sector
Cambridgeshire County Council,15-Oct-15,19404512-12153357,-513.05,Ringshill Care Home,Care Establishment,2 - Commissioning - Older people Pool,Older People Mental Health Hunts,Nursing Independent Sector
Cambridgeshire County Council,15-Oct-15,19404513-12153358,-513.05,Ringshill Care Home,Care Establishment,2 - Commissioning - Older people Pool,Older People Mental Health Hunts,Nursing Independent Sector
Cambridgeshire County Council,15-Oct-15,19404514-12153359,-513.05,Ringshill Care Home,Care Establishment,2 - Commissioning - Older people Pool,Older People Mental Health Hunts,Nursing Independent Sector
Cambridgeshire County Council,15-Oct-15,19404515-12153360,-513.05,Ringshill Care Home,Care Establishment,2 - Commissioning - Older people Pool,Older People Mental Health Hunts,Nursing Independent Sector
Cambridgeshire County Council,22-Oct-15,19439360-12188971,-513.05,Ringshill Care Home,Care Establishment,2 - Commissioning - Older people Pool,Older People Mental Health Hunts,Nursing Independent Sector
Cambridgeshire County Council,22-Oct-15,19439362-12188973,-513.05,Ringshill Care Home,Care Establishment,2 - Commissioning - Older people Pool,Older People Mental Health Hunts,Nursing Independent Sector
Cambridgeshire County Council,22-Oct-15,19439366-12188977,-513.05,Ringshill Care Home,Care Establishment,2 - Commissioning - Older people Pool,Older People Mental Health Hunts,Nursing Independent Sector
Cambridgeshire County Council,22-Oct-15,19439369-12188980,-513.05,Ringshill Care Home,Care Establishment,2 - Commissioning - Older people Pool,Older People Mental Health Hunts,Nursing Independent Sector
Cambridgeshire County Council,22-Oct-15,19439370-12188981,-513.05,Ringshill Care Home,Care Establishment,2 - Commissioning - Older people Pool,Older People Mental Health Hunts,Nursing Independent Sector
Cambridgeshire County Council,29-Oct-15,19469776-12212347,-513.05,Ringshill Care Home,Care Establishment,2 - Commissioning - Older people Pool,Older People Mental Health Hunts,Nursing Independent Sector
Cambridgeshire County Council,29-Oct-15,19469779-12212350,-513.05,Ringshill Care Home,Care Establishment,2 - Commissioning - Older people Pool,Older People Mental Health Hunts,Nursing Independent Sector
Cambridgeshire County Council,29-Oct-15,19469781-12212352,-513.05,Ringshill Care Home,Care Establishment,2 - Commissioning - Older people Pool,Older People Mental Health Hunts,Nursing Independent Sector
Cambridgeshire County Council,29-Oct-15,19469782-12212353,-513.05,Ringshill Care Home,Care Establishment,2 - Commissioning - Older people Pool,Older People Mental Health Hunts,Nursing Independent Sector
Cambridgeshire County Council,29-Oct-15,19469783-12212354,-513.05,Ringshill Care Home,Care Establishment,2 - Commissioning - Older people Pool,Older People Mental Health Hunts,Nursing Independent Sector
Cambridgeshire County Council,15-Oct-15,19322670-12148750,-510.63,The Gables Specialist Nursing Home,Care Establishment,2 - Commissioning - Older people Pool,Older People Mental Health City & South,Nursing Independent Sector
Cambridgeshire County Council,15-Oct-15,19322671-12148751,-510.63,The Gables Specialist Nursing Home,Care Establishment,2 - Commissioning - Older people Pool,Older People Mental Health City & South,Nursing Independent Sector
Cambridgeshire County Council,15-Oct-15,19322674-12148754,-510.63,The Gables Specialist Nursing Home,Care Establishment,2 - Commissioning - Older people Pool,Older People Mental Health City & South,Nursing Independent Sector
Cambridgeshire County Council,15-Oct-15,19322675-12148755,-510.63,The Gables Specialist Nursing Home,Care Establishment,2 - Commissioning - Older people Pool,Older People Mental Health City & South,Nursing Independent Sector
